Body Name,Date Paid,Transaction Number,Amount,Supplier Name,Supplier Type ,Expense Area ,Cost Centre Description ,Expense Type
Cambridgeshire County Council,15-Nov-18,51300547192,"-101,796.58",SDC BUILDERS LTD,COMPANY,Buildings and Capital,Education Property Strategy Manager,Capital - Assets Under Construction
Cambridgeshire County Council,05-Nov-18,51300508435,"-85,380.73",ANDY KNOTT CONSTRUCTION LTD,COMPANY,Schools - Primaries,Harston & Newton Comm Primary School;  (2018),Capital - Assets Under Construction
Cambridgeshire County Council,30-Nov-18,51300560358,"-44,595.12",W S ATKINS (SERVICES) LTD,COMPANY,Schools - Primaries,Fen Ditton Comm Primary School;  (2009),Capital - Assets Under Construction
Cambridgeshire County Council,09-Nov-18,51300508433,"-40,686.82",W S ATKINS (SERVICES) LTD,COMPANY,Schools - Primaries,Fen Ditton Comm Primary School;  (2009),Capital - Assets Under Construction
Cambridgeshire County Council,13-Nov-18,51300507644,"-35,000.00",AUTH 0,TRADE SUPPLIER,Control Accounts,Bank Account - Payables,Bank Account - Payables
Cambridgeshire County Council,23-Nov-18,51300484606,"-26,400.00",ATKINS LTD,COMPANY,Scheme Development for Highways Initiatives,Scheme Development for Highways Initiatives,Construction - External Professional Fees
Cambridgeshire County Council,07-Nov-18,51300508421,"-21,420.00",HC-ONE,CARE ESTABLISHMENT,MST,YOS - MST Problem Sexual Behaviour,Professional Fees and Hired Services
Cambridgeshire County Council,12-Nov-18,51300405363,"-18,780.01",NORTH WEST ANGLIA NHS FOUNDATION TRUST,TRUST (OTHER),Health Care Library,Public Health Advice - Health Care Library,Professional Fees and Hired Services
Cambridgeshire County Council,19-Nov-18,51300285008,"-17,895.45",D A PAYNE COACH HIRE LTD,TRADE SUPPLIER,Home to School Transport - Mainstream,Home to School Transport Mainstream - Primary,Home to School - Contract
Cambridgeshire County Council,30-Nov-18,51300560713,"-17,640.00",DEEPDALE TREES LTD,TRADE SUPPLIER,GCP - Cross City Cycling,GCP - Cross City Cycling,Cycleways
Cambridgeshire County Council,26-Nov-18,51300223365,"-15,362.44",CAMBRIDGESHIRE AND PETERBOROUGH NHS FOUNDATION TRUST,TRUST (OTHER),Mental Health Central,Adults MH CPMHT Central costs,Staffing Recharges
Cambridgeshire County Council,07-Nov-18,51300508416,"-14,047.62",RADIS COMMUNITY CARE,CARE ESTABLISHMENT,OP - Hunts Extra Care,Broad Leas Court,Homecare
Cambridgeshire County Council,19-Nov-18,51300547848,"-12,484.80",ELGIN ROADWORKS INFORMATION LIMITED,TRADE SUPPLIER,Permitting,Streetworks Permit Scheme,Traffic Management Schemes
Cambridgeshire County Council,23-Nov-18,51300547275,"-9,653.23",PHOENIX SOFTWARE LTD,TRADE SUPPLIER,ICT Service,ICT Service Sales,Materials for resale
Cambridgeshire County Council,23-Nov-18,51300547278,"-9,653.23",PHOENIX SOFTWARE LTD,TRADE SUPPLIER,ICT Service,ICT Service Sales,Materials for resale
Cambridgeshire County Council,05-Nov-18,51300508409,"-8,867.11",PHOENIX SOFTWARE LTD,TRADE SUPPLIER,Control Accounts,Control Accounts - Payables,Migration Only - Marked as Do Not Use
Cambridgeshire County Council,20-Nov-18,51300509075,"-7,200.00",Geometric Results International Limited,TRADE SUPPLIER,Fostering,Fostering Support Team,Professional Fees and Hired Services
Cambridgeshire County Council,07-Nov-18,51300509074,"-7,036.92",RADIS COMMUNITY CARE,CARE ESTABLISHMENT,OP - Hunts Locality,Hunts O P  Team,Supported Living
Cambridgeshire County Council,06-Nov-18,51300509071,"-6,510.00",WINGS EDUCATION LTD,TRADE SUPPLIER,LAC Placements,Placements - Social Care,Agency Placements - Out of  County
Cambridgeshire County Council,01-Nov-18,51300507917,"-6,460.32",METHODIST HOMES FOR THE AGED (MHA),CARE ESTABLISHMENT,OP - East Cambs Blocks,East Cambs - Short term blocks,Rehabilitation And Respite Care
Cambridgeshire County Council,01-Nov-18,51300507918,"-6,460.32",METHODIST HOMES FOR THE AGED (MHA),CARE ESTABLISHMENT,OP - East Cambs Blocks,East Cambs - Short term blocks,Rehabilitation And Respite Care
Cambridgeshire County Council,20-Nov-18,51300485625,"-4,987.18",Geometric Results International Limited,TRADE SUPPLIER,Digital Systems,Project Mosaic,Professional Fees and Hired Services
Cambridgeshire County Council,07-Nov-18,51300509058,"-4,837.97",DYNNIQ UK LTD,COMPANY,Signals,Signals Works,Private Highways Work
Cambridgeshire County Council,07-Nov-18,51300507042,"-4,655.00",BROOKDALE HEALTHCARE LIMITED,CARE ESTABLISHMENT,LD - Hunts Locality,LD - Huntigndonshire  - Care,Rehabilitation And Respite Care
Cambridgeshire County Council,07-Nov-18,51300507029,"-4,655.00",BROOKDALE HEALTHCARE LIMITED,CARE ESTABLISHMENT,LD - Hunts Locality,LD - Huntigndonshire  - Care,Rehabilitation And Respite Care
Cambridgeshire County Council,07-Nov-18,51300523391,"-4,655.00",BROOKDALE HEALTHCARE LIMITED,CARE ESTABLISHMENT,LD - Hunts Locality,LD - Huntigndonshire  - Care,Rehabilitation And Respite Care
Cambridgeshire County Council,07-Nov-18,51300523420,"-4,655.00",BROOKDALE HEALTHCARE LIMITED,CARE ESTABLISHMENT,LD - Hunts Locality,LD - Huntigndonshire  - Care,Rehabilitation And Respite Care
Cambridgeshire County Council,07-Nov-18,51300507030,"-4,655.00",BROOKDALE HEALTHCARE LIMITED,CARE ESTABLISHMENT,LD - Hunts Locality,LD - Huntigndonshire  - Care,Rehabilitation And Respite Care
Cambridgeshire County Council,07-Nov-18,51300507033,"-4,655.00",BROOKDALE HEALTHCARE LIMITED,CARE ESTABLISHMENT,LD - Hunts Locality,LD - Huntigndonshire  - Care,Rehabilitation And Respite Care
Cambridgeshire County Council,07-Nov-18,51300507045,"-4,655.00",BROOKDALE HEALTHCARE LIMITED,CARE ESTABLISHMENT,LD - Hunts Locality,LD - Huntigndonshire  - Care,Rehabilitation And Respite Care
Cambridgeshire County Council,07-Nov-18,51300523415,"-4,655.00",BROOKDALE HEALTHCARE LIMITED,CARE ESTABLISHMENT,LD - Hunts Locality,LD - Huntigndonshire  - Care,Rehabilitation And Respite Care
Cambridgeshire County Council,07-Nov-18,51300523407,"-4,655.00",BROOKDALE HEALTHCARE LIMITED,CARE ESTABLISHMENT,LD - Hunts Locality,LD - Huntigndonshire  - Care,Rehabilitation And Respite Care
Cambridgeshire County Council,07-Nov-18,51300523386,"-4,655.00",BROOKDALE HEALTHCARE LIMITED,CARE ESTABLISHMENT,LD - Hunts Locality,LD - Huntigndonshire  - Special Needs,Rehabilitation And Respite Care
Cambridgeshire County Council,07-Nov-18,51300507039,"-4,655.00",BROOKDALE HEALTHCARE LIMITED,CARE ESTABLISHMENT,LD - Hunts Locality,LD - Huntigndonshire  - Special Needs,Rehabilitation And Respite Care
Cambridgeshire County Council,07-Nov-18,51300523388,"-4,655.00",BROOKDALE HEALTHCARE LIMITED,CARE ESTABLISHMENT,LD - Hunts Locality,LD - Huntigndonshire  - Special Needs,Rehabilitation And Respite Care
Cambridgeshire County Council,07-Nov-18,51300523394,"-4,655.00",BROOKDALE HEALTHCARE LIMITED,CARE ESTABLISHMENT,LD - Hunts Locality,LD - Huntigndonshire  - Special Needs,Rehabilitation And Respite Care
Cambridgeshire County Council,07-Nov-18,51300507036,"-4,655.00",BROOKDALE HEALTHCARE LIMITED,CARE ESTABLISHMENT,LD - Hunts Locality,LD - Huntigndonshire  - Special Needs,Rehabilitation And Respite Care
Cambridgeshire County Council,07-Nov-18,51300523398,"-4,655.00",BROOKDALE HEALTHCARE LIMITED,CARE ESTABLISHMENT,LD - Hunts Locality,LD - Huntigndonshire  - Special Needs,Rehabilitation And Respite Care
Cambridgeshire County Council,07-Nov-18,51300507035,"-4,655.00",BROOKDALE HEALTHCARE LIMITED,CARE ESTABLISHMENT,LD - Hunts Locality,LD - Huntigndonshire  - Special Needs,Rehabilitation And Respite Care
Cambridgeshire County Council,07-Nov-18,51300523424,"-4,655.00",BROOKDALE HEALTHCARE LIMITED,CARE ESTABLISHMENT,LD - Hunts Locality,LD - Huntigndonshire  - Special Needs,Rehabilitation And Respite Care
Cambridgeshire County Council,07-Nov-18,51300507037,"-4,655.00",BROOKDALE HEALTHCARE LIMITED,CARE ESTABLISHMENT,LD - Hunts Locality,LD - Huntigndonshire  - Special Needs,Rehabilitation And Respite Care
Cambridgeshire County Council,23-Nov-18,51300552505,"-4,655.00",BROOKDALE HEALTHCARE LIMITED,CARE ESTABLISHMENT,LD - Hunts Locality,LD - Huntigndonshire  - Care,Rehabilitation And Respite Care
Cambridgeshire County Council,23-Nov-18,51300552503,"-4,655.00",BROOKDALE HEALTHCARE LIMITED,CARE ESTABLISHMENT,LD - Hunts Locality,LD - Huntigndonshire  - Care,Rehabilitation And Respite Care
Cambridgeshire County Council,23-Nov-18,51300546348,"-4,655.00",BROOKDALE HEALTHCARE LIMITED,CARE ESTABLISHMENT,LD - Hunts Locality,LD - Huntigndonshire  - Care,Rehabilitation And Respite Care
Cambridgeshire County Council,23-Nov-18,51300546339,"-4,655.00",BROOKDALE HEALTHCARE LIMITED,CARE ESTABLISHMENT,LD - Hunts Locality,LD - Huntigndonshire  - Care,Rehabilitation And Respite Care
Cambridgeshire County Council,23-Nov-18,51300546341,"-4,655.00",BROOKDALE HEALTHCARE LIMITED,CARE ESTABLISHMENT,LD - Hunts Locality,LD - Huntigndonshire  - Care,Rehabilitation And Respite Care
Cambridgeshire County Council,23-Nov-18,51300546344,"-4,655.00",BROOKDALE HEALTHCARE LIMITED,CARE ESTABLISHMENT,LD - Hunts Locality,LD - Huntigndonshire  - Care,Rehabilitation And Respite Care
Cambridgeshire County Council,23-Nov-18,51300552504,"-4,655.00",BROOKDALE HEALTHCARE LIMITED,CARE ESTABLISHMENT,LD - Hunts Locality,LD - Huntigndonshire  - Care,Rehabilitation And Respite Care
Cambridgeshire County Council,23-Nov-18,51300552497,"-4,655.00",BROOKDALE HEALTHCARE LIMITED,CARE ESTABLISHMENT,LD - Hunts Locality,LD - Huntigndonshire  - Special Needs,Rehabilitation And Respite Care
Cambridgeshire County Council,23-Nov-18,51300552493,"-4,655.00",BROOKDALE HEALTHCARE LIMITED,CARE ESTABLISHMENT,LD - Hunts Locality,LD - Huntigndonshire  - Special Needs,Rehabilitation And Respite Care
Cambridgeshire County Council,23-Nov-18,51300546333,"-4,655.00",BROOKDALE HEALTHCARE LIMITED,CARE ESTABLISHMENT,LD - Hunts Locality,LD - Huntigndonshire  - Care,Rehabilitation And Respite Care
Cambridgeshire County Council,23-Nov-18,51300552501,"-4,655.00",BROOKDALE HEALTHCARE LIMITED,CARE ESTABLISHMENT,LD - Hunts Locality,LD - Huntigndonshire  - Care,Rehabilitation And Respite Care
Cambridgeshire County Council,23-Nov-18,51300546343,"-4,655.00",BROOKDALE HEALTHCARE LIMITED,CARE ESTABLISHMENT,LD - Hunts Locality,LD - Huntigndonshire  - Care,Rehabilitation And Respite Care
Cambridgeshire County Council,23-Nov-18,51300552494,"-4,655.00",BROOKDALE HEALTHCARE LIMITED,CARE ESTABLISHMENT,LD - Hunts Locality,LD - Huntigndonshire  - Care,Rehabilitation And Respite Care
Cambridgeshire County Council,23-Nov-18,51300552506,"-4,655.00",BROOKDALE HEALTHCARE LIMITED,CARE ESTABLISHMENT,LD - Hunts Locality,LD - Huntigndonshire  - Special Needs,Rehabilitation And Respite Care
Cambridgeshire County Council,23-Nov-18,51300546346,"-4,655.00",BROOKDALE HEALTHCARE LIMITED,CARE ESTABLISHMENT,LD - Hunts Locality,LD - Huntigndonshire  - Special Needs,Rehabilitation And Respite Care
Cambridgeshire County Council,23-Nov-18,51300552502,"-4,655.00",BROOKDALE HEALTHCARE LIMITED,CARE ESTABLISHMENT,LD - Hunts Locality,LD - Huntigndonshire  - Special Needs,Rehabilitation And Respite Care
Cambridgeshire County Council,23-Nov-18,51300546336,"-4,655.00",BROOKDALE HEALTHCARE LIMITED,CARE ESTABLISHMENT,LD - Hunts Locality,LD - Huntigndonshire  - Special Needs,Rehabilitation And Respite Care
Cambridgeshire County Council,23-Nov-18,51300546351,"-4,655.00",BROOKDALE HEALTHCARE LIMITED,CARE ESTABLISHMENT,LD - Hunts Locality,LD - Huntigndonshire  - Special Needs,Rehabilitation And Respite Care
Cambridgeshire County Council,07-Nov-18,51300509385,"-4,485.58",SDC BUILDERS LTD,COMPANY,Temporary Accommodation,Temporary Accommodation,Mobile - Buildings
Cambridgeshire County Council,29-Nov-18,51300570042,"-4,433.34",CAMBRIDGE CENTRE FOR SIXTH FORM STUDIES (CCSS),EDUCATION,SEND High Needs Top Up,SEND Specialist Services-High needs top-up-Post 16,Educational Materials
Cambridgeshire County Council,30-Nov-18,51300570154,"-4,375.00",Redacted Personal Data,INDIVIDUAL,Coroners,Coroners General,Court Costs
Cambridgeshire County Council,09-Nov-18,51300509049,"-3,908.30",W S ATKINS (SERVICES) LTD,COMPANY,Schools - Primaries,Fulbourn Primary School; (2328),Capital - Assets Under Construction
Cambridgeshire County Council,14-Nov-18,51300509048,"-3,825.00",J & R TAXIS R P LEBRUN,TRADE SUPPLIER,Home to School Transport - Special,Home to School Transport Special - Central Costs,Home to School - Contract
Cambridgeshire County Council,27-Nov-18,51300558702,"-3,720.64",BY THE BRIDGE LTD,CARE ESTABLISHMENT,LAC Placements,Placements - Social Care,Agency Placements - Out of  County
Cambridgeshire County Council,26-Nov-18,51300538533,"-3,554.46",FOSTERING SOLUTIONS LTD,CARE ESTABLISHMENT,LAC Placements,Placements - independent fostering,Agency Placements - In County
Cambridgeshire County Council,01-Nov-18,51300501903,"-3,489.14",CARETECH COMMUNITY SERVICES,CARE ESTABLISHMENT,LAC Placements,Placements - supported accommodation,Agency Placements - In County
Cambridgeshire County Council,30-Nov-18,51300570149,"-3,459.66",WCL UK LTD,TRADE SUPPLIER,ICT Service,ICT Service Sales,Materials for resale
Cambridgeshire County Council,07-Nov-18,51300509024,"-3,405.65",RADIS COMMUNITY CARE,CARE ESTABLISHMENT,OP - Hunts Locality,Hunts O P  Team,Homecare
Cambridgeshire County Council,07-Nov-18,51300523385,"-3,325.00",BROOKDALE HEALTHCARE LIMITED,CARE ESTABLISHMENT,LD - Hunts Locality,LD - Huntigndonshire  - Care,Rehabilitation And Respite Care
Cambridgeshire County Council,07-Nov-18,51300507032,"-3,325.00",BROOKDALE HEALTHCARE LIMITED,CARE ESTABLISHMENT,LD - Hunts Locality,LD - Huntigndonshire  - Care,Rehabilitation And Respite Care
Cambridgeshire County Council,23-Nov-18,51300546345,"-3,325.00",BROOKDALE HEALTHCARE LIMITED,CARE ESTABLISHMENT,LD - Hunts Locality,LD - Huntigndonshire  - Care,Rehabilitation And Respite Care
Cambridgeshire County Council,23-Nov-18,51300552489,"-3,325.00",BROOKDALE HEALTHCARE LIMITED,CARE ESTABLISHMENT,LD - Hunts Locality,LD - Huntigndonshire  - Special Needs,Rehabilitation And Respite Care
Cambridgeshire County Council,01-Nov-18,51300502761,"-2,977.44",DECOY FARM,CARE ESTABLISHMENT,LD - East Locality,LD - East Cambs - Special Needs,Residential Care
Cambridgeshire County Council,01-Nov-18,51300502821,"-2,977.44",DECOY FARM,CARE ESTABLISHMENT,LD - East Locality,LD - East Cambs - Special Needs,Residential Care
Cambridgeshire County Council,01-Nov-18,51300502787,"-2,977.44",DECOY FARM,CARE ESTABLISHMENT,LD - East Locality,LD - East Cambs - Special Needs,Residential Care
Cambridgeshire County Council,01-Nov-18,51300502745,"-2,977.44",DECOY FARM,CARE ESTABLISHMENT,LD - East Locality,LD - East Cambs - Special Needs,Residential Care
Cambridgeshire County Council,01-Nov-18,51300502702,"-2,977.44",DECOY FARM,CARE ESTABLISHMENT,LD - East Locality,LD - East Cambs - Special Needs,Residential Care
Cambridgeshire County Council,01-Nov-18,51300502692,"-2,977.44",DECOY FARM,CARE ESTABLISHMENT,LD - East Locality,LD - East Cambs - Special Needs,Residential Care
Cambridgeshire County Council,01-Nov-18,51300502715,"-2,977.44",DECOY FARM,CARE ESTABLISHMENT,LD - East Locality,LD - East Cambs - Special Needs,Residential Care
Cambridgeshire County Council,01-Nov-18,51300502743,"-2,977.44",DECOY FARM,CARE ESTABLISHMENT,LD - East Locality,LD - East Cambs - Special Needs,Residential Care
Cambridgeshire County Council,01-Nov-18,51300502808,"-2,977.44",DECOY FARM,CARE ESTABLISHMENT,LD - East Locality,LD - East Cambs - Special Needs,Residential Care
Cambridgeshire County Council,01-Nov-18,51300502831,"-2,977.44",DECOY FARM,CARE ESTABLISHMENT,LD - East Locality,LD - East Cambs - Special Needs,Residential Care
Cambridgeshire County Council,01-Nov-18,51300502818,"-2,977.44",DECOY FARM,CARE ESTABLISHMENT,LD - East Locality,LD - East Cambs - Special Needs,Residential Care
Cambridgeshire County Council,01-Nov-18,51300502733,"-2,977.44",DECOY FARM,CARE ESTABLISHMENT,LD - East Locality,LD - East Cambs - Special Needs,Residential Care
Cambridgeshire County Council,01-Nov-18,51300502742,"-2,977.44",DECOY FARM,CARE ESTABLISHMENT,LD - East Locality,LD - East Cambs - Special Needs,Residential Care
Cambridgeshire County Council,01-Nov-18,51300502759,"-2,977.44",DECOY FARM,CARE ESTABLISHMENT,LD - East Locality,LD - East Cambs - Special Needs,Residential Care
Cambridgeshire County Council,01-Nov-18,51300502799,"-2,977.44",DECOY FARM,CARE ESTABLISHMENT,LD - East Locality,LD - East Cambs - Special Needs,Residential Care
Cambridgeshire County Council,01-Nov-18,51300502731,"-2,977.44",DECOY FARM,CARE ESTABLISHMENT,LD - East Locality,LD - East Cambs - Special Needs,Residential Care
Cambridgeshire County Council,01-Nov-18,51300502690,"-2,977.44",DECOY FARM,CARE ESTABLISHMENT,LD - East Locality,LD - East Cambs - Special Needs,Residential Care
Cambridgeshire County Council,01-Nov-18,51300502826,"-2,977.44",DECOY FARM,CARE ESTABLISHMENT,LD - East Locality,LD - East Cambs - Special Needs,Residential Care
Cambridgeshire County Council,01-Nov-18,51300502718,"-2,977.44",DECOY FARM,CARE ESTABLISHMENT,LD - East Locality,LD - East Cambs - Special Needs,Residential Care
Cambridgeshire County Council,01-Nov-18,51300502717,"-2,977.44",DECOY FARM,CARE ESTABLISHMENT,LD - East Locality,LD - East Cambs - Special Needs,Residential Care
Cambridgeshire County Council,01-Nov-18,51300502752,"-2,977.44",DECOY FARM,CARE ESTABLISHMENT,LD - East Locality,LD - East Cambs - Special Needs,Residential Care
Cambridgeshire County Council,01-Nov-18,51300502769,"-2,977.44",DECOY FARM,CARE ESTABLISHMENT,LD - East Locality,LD - East Cambs - Special Needs,Residential Care
Cambridgeshire County Council,01-Nov-18,51300502705,"-2,977.44",DECOY FARM,CARE ESTABLISHMENT,LD - East Locality,LD - East Cambs - Special Needs,Residential Care
Cambridgeshire County Council,01-Nov-18,51300502696,"-2,977.44",DECOY FARM,CARE ESTABLISHMENT,LD - East Locality,LD - East Cambs - Special Needs,Residential Care
Cambridgeshire County Council,01-Nov-18,51300502699,"-2,977.44",DECOY FARM,CARE ESTABLISHMENT,LD - East Locality,LD - East Cambs - Special Needs,Residential Care
Cambridgeshire County Council,01-Nov-18,51300502701,"-2,977.44",DECOY FARM,CARE ESTABLISHMENT,LD - East Locality,LD - East Cambs - Special Needs,Residential Care
Cambridgeshire County Council,01-Nov-18,51300502727,"-2,977.44",DECOY FARM,CARE ESTABLISHMENT,LD - East Locality,LD - East Cambs - Special Needs,Residential Care
Cambridgeshire County Council,01-Nov-18,51300502746,"-2,977.44",DECOY FARM,CARE ESTABLISHMENT,LD - East Locality,LD - East Cambs - Special Needs,Residential Care
Cambridgeshire County Council,01-Nov-18,51300502813,"-2,977.44",DECOY FARM,CARE ESTABLISHMENT,LD - East Locality,LD - East Cambs - Special Needs,Residential Care
Cambridgeshire County Council,01-Nov-18,51300502817,"-2,977.44",DECOY FARM,CARE ESTABLISHMENT,LD - East Locality,LD - East Cambs - Special Needs,Residential Care
Cambridgeshire County Council,01-Nov-18,51300502775,"-2,977.44",DECOY FARM,CARE ESTABLISHMENT,LD - East Locality,LD - East Cambs - Special Needs,Residential Care
Cambridgeshire County Council,01-Nov-18,51300502695,"-2,977.44",DECOY FARM,CARE ESTABLISHMENT,LD - East Locality,LD - East Cambs - Special Needs,Residential Care
Cambridgeshire County Council,01-Nov-18,51300502688,"-2,977.44",DECOY FARM,CARE ESTABLISHMENT,LD - East Locality,LD - East Cambs - Special Needs,Residential Care
Cambridgeshire County Council,01-Nov-18,51300502758,"-2,977.44",DECOY FARM,CARE ESTABLISHMENT,LD - East Locality,LD - East Cambs - Special Needs,Residential Care
Cambridgeshire County Council,01-Nov-18,51300502687,"-2,977.44",DECOY FARM,CARE ESTABLISHMENT,LD - East Locality,LD - East Cambs - Special Needs,Residential Care
Cambridgeshire County Council,01-Nov-18,51300502697,"-2,977.44",DECOY FARM,CARE ESTABLISHMENT,LD - East Locality,LD - East Cambs - Special Needs,Residential Care
Cambridgeshire County Council,01-Nov-18,51300502698,"-2,977.44",DECOY FARM,CARE ESTABLISHMENT,LD - East Locality,LD - East Cambs - Special Needs,Residential Care
Cambridgeshire County Council,01-Nov-18,51300502710,"-2,977.44",DECOY FARM,CARE ESTABLISHMENT,LD - East Locality,LD - East Cambs - Special Needs,Residential Care
Cambridgeshire County Council,01-Nov-18,51300502711,"-2,977.44",DECOY FARM,CARE ESTABLISHMENT,LD - East Locality,LD - East Cambs - Special Needs,Residential Care
Cambridgeshire County Council,01-Nov-18,51300502725,"-2,977.44",DECOY FARM,CARE ESTABLISHMENT,LD - East Locality,LD - East Cambs - Special Needs,Residential Care
Cambridgeshire County Council,01-Nov-18,51300502756,"-2,977.44",DECOY FARM,CARE ESTABLISHMENT,LD - East Locality,LD - East Cambs - Special Needs,Residential Care
Cambridgeshire County Council,01-Nov-18,51300502779,"-2,977.44",DECOY FARM,CARE ESTABLISHMENT,LD - East Locality,LD - East Cambs - Special Needs,Residential Care
Cambridgeshire County Council,01-Nov-18,51300502786,"-2,977.44",DECOY FARM,CARE ESTABLISHMENT,LD - East Locality,LD - East Cambs - Special Needs,Residential Care
Cambridgeshire County Council,01-Nov-18,51300502824,"-2,977.44",DECOY FARM,CARE ESTABLISHMENT,LD - East Locality,LD - East Cambs - Special Needs,Residential Care
Cambridgeshire County Council,01-Nov-18,51300502794,"-2,977.44",DECOY FARM,CARE ESTABLISHMENT,LD - East Locality,LD - East Cambs - Special Needs,Residential Care
Cambridgeshire County Council,01-Nov-18,51300502706,"-2,977.44",DECOY FARM,CARE ESTABLISHMENT,LD - East Locality,LD - East Cambs - Special Needs,Residential Care
Cambridgeshire County Council,01-Nov-18,51300502768,"-2,977.44",DECOY FARM,CARE ESTABLISHMENT,LD - East Locality,LD - East Cambs - Special Needs,Residential Care
Cambridgeshire County Council,01-Nov-18,51300502800,"-2,977.44",DECOY FARM,CARE ESTABLISHMENT,LD - East Locality,LD - East Cambs - Special Needs,Residential Care
Cambridgeshire County Council,01-Nov-18,51300502827,"-2,977.44",DECOY FARM,CARE ESTABLISHMENT,LD - East Locality,LD - East Cambs - Special Needs,Residential Care
Cambridgeshire County Council,01-Nov-18,51300502828,"-2,977.44",DECOY FARM,CARE ESTABLISHMENT,LD - East Locality,LD - East Cambs - Special Needs,Residential Care
Cambridgeshire County Council,01-Nov-18,51300502685,"-2,977.44",DECOY FARM,CARE ESTABLISHMENT,LD - East Locality,LD - East Cambs - Special Needs,Residential Care
Cambridgeshire County Council,01-Nov-18,51300502707,"-2,977.44",DECOY FARM,CARE ESTABLISHMENT,LD - East Locality,LD - East Cambs - Special Needs,Residential Care
Cambridgeshire County Council,01-Nov-18,51300502689,"-2,977.44",DECOY FARM,CARE ESTABLISHMENT,LD - East Locality,LD - East Cambs - Special Needs,Residential Care
Cambridgeshire County Council,01-Nov-18,51300502709,"-2,977.44",DECOY FARM,CARE ESTABLISHMENT,LD - East Locality,LD - East Cambs - Special Needs,Residential Care
Cambridgeshire County Council,01-Nov-18,51300502716,"-2,977.44",DECOY FARM,CARE ESTABLISHMENT,LD - East Locality,LD - East Cambs - Special Needs,Residential Care
Cambridgeshire County Council,01-Nov-18,51300502724,"-2,977.44",DECOY FARM,CARE ESTABLISHMENT,LD - East Locality,LD - East Cambs - Special Needs,Residential Care
Cambridgeshire County Council,01-Nov-18,51300502765,"-2,977.44",DECOY FARM,CARE ESTABLISHMENT,LD - East Locality,LD - East Cambs - Special Needs,Residential Care
Cambridgeshire County Council,01-Nov-18,51300502767,"-2,977.44",DECOY FARM,CARE ESTABLISHMENT,LD - East Locality,LD - East Cambs - Special Needs,Residential Care
Cambridgeshire County Council,01-Nov-18,51300502774,"-2,977.44",DECOY FARM,CARE ESTABLISHMENT,LD - East Locality,LD - East Cambs - Special Needs,Residential Care
Cambridgeshire County Council,01-Nov-18,51300502778,"-2,977.44",DECOY FARM,CARE ESTABLISHMENT,LD - East Locality,LD - East Cambs - Special Needs,Residential Care
Cambridgeshire County Council,01-Nov-18,51300502784,"-2,977.44",DECOY FARM,CARE ESTABLISHMENT,LD - East Locality,LD - East Cambs - Special Needs,Residential Care
Cambridgeshire County Council,01-Nov-18,51300502719,"-2,977.44",DECOY FARM,CARE ESTABLISHMENT,LD - East Locality,LD - East Cambs - Special Needs,Residential Care
Cambridgeshire County Council,01-Nov-18,51300502747,"-2,977.44",DECOY FARM,CARE ESTABLISHMENT,LD - East Locality,LD - East Cambs - Special Needs,Residential Care
Cambridgeshire County Council,01-Nov-18,51300502753,"-2,977.44",DECOY FARM,CARE ESTABLISHMENT,LD - East Locality,LD - East Cambs - Special Needs,Residential Care
Cambridgeshire County Council,01-Nov-18,51300502754,"-2,977.44",DECOY FARM,CARE ESTABLISHMENT,LD - East Locality,LD - East Cambs - Special Needs,Residential Care
Cambridgeshire County Council,01-Nov-18,51300502763,"-2,977.44",DECOY FARM,CARE ESTABLISHMENT,LD - East Locality,LD - East Cambs - Special Needs,Residential Care
Cambridgeshire County Council,01-Nov-18,51300502770,"-2,977.44",DECOY FARM,CARE ESTABLISHMENT,LD - East Locality,LD - East Cambs - Special Needs,Residential Care
Cambridgeshire County Council,01-Nov-18,51300502781,"-2,977.44",DECOY FARM,CARE ESTABLISHMENT,LD - East Locality,LD - East Cambs - Special Needs,Residential Care
Cambridgeshire County Council,01-Nov-18,51300502804,"-2,977.44",DECOY FARM,CARE ESTABLISHMENT,LD - East Locality,LD - East Cambs - Special Needs,Residential Care
Cambridgeshire County Council,01-Nov-18,51300502822,"-2,977.44",DECOY FARM,CARE ESTABLISHMENT,LD - East Locality,LD - East Cambs - Special Needs,Residential Care
Cambridgeshire County Council,01-Nov-18,51300502793,"-2,977.44",DECOY FARM,CARE ESTABLISHMENT,LD - East Locality,LD - East Cambs - Special Needs,Residential Care
Cambridgeshire County Council,01-Nov-18,51300502682,"-2,977.44",DECOY FARM,CARE ESTABLISHMENT,LD - East Locality,LD - East Cambs - Special Needs,Residential Care
Cambridgeshire County Council,01-Nov-18,51300502708,"-2,977.44",DECOY FARM,CARE ESTABLISHMENT,LD - East Locality,LD - East Cambs - Special Needs,Residential Care
Cambridgeshire County Council,23-Nov-18,51300553978,"-2,977.44",DECOY FARM,CARE ESTABLISHMENT,LD - East Locality,LD - East Cambs - Special Needs,Residential Care
Cambridgeshire County Council,23-Nov-18,51300511567,"-2,977.44",DECOY FARM,CARE ESTABLISHMENT,LD - East Locality,LD - East Cambs - Special Needs,Residential Care
Cambridgeshire County Council,23-Nov-18,51300511516,"-2,977.44",DECOY FARM,CARE ESTABLISHMENT,LD - East Locality,LD - East Cambs - Special Needs,Residential Care
Cambridgeshire County Council,23-Nov-18,51300539869,"-2,977.44",DECOY FARM,CARE ESTABLISHMENT,LD - East Locality,LD - East Cambs - Special Needs,Residential Care
Cambridgeshire County Council,23-Nov-18,51300511625,"-2,977.44",DECOY FARM,CARE ESTABLISHMENT,LD - East Locality,LD - East Cambs - Special Needs,Residential Care
Cambridgeshire County Council,23-Nov-18,51300511535,"-2,977.44",DECOY FARM,CARE ESTABLISHMENT,LD - East Locality,LD - East Cambs - Special Needs,Residential Care
Cambridgeshire County Council,23-Nov-18,51300553920,"-2,977.44",DECOY FARM,CARE ESTABLISHMENT,LD - East Locality,LD - East Cambs - Special Needs,Residential Care
Cambridgeshire County Council,23-Nov-18,51300553905,"-2,977.44",DECOY FARM,CARE ESTABLISHMENT,LD - East Locality,LD - East Cambs - Special Needs,Residential Care
Cambridgeshire County Council,23-Nov-18,51300511532,"-2,977.44",DECOY FARM,CARE ESTABLISHMENT,LD - East Locality,LD - East Cambs - Special Needs,Residential Care
Cambridgeshire County Council,23-Nov-18,51300554031,"-2,977.44",DECOY FARM,CARE ESTABLISHMENT,LD - East Locality,LD - East Cambs - Special Needs,Residential Care
Cambridgeshire County Council,23-Nov-18,51300511648,"-2,977.44",DECOY FARM,CARE ESTABLISHMENT,LD - East Locality,LD - East Cambs - Special Needs,Residential Care
Cambridgeshire County Council,23-Nov-18,51300554044,"-2,977.44",DECOY FARM,CARE ESTABLISHMENT,LD - East Locality,LD - East Cambs - Special Needs,Residential Care
Cambridgeshire County Council,23-Nov-18,51300539891,"-2,977.44",DECOY FARM,CARE ESTABLISHMENT,LD - East Locality,LD - East Cambs - Special Needs,Residential Care
Cambridgeshire County Council,23-Nov-18,51300539879,"-2,977.44",DECOY FARM,CARE ESTABLISHMENT,LD - East Locality,LD - East Cambs - Special Needs,Residential Care
Cambridgeshire County Council,23-Nov-18,51300553903,"-2,977.44",DECOY FARM,CARE ESTABLISHMENT,LD - East Locality,LD - East Cambs - Special Needs,Residential Care
Cambridgeshire County Council,23-Nov-18,51300554005,"-2,977.44",DECOY FARM,CARE ESTABLISHMENT,LD - East Locality,LD - East Cambs - Special Needs,Residential Care
Cambridgeshire County Council,23-Nov-18,51300553940,"-2,977.44",DECOY FARM,CARE ESTABLISHMENT,LD - East Locality,LD - East Cambs - Special Needs,Residential Care
Cambridgeshire County Council,23-Nov-18,51300539950,"-2,977.44",DECOY FARM,CARE ESTABLISHMENT,LD - East Locality,LD - East Cambs - Special Needs,Residential Care
Cambridgeshire County Council,23-Nov-18,51300539973,"-2,977.44",DECOY FARM,CARE ESTABLISHMENT,LD - East Locality,LD - East Cambs - Special Needs,Residential Care
Cambridgeshire County Council,23-Nov-18,51300553984,"-2,977.44",DECOY FARM,CARE ESTABLISHMENT,LD - East Locality,LD - East Cambs - Special Needs,Residential Care
Cambridgeshire County Council,23-Nov-18,51300539860,"-2,977.44",DECOY FARM,CARE ESTABLISHMENT,LD - East Locality,LD - East Cambs - Special Needs,Residential Care
Cambridgeshire County Council,23-Nov-18,51300554039,"-2,977.44",DECOY FARM,CARE ESTABLISHMENT,LD - East Locality,LD - East Cambs - Special Needs,Residential Care
Cambridgeshire County Council,23-Nov-18,51300539993,"-2,977.44",DECOY FARM,CARE ESTABLISHMENT,LD - East Locality,LD - East Cambs - Special Needs,Residential Care
Cambridgeshire County Council,23-Nov-18,51300539935,"-2,977.44",DECOY FARM,CARE ESTABLISHMENT,LD - East Locality,LD - East Cambs - Special Needs,Residential Care
Cambridgeshire County Council,23-Nov-18,51300539970,"-2,977.44",DECOY FARM,CARE ESTABLISHMENT,LD - East Locality,LD - East Cambs - Special Needs,Residential Care
Cambridgeshire County Council,23-Nov-18,51300511580,"-2,977.44",DECOY FARM,CARE ESTABLISHMENT,LD - East Locality,LD - East Cambs - Special Needs,Residential Care
Cambridgeshire County Council,23-Nov-18,51300554004,"-2,977.44",DECOY FARM,CARE ESTABLISHMENT,LD - East Locality,LD - East Cambs - Special Needs,Residential Care
Cambridgeshire County Council,23-Nov-18,51300553910,"-2,977.44",DECOY FARM,CARE ESTABLISHMENT,LD - East Locality,LD - East Cambs - Special Needs,Residential Care
Cambridgeshire County Council,23-Nov-18,51300553895,"-2,977.44",DECOY FARM,CARE ESTABLISHMENT,LD - East Locality,LD - East Cambs - Special Needs,Residential Care
Cambridgeshire County Council,23-Nov-18,51300553987,"-2,977.44",DECOY FARM,CARE ESTABLISHMENT,LD - East Locality,LD - East Cambs - Special Needs,Residential Care
Cambridgeshire County Council,23-Nov-18,51300511540,"-2,977.44",DECOY FARM,CARE ESTABLISHMENT,LD - East Locality,LD - East Cambs - Special Needs,Residential Care
Cambridgeshire County Council,23-Nov-18,51300539858,"-2,977.44",DECOY FARM,CARE ESTABLISHMENT,LD - East Locality,LD - East Cambs - Special Needs,Residential Care
Cambridgeshire County Council,23-Nov-18,51300511603,"-2,977.44",DECOY FARM,CARE ESTABLISHMENT,LD - East Locality,LD - East Cambs - Special Needs,Residential Care
Cambridgeshire County Council,23-Nov-18,51300511649,"-2,977.44",DECOY FARM,CARE ESTABLISHMENT,LD - East Locality,LD - East Cambs - Special Needs,Residential Care
Cambridgeshire County Council,23-Nov-18,51300539926,"-2,977.44",DECOY FARM,CARE ESTABLISHMENT,LD - East Locality,LD - East Cambs - Special Needs,Residential Care
Cambridgeshire County Council,23-Nov-18,51300539943,"-2,977.44",DECOY FARM,CARE ESTABLISHMENT,LD - East Locality,LD - East Cambs - Special Needs,Residential Care
Cambridgeshire County Council,23-Nov-18,51300511538,"-2,977.44",DECOY FARM,CARE ESTABLISHMENT,LD - East Locality,LD - East Cambs - Special Needs,Residential Care
Cambridgeshire County Council,23-Nov-18,51300511600,"-2,977.44",DECOY FARM,CARE ESTABLISHMENT,LD - East Locality,LD - East Cambs - Special Needs,Residential Care
Cambridgeshire County Council,23-Nov-18,51300511544,"-2,977.44",DECOY FARM,CARE ESTABLISHMENT,LD - East Locality,LD - East Cambs - Special Needs,Residential Care
Cambridgeshire County Council,23-Nov-18,51300539916,"-2,977.44",DECOY FARM,CARE ESTABLISHMENT,LD - East Locality,LD - East Cambs - Special Needs,Residential Care
Cambridgeshire County Council,23-Nov-18,51300511586,"-2,977.44",DECOY FARM,CARE ESTABLISHMENT,LD - East Locality,LD - East Cambs - Special Needs,Residential Care
Cambridgeshire County Council,23-Nov-18,51300511504,"-2,977.44",DECOY FARM,CARE ESTABLISHMENT,LD - East Locality,LD - East Cambs - Special Needs,Residential Care
Cambridgeshire County Council,23-Nov-18,51300539850,"-2,977.44",DECOY FARM,CARE ESTABLISHMENT,LD - East Locality,LD - East Cambs - Special Needs,Residential Care
Cambridgeshire County Council,23-Nov-18,51300511506,"-2,977.44",DECOY FARM,CARE ESTABLISHMENT,LD - East Locality,LD - East Cambs - Special Needs,Residential Care
Cambridgeshire County Council,23-Nov-18,51300539875,"-2,977.44",DECOY FARM,CARE ESTABLISHMENT,LD - East Locality,LD - East Cambs - Special Needs,Residential Care
Cambridgeshire County Council,23-Nov-18,51300539881,"-2,977.44",DECOY FARM,CARE ESTABLISHMENT,LD - East Locality,LD - East Cambs - Special Needs,Residential Care
Cambridgeshire County Council,23-Nov-18,51300511541,"-2,977.44",DECOY FARM,CARE ESTABLISHMENT,LD - East Locality,LD - East Cambs - Special Needs,Residential Care
Cambridgeshire County Council,23-Nov-18,51300553950,"-2,977.44",DECOY FARM,CARE ESTABLISHMENT,LD - East Locality,LD - East Cambs - Special Needs,Residential Care
Cambridgeshire County Council,23-Nov-18,51300540000,"-2,977.44",DECOY FARM,CARE ESTABLISHMENT,LD - East Locality,LD - East Cambs - Special Needs,Residential Care
Cambridgeshire County Council,23-Nov-18,51300553960,"-2,977.44",DECOY FARM,CARE ESTABLISHMENT,LD - East Locality,LD - East Cambs - Special Needs,Residential Care
Cambridgeshire County Council,23-Nov-18,51300553945,"-2,977.44",DECOY FARM,CARE ESTABLISHMENT,LD - East Locality,LD - East Cambs - Special Needs,Residential Care
Cambridgeshire County Council,23-Nov-18,51300554047,"-2,977.44",DECOY FARM,CARE ESTABLISHMENT,LD - East Locality,LD - East Cambs - Special Needs,Residential Care
Cambridgeshire County Council,23-Nov-18,51300554003,"-2,977.44",DECOY FARM,CARE ESTABLISHMENT,LD - East Locality,LD - East Cambs - Special Needs,Residential Care
Cambridgeshire County Council,23-Nov-18,51300539923,"-2,977.44",DECOY FARM,CARE ESTABLISHMENT,LD - East Locality,LD - East Cambs - Special Needs,Residential Care
Cambridgeshire County Council,23-Nov-18,51300554027,"-2,977.44",DECOY FARM,CARE ESTABLISHMENT,LD - East Locality,LD - East Cambs - Special Needs,Residential Care
Cambridgeshire County Council,23-Nov-18,51300554009,"-2,977.44",DECOY FARM,CARE ESTABLISHMENT,LD - East Locality,LD - East Cambs - Special Needs,Residential Care
Cambridgeshire County Council,23-Nov-18,51300553902,"-2,977.44",DECOY FARM,CARE ESTABLISHMENT,LD - East Locality,LD - East Cambs - Special Needs,Residential Care
Cambridgeshire County Council,23-Nov-18,51300553911,"-2,977.44",DECOY FARM,CARE ESTABLISHMENT,LD - East Locality,LD - East Cambs - Special Needs,Residential Care
Cambridgeshire County Council,23-Nov-18,51300511610,"-2,977.44",DECOY FARM,CARE ESTABLISHMENT,LD - East Locality,LD - East Cambs - Special Needs,Residential Care
Cambridgeshire County Council,23-Nov-18,51300539976,"-2,977.44",DECOY FARM,CARE ESTABLISHMENT,LD - East Locality,LD - East Cambs - Special Needs,Residential Care
Cambridgeshire County Council,23-Nov-18,51300539888,"-2,977.44",DECOY FARM,CARE ESTABLISHMENT,LD - East Locality,LD - East Cambs - Special Needs,Residential Care
Cambridgeshire County Council,23-Nov-18,51300554016,"-2,977.44",DECOY FARM,CARE ESTABLISHMENT,LD - East Locality,LD - East Cambs - Special Needs,Residential Care
Cambridgeshire County Council,23-Nov-18,51300539974,"-2,977.44",DECOY FARM,CARE ESTABLISHMENT,LD - East Locality,LD - East Cambs - Special Needs,Residential Care
Cambridgeshire County Council,23-Nov-18,51300553909,"-2,977.44",DECOY FARM,CARE ESTABLISHMENT,LD - East Locality,LD - East Cambs - Special Needs,Residential Care
Cambridgeshire County Council,23-Nov-18,51300511631,"-2,977.44",DECOY FARM,CARE ESTABLISHMENT,LD - East Locality,LD - East Cambs - Special Needs,Residential Care
Cambridgeshire County Council,23-Nov-18,51300511554,"-2,977.44",DECOY FARM,CARE ESTABLISHMENT,LD - East Locality,LD - East Cambs - Special Needs,Residential Care
Cambridgeshire County Council,23-Nov-18,51300511662,"-2,977.44",DECOY FARM,CARE ESTABLISHMENT,LD - East Locality,LD - East Cambs - Special Needs,Residential Care
Cambridgeshire County Council,23-Nov-18,51300511619,"-2,977.44",DECOY FARM,CARE ESTABLISHMENT,LD - East Locality,LD - East Cambs - Special Needs,Residential Care
Cambridgeshire County Council,23-Nov-18,51300553966,"-2,977.44",DECOY FARM,CARE ESTABLISHMENT,LD - East Locality,LD - East Cambs - Special Needs,Residential Care
Cambridgeshire County Council,23-Nov-18,51300553937,"-2,977.44",DECOY FARM,CARE ESTABLISHMENT,LD - East Locality,LD - East Cambs - Special Needs,Residential Care
Cambridgeshire County Council,23-Nov-18,51300539978,"-2,977.44",DECOY FARM,CARE ESTABLISHMENT,LD - East Locality,LD - East Cambs - Special Needs,Residential Care
Cambridgeshire County Council,23-Nov-18,51300553897,"-2,977.44",DECOY FARM,CARE ESTABLISHMENT,LD - East Locality,LD - East Cambs - Special Needs,Residential Care
Cambridgeshire County Council,23-Nov-18,51300539947,"-2,977.44",DECOY FARM,CARE ESTABLISHMENT,LD - East Locality,LD - East Cambs - Special Needs,Residential Care
Cambridgeshire County Council,23-Nov-18,51300540004,"-2,977.44",DECOY FARM,CARE ESTABLISHMENT,LD - East Locality,LD - East Cambs - Special Needs,Residential Care
Cambridgeshire County Council,23-Nov-18,51300539971,"-2,977.44",DECOY FARM,CARE ESTABLISHMENT,LD - East Locality,LD - East Cambs - Special Needs,Residential Care
Cambridgeshire County Council,23-Nov-18,51300511561,"-2,977.44",DECOY FARM,CARE ESTABLISHMENT,LD - East Locality,LD - East Cambs - Special Needs,Residential Care
Cambridgeshire County Council,23-Nov-18,51300511527,"-2,977.44",DECOY FARM,CARE ESTABLISHMENT,LD - East Locality,LD - East Cambs - Special Needs,Residential Care
Cambridgeshire County Council,23-Nov-18,51300553993,"-2,977.44",DECOY FARM,CARE ESTABLISHMENT,LD - East Locality,LD - East Cambs - Special Needs,Residential Care
Cambridgeshire County Council,23-Nov-18,51300539870,"-2,977.44",DECOY FARM,CARE ESTABLISHMENT,LD - East Locality,LD - East Cambs - Special Needs,Residential Care
Cambridgeshire County Council,23-Nov-18,51300554045,"-2,977.44",DECOY FARM,CARE ESTABLISHMENT,LD - East Locality,LD - East Cambs - Special Needs,Residential Care
Cambridgeshire County Council,23-Nov-18,51300539933,"-2,977.44",DECOY FARM,CARE ESTABLISHMENT,LD - East Locality,LD - East Cambs - Special Needs,Residential Care
Cambridgeshire County Council,23-Nov-18,51300511530,"-2,977.44",DECOY FARM,CARE ESTABLISHMENT,LD - East Locality,LD - East Cambs - Special Needs,Residential Care
Cambridgeshire County Council,23-Nov-18,51300539969,"-2,977.44",DECOY FARM,CARE ESTABLISHMENT,LD - East Locality,LD - East Cambs - Special Needs,Residential Care
Cambridgeshire County Council,23-Nov-18,51300553944,"-2,977.44",DECOY FARM,CARE ESTABLISHMENT,LD - East Locality,LD - East Cambs - Special Needs,Residential Care
Cambridgeshire County Council,23-Nov-18,51300511656,"-2,977.44",DECOY FARM,CARE ESTABLISHMENT,LD - East Locality,LD - East Cambs - Special Needs,Residential Care
Cambridgeshire County Council,23-Nov-18,51300511503,"-2,977.44",DECOY FARM,CARE ESTABLISHMENT,LD - East Locality,LD - East Cambs - Special Needs,Residential Care
Cambridgeshire County Council,23-Nov-18,51300539951,"-2,977.44",DECOY FARM,CARE ESTABLISHMENT,LD - East Locality,LD - East Cambs - Special Needs,Residential Care
Cambridgeshire County Council,23-Nov-18,51300539857,"-2,977.44",DECOY FARM,CARE ESTABLISHMENT,LD - East Locality,LD - East Cambs - Special Needs,Residential Care
Cambridgeshire County Council,23-Nov-18,51300539872,"-2,977.44",DECOY FARM,CARE ESTABLISHMENT,LD - East Locality,LD - East Cambs - Special Needs,Residential Care
Cambridgeshire County Council,23-Nov-18,51300539910,"-2,977.44",DECOY FARM,CARE ESTABLISHMENT,LD - East Locality,LD - East Cambs - Special Needs,Residential Care
Cambridgeshire County Council,23-Nov-18,51300554034,"-2,977.44",DECOY FARM,CARE ESTABLISHMENT,LD - East Locality,LD - East Cambs - Special Needs,Residential Care
Cambridgeshire County Council,23-Nov-18,51300511626,"-2,977.44",DECOY FARM,CARE ESTABLISHMENT,LD - East Locality,LD - East Cambs - Special Needs,Residential Care
Cambridgeshire County Council,23-Nov-18,51300511612,"-2,977.44",DECOY FARM,CARE ESTABLISHMENT,LD - East Locality,LD - East Cambs - Special Needs,Residential Care
Cambridgeshire County Council,23-Nov-18,51300511552,"-2,977.44",DECOY FARM,CARE ESTABLISHMENT,LD - East Locality,LD - East Cambs - Special Needs,Residential Care
Cambridgeshire County Council,23-Nov-18,51300511647,"-2,977.44",DECOY FARM,CARE ESTABLISHMENT,LD - East Locality,LD - East Cambs - Special Needs,Residential Care
Cambridgeshire County Council,23-Nov-18,51300539983,"-2,977.44",DECOY FARM,CARE ESTABLISHMENT,LD - East Locality,LD - East Cambs - Special Needs,Residential Care
Cambridgeshire County Council,23-Nov-18,51300553927,"-2,977.44",DECOY FARM,CARE ESTABLISHMENT,LD - East Locality,LD - East Cambs - Special Needs,Residential Care
Cambridgeshire County Council,23-Nov-18,51300554046,"-2,977.44",DECOY FARM,CARE ESTABLISHMENT,LD - East Locality,LD - East Cambs - Special Needs,Residential Care
Cambridgeshire County Council,23-Nov-18,51300554011,"-2,977.44",DECOY FARM,CARE ESTABLISHMENT,LD - East Locality,LD - East Cambs - Special Needs,Residential Care
Cambridgeshire County Council,23-Nov-18,51300511615,"-2,977.44",DECOY FARM,CARE ESTABLISHMENT,LD - East Locality,LD - East Cambs - Special Needs,Residential Care
Cambridgeshire County Council,23-Nov-18,51300511549,"-2,977.44",DECOY FARM,CARE ESTABLISHMENT,LD - East Locality,LD - East Cambs - Special Needs,Residential Care
Cambridgeshire County Council,23-Nov-18,51300511559,"-2,977.44",DECOY FARM,CARE ESTABLISHMENT,LD - East Locality,LD - East Cambs - Special Needs,Residential Care
Cambridgeshire County Council,23-Nov-18,51300511560,"-2,977.44",DECOY FARM,CARE ESTABLISHMENT,LD - East Locality,LD - East Cambs - Special Needs,Residential Care
Cambridgeshire County Council,23-Nov-18,51300539961,"-2,977.44",DECOY FARM,CARE ESTABLISHMENT,LD - East Locality,LD - East Cambs - Special Needs,Residential Care
Cambridgeshire County Council,23-Nov-18,51300539966,"-2,977.44",DECOY FARM,CARE ESTABLISHMENT,LD - East Locality,LD - East Cambs - Special Needs,Residential Care
Cambridgeshire County Council,23-Nov-18,51300539992,"-2,977.44",DECOY FARM,CARE ESTABLISHMENT,LD - East Locality,LD - East Cambs - Special Needs,Residential Care
Cambridgeshire County Council,23-Nov-18,51300539884,"-2,977.44",DECOY FARM,CARE ESTABLISHMENT,LD - East Locality,LD - East Cambs - Special Needs,Residential Care
Cambridgeshire County Council,23-Nov-18,51300553889,"-2,977.44",DECOY FARM,CARE ESTABLISHMENT,LD - East Locality,LD - East Cambs - Special Needs,Residential Care
Cambridgeshire County Council,23-Nov-18,51300553957,"-2,977.44",DECOY FARM,CARE ESTABLISHMENT,LD - East Locality,LD - East Cambs - Special Needs,Residential Care
Cambridgeshire County Council,23-Nov-18,51300554043,"-2,977.44",DECOY FARM,CARE ESTABLISHMENT,LD - East Locality,LD - East Cambs - Special Needs,Residential Care
Cambridgeshire County Council,23-Nov-18,51300511590,"-2,977.44",DECOY FARM,CARE ESTABLISHMENT,LD - East Locality,LD - East Cambs - Special Needs,Residential Care
Cambridgeshire County Council,23-Nov-18,51300539939,"-2,977.44",DECOY FARM,CARE ESTABLISHMENT,LD - East Locality,LD - East Cambs - Special Needs,Residential Care
Cambridgeshire County Council,23-Nov-18,51300539901,"-2,977.44",DECOY FARM,CARE ESTABLISHMENT,LD - East Locality,LD - East Cambs - Special Needs,Residential Care
Cambridgeshire County Council,23-Nov-18,51300539977,"-2,977.44",DECOY FARM,CARE ESTABLISHMENT,LD - East Locality,LD - East Cambs - Special Needs,Residential Care
Cambridgeshire County Council,23-Nov-18,51300539995,"-2,977.44",DECOY FARM,CARE ESTABLISHMENT,LD - East Locality,LD - East Cambs - Special Needs,Residential Care
Cambridgeshire County Council,23-Nov-18,51300539984,"-2,977.44",DECOY FARM,CARE ESTABLISHMENT,LD - East Locality,LD - East Cambs - Special Needs,Residential Care
Cambridgeshire County Council,23-Nov-18,51300511607,"-2,977.44",DECOY FARM,CARE ESTABLISHMENT,LD - East Locality,LD - East Cambs - Special Needs,Residential Care
Cambridgeshire County Council,23-Nov-18,51300553955,"-2,977.44",DECOY FARM,CARE ESTABLISHMENT,LD - East Locality,LD - East Cambs - Special Needs,Residential Care
Cambridgeshire County Council,23-Nov-18,51300511654,"-2,977.44",DECOY FARM,CARE ESTABLISHMENT,LD - East Locality,LD - East Cambs - Special Needs,Residential Care
Cambridgeshire County Council,23-Nov-18,51300511636,"-2,977.44",DECOY FARM,CARE ESTABLISHMENT,LD - East Locality,LD - East Cambs - Special Needs,Residential Care
Cambridgeshire County Council,23-Nov-18,51300511596,"-2,977.44",DECOY FARM,CARE ESTABLISHMENT,LD - East Locality,LD - East Cambs - Special Needs,Residential Care
Cambridgeshire County Council,23-Nov-18,51300511670,"-2,977.44",DECOY FARM,CARE ESTABLISHMENT,LD - East Locality,LD - East Cambs - Special Needs,Residential Care
Cambridgeshire County Council,23-Nov-18,51300539949,"-2,977.44",DECOY FARM,CARE ESTABLISHMENT,LD - East Locality,LD - East Cambs - Special Needs,Residential Care
Cambridgeshire County Council,23-Nov-18,51300554017,"-2,977.44",DECOY FARM,CARE ESTABLISHMENT,LD - East Locality,LD - East Cambs - Special Needs,Residential Care
Cambridgeshire County Council,23-Nov-18,51300553949,"-2,977.44",DECOY FARM,CARE ESTABLISHMENT,LD - East Locality,LD - East Cambs - Special Needs,Residential Care
Cambridgeshire County Council,23-Nov-18,51300553996,"-2,977.44",DECOY FARM,CARE ESTABLISHMENT,LD - East Locality,LD - East Cambs - Special Needs,Residential Care
Cambridgeshire County Council,23-Nov-18,51300554014,"-2,977.44",DECOY FARM,CARE ESTABLISHMENT,LD - East Locality,LD - East Cambs - Special Needs,Residential Care
Cambridgeshire County Council,23-Nov-18,51300553923,"-2,977.44",DECOY FARM,CARE ESTABLISHMENT,LD - East Locality,LD - East Cambs - Special Needs,Residential Care
Cambridgeshire County Council,23-Nov-18,51300553930,"-2,977.44",DECOY FARM,CARE ESTABLISHMENT,LD - East Locality,LD - East Cambs - Special Needs,Residential Care
Cambridgeshire County Council,23-Nov-18,51300539883,"-2,977.44",DECOY FARM,CARE ESTABLISHMENT,LD - East Locality,LD - East Cambs - Special Needs,Residential Care
Cambridgeshire County Council,23-Nov-18,51300511542,"-2,977.44",DECOY FARM,CARE ESTABLISHMENT,LD - East Locality,LD - East Cambs - Special Needs,Residential Care
Cambridgeshire County Council,23-Nov-18,51300511637,"-2,977.44",DECOY FARM,CARE ESTABLISHMENT,LD - East Locality,LD - East Cambs - Special Needs,Residential Care
Cambridgeshire County Council,23-Nov-18,51300511511,"-2,977.44",DECOY FARM,CARE ESTABLISHMENT,LD - East Locality,LD - East Cambs - Special Needs,Residential Care
Cambridgeshire County Council,23-Nov-18,51300511555,"-2,977.44",DECOY FARM,CARE ESTABLISHMENT,LD - East Locality,LD - East Cambs - Special Needs,Residential Care
Cambridgeshire County Council,23-Nov-18,51300511595,"-2,977.44",DECOY FARM,CARE ESTABLISHMENT,LD - East Locality,LD - East Cambs - Special Needs,Residential Care
Cambridgeshire County Council,23-Nov-18,51300511558,"-2,977.44",DECOY FARM,CARE ESTABLISHMENT,LD - East Locality,LD - East Cambs - Special Needs,Residential Care
Cambridgeshire County Council,23-Nov-18,51300539877,"-2,977.44",DECOY FARM,CARE ESTABLISHMENT,LD - East Locality,LD - East Cambs - Special Needs,Residential Care
Cambridgeshire County Council,23-Nov-18,51300539874,"-2,977.44",DECOY FARM,CARE ESTABLISHMENT,LD - East Locality,LD - East Cambs - Special Needs,Residential Care
Cambridgeshire County Council,23-Nov-18,51300539878,"-2,977.44",DECOY FARM,CARE ESTABLISHMENT,LD - East Locality,LD - East Cambs - Special Needs,Residential Care
Cambridgeshire County Council,23-Nov-18,51300539912,"-2,977.44",DECOY FARM,CARE ESTABLISHMENT,LD - East Locality,LD - East Cambs - Special Needs,Residential Care
Cambridgeshire County Council,23-Nov-18,51300539863,"-2,977.44",DECOY FARM,CARE ESTABLISHMENT,LD - East Locality,LD - East Cambs - Special Needs,Residential Care
Cambridgeshire County Council,23-Nov-18,51300511643,"-2,977.44",DECOY FARM,CARE ESTABLISHMENT,LD - East Locality,LD - East Cambs - Special Needs,Residential Care
Cambridgeshire County Council,23-Nov-18,51300511667,"-2,977.44",DECOY FARM,CARE ESTABLISHMENT,LD - East Locality,LD - East Cambs - Special Needs,Residential Care
Cambridgeshire County Council,23-Nov-18,51300539994,"-2,977.44",DECOY FARM,CARE ESTABLISHMENT,LD - East Locality,LD - East Cambs - Special Needs,Residential Care
Cambridgeshire County Council,23-Nov-18,51300511514,"-2,977.44",DECOY FARM,CARE ESTABLISHMENT,LD - East Locality,LD - East Cambs - Special Needs,Residential Care
Cambridgeshire County Council,23-Nov-18,51300511577,"-2,977.44",DECOY FARM,CARE ESTABLISHMENT,LD - East Locality,LD - East Cambs - Special Needs,Residential Care
Cambridgeshire County Council,23-Nov-18,51300539914,"-2,977.44",DECOY FARM,CARE ESTABLISHMENT,LD - East Locality,LD - East Cambs - Special Needs,Residential Care
Cambridgeshire County Council,23-Nov-18,51300511553,"-2,977.44",DECOY FARM,CARE ESTABLISHMENT,LD - East Locality,LD - East Cambs - Special Needs,Residential Care
Cambridgeshire County Council,23-Nov-18,51300511574,"-2,977.44",DECOY FARM,CARE ESTABLISHMENT,LD - East Locality,LD - East Cambs - Special Needs,Residential Care
Cambridgeshire County Council,23-Nov-18,51300511658,"-2,977.44",DECOY FARM,CARE ESTABLISHMENT,LD - East Locality,LD - East Cambs - Special Needs,Residential Care
Cambridgeshire County Council,23-Nov-18,51300511608,"-2,977.44",DECOY FARM,CARE ESTABLISHMENT,LD - East Locality,LD - East Cambs - Special Needs,Residential Care
Cambridgeshire County Council,23-Nov-18,51300511533,"-2,977.44",DECOY FARM,CARE ESTABLISHMENT,LD - East Locality,LD - East Cambs - Special Needs,Residential Care
Cambridgeshire County Council,23-Nov-18,51300553917,"-2,977.44",DECOY FARM,CARE ESTABLISHMENT,LD - East Locality,LD - East Cambs - Special Needs,Residential Care
Cambridgeshire County Council,23-Nov-18,51300539953,"-2,977.44",DECOY FARM,CARE ESTABLISHMENT,LD - East Locality,LD - East Cambs - Special Needs,Residential Care
Cambridgeshire County Council,23-Nov-18,51300539905,"-2,977.44",DECOY FARM,CARE ESTABLISHMENT,LD - East Locality,LD - East Cambs - Special Needs,Residential Care
Cambridgeshire County Council,23-Nov-18,51300539876,"-2,977.44",DECOY FARM,CARE ESTABLISHMENT,LD - East Locality,LD - East Cambs - Special Needs,Residential Care
Cambridgeshire County Council,23-Nov-18,51300511623,"-2,977.44",DECOY FARM,CARE ESTABLISHMENT,LD - East Locality,LD - East Cambs - Special Needs,Residential Care
Cambridgeshire County Council,23-Nov-18,51300539967,"-2,977.44",DECOY FARM,CARE ESTABLISHMENT,LD - East Locality,LD - East Cambs - Special Needs,Residential Care
Cambridgeshire County Council,23-Nov-18,51300511576,"-2,977.44",DECOY FARM,CARE ESTABLISHMENT,LD - East Locality,LD - East Cambs - Special Needs,Residential Care
Cambridgeshire County Council,23-Nov-18,51300539927,"-2,977.44",DECOY FARM,CARE ESTABLISHMENT,LD - East Locality,LD - East Cambs - Special Needs,Residential Care
Cambridgeshire County Council,23-Nov-18,51300539871,"-2,977.44",DECOY FARM,CARE ESTABLISHMENT,LD - East Locality,LD - East Cambs - Special Needs,Residential Care
Cambridgeshire County Council,23-Nov-18,51300511513,"-2,977.44",DECOY FARM,CARE ESTABLISHMENT,LD - East Locality,LD - East Cambs - Special Needs,Residential Care
Cambridgeshire County Council,23-Nov-18,51300511598,"-2,977.44",DECOY FARM,CARE ESTABLISHMENT,LD - East Locality,LD - East Cambs - Special Needs,Residential Care
Cambridgeshire County Council,23-Nov-18,51300511659,"-2,977.44",DECOY FARM,CARE ESTABLISHMENT,LD - East Locality,LD - East Cambs - Special Needs,Residential Care
Cambridgeshire County Council,23-Nov-18,51300511622,"-2,977.44",DECOY FARM,CARE ESTABLISHMENT,LD - East Locality,LD - East Cambs - Special Needs,Residential Care
Cambridgeshire County Council,23-Nov-18,51300511565,"-2,977.44",DECOY FARM,CARE ESTABLISHMENT,LD - East Locality,LD - East Cambs - Special Needs,Residential Care
Cambridgeshire County Council,23-Nov-18,51300511569,"-2,977.44",DECOY FARM,CARE ESTABLISHMENT,LD - East Locality,LD - East Cambs - Special Needs,Residential Care
Cambridgeshire County Council,23-Nov-18,51300539904,"-2,977.44",DECOY FARM,CARE ESTABLISHMENT,LD - East Locality,LD - East Cambs - Special Needs,Residential Care
Cambridgeshire County Council,23-Nov-18,51300539987,"-2,977.44",DECOY FARM,CARE ESTABLISHMENT,LD - East Locality,LD - East Cambs - Special Needs,Residential Care
Cambridgeshire County Council,23-Nov-18,51300539955,"-2,977.44",DECOY FARM,CARE ESTABLISHMENT,LD - East Locality,LD - East Cambs - Special Needs,Residential Care
Cambridgeshire County Council,23-Nov-18,51300539867,"-2,977.44",DECOY FARM,CARE ESTABLISHMENT,LD - East Locality,LD - East Cambs - Special Needs,Residential Care
Cambridgeshire County Council,23-Nov-18,51300511644,"-2,977.44",DECOY FARM,CARE ESTABLISHMENT,LD - East Locality,LD - East Cambs - Special Needs,Residential Care
Cambridgeshire County Council,23-Nov-18,51300511563,"-2,977.44",DECOY FARM,CARE ESTABLISHMENT,LD - East Locality,LD - East Cambs - Special Needs,Residential Care
Cambridgeshire County Council,23-Nov-18,51300539968,"-2,977.44",DECOY FARM,CARE ESTABLISHMENT,LD - East Locality,LD - East Cambs - Special Needs,Residential Care
Cambridgeshire County Council,23-Nov-18,51300539865,"-2,977.44",DECOY FARM,CARE ESTABLISHMENT,LD - East Locality,LD - East Cambs - Special Needs,Residential Care
Cambridgeshire County Council,23-Nov-18,51300539885,"-2,977.44",DECOY FARM,CARE ESTABLISHMENT,LD - East Locality,LD - East Cambs - Special Needs,Residential Care
Cambridgeshire County Council,23-Nov-18,51300553941,"-2,977.44",DECOY FARM,CARE ESTABLISHMENT,LD - East Locality,LD - East Cambs - Special Needs,Residential Care
Cambridgeshire County Council,23-Nov-18,51300553970,"-2,977.44",DECOY FARM,CARE ESTABLISHMENT,LD - East Locality,LD - East Cambs - Special Needs,Residential Care
Cambridgeshire County Council,23-Nov-18,51300553958,"-2,977.44",DECOY FARM,CARE ESTABLISHMENT,LD - East Locality,LD - East Cambs - Special Needs,Residential Care
Cambridgeshire County Council,23-Nov-18,51300511668,"-2,977.44",DECOY FARM,CARE ESTABLISHMENT,LD - East Locality,LD - East Cambs - Special Needs,Residential Care
Cambridgeshire County Council,23-Nov-18,51300511505,"-2,977.44",DECOY FARM,CARE ESTABLISHMENT,LD - East Locality,LD - East Cambs - Special Needs,Residential Care
Cambridgeshire County Council,23-Nov-18,51300539932,"-2,977.44",DECOY FARM,CARE ESTABLISHMENT,LD - East Locality,LD - East Cambs - Special Needs,Residential Care
Cambridgeshire County Council,23-Nov-18,51300553956,"-2,977.44",DECOY FARM,CARE ESTABLISHMENT,LD - East Locality,LD - East Cambs - Special Needs,Residential Care
Cambridgeshire County Council,23-Nov-18,51300554000,"-2,977.44",DECOY FARM,CARE ESTABLISHMENT,LD - East Locality,LD - East Cambs - Special Needs,Residential Care
Cambridgeshire County Council,23-Nov-18,51300554029,"-2,977.44",DECOY FARM,CARE ESTABLISHMENT,LD - East Locality,LD - East Cambs - Special Needs,Residential Care
Cambridgeshire County Council,23-Nov-18,51300553973,"-2,977.44",DECOY FARM,CARE ESTABLISHMENT,LD - East Locality,LD - East Cambs - Special Needs,Residential Care
Cambridgeshire County Council,23-Nov-18,51300554041,"-2,977.44",DECOY FARM,CARE ESTABLISHMENT,LD - East Locality,LD - East Cambs - Special Needs,Residential Care
Cambridgeshire County Council,23-Nov-18,51300553928,"-2,977.44",DECOY FARM,CARE ESTABLISHMENT,LD - East Locality,LD - East Cambs - Special Needs,Residential Care
Cambridgeshire County Council,23-Nov-18,51300554008,"-2,977.44",DECOY FARM,CARE ESTABLISHMENT,LD - East Locality,LD - East Cambs - Special Needs,Residential Care
Cambridgeshire County Council,23-Nov-18,51300553994,"-2,977.44",DECOY FARM,CARE ESTABLISHMENT,LD - East Locality,LD - East Cambs - Special Needs,Residential Care
Cambridgeshire County Council,23-Nov-18,51300553932,"-2,977.44",DECOY FARM,CARE ESTABLISHMENT,LD - East Locality,LD - East Cambs - Special Needs,Residential Care
Cambridgeshire County Council,23-Nov-18,51300553948,"-2,977.44",DECOY FARM,CARE ESTABLISHMENT,LD - East Locality,LD - East Cambs - Special Needs,Residential Care
Cambridgeshire County Council,23-Nov-18,51300511564,"-2,977.44",DECOY FARM,CARE ESTABLISHMENT,LD - East Locality,LD - East Cambs - Special Needs,Residential Care
Cambridgeshire County Council,23-Nov-18,51300539928,"-2,977.44",DECOY FARM,CARE ESTABLISHMENT,LD - East Locality,LD - East Cambs - Special Needs,Residential Care
Cambridgeshire County Council,23-Nov-18,51300539934,"-2,977.44",DECOY FARM,CARE ESTABLISHMENT,LD - East Locality,LD - East Cambs - Special Needs,Residential Care
Cambridgeshire County Council,23-Nov-18,51300539897,"-2,977.44",DECOY FARM,CARE ESTABLISHMENT,LD - East Locality,LD - East Cambs - Special Needs,Residential Care
Cambridgeshire County Council,23-Nov-18,51300553979,"-2,977.44",DECOY FARM,CARE ESTABLISHMENT,LD - East Locality,LD - East Cambs - Special Needs,Residential Care
Cambridgeshire County Council,23-Nov-18,51300511546,"-2,977.44",DECOY FARM,CARE ESTABLISHMENT,LD - East Locality,LD - East Cambs - Special Needs,Residential Care
Cambridgeshire County Council,23-Nov-18,51300511621,"-2,977.44",DECOY FARM,CARE ESTABLISHMENT,LD - East Locality,LD - East Cambs - Special Needs,Residential Care
Cambridgeshire County Council,23-Nov-18,51300539906,"-2,977.44",DECOY FARM,CARE ESTABLISHMENT,LD - East Locality,LD - East Cambs - Special Needs,Residential Care
Cambridgeshire County Council,23-Nov-18,51300539980,"-2,977.44",DECOY FARM,CARE ESTABLISHMENT,LD - East Locality,LD - East Cambs - Special Needs,Residential Care
Cambridgeshire County Council,23-Nov-18,51300553894,"-2,977.44",DECOY FARM,CARE ESTABLISHMENT,LD - East Locality,LD - East Cambs - Special Needs,Residential Care
Cambridgeshire County Council,23-Nov-18,51300553972,"-2,977.44",DECOY FARM,CARE ESTABLISHMENT,LD - East Locality,LD - East Cambs - Special Needs,Residential Care
Cambridgeshire County Council,23-Nov-18,51300539902,"-2,977.44",DECOY FARM,CARE ESTABLISHMENT,LD - East Locality,LD - East Cambs - Special Needs,Residential Care
Cambridgeshire County Council,23-Nov-18,51300553913,"-2,977.44",DECOY FARM,CARE ESTABLISHMENT,LD - East Locality,LD - East Cambs - Special Needs,Residential Care
Cambridgeshire County Council,23-Nov-18,51300553907,"-2,977.44",DECOY FARM,CARE ESTABLISHMENT,LD - East Locality,LD - East Cambs - Special Needs,Residential Care
Cambridgeshire County Council,23-Nov-18,51300553968,"-2,977.44",DECOY FARM,CARE ESTABLISHMENT,LD - East Locality,LD - East Cambs - Special Needs,Residential Care
Cambridgeshire County Council,23-Nov-18,51300539893,"-2,977.44",DECOY FARM,CARE ESTABLISHMENT,LD - East Locality,LD - East Cambs - Special Needs,Residential Care
Cambridgeshire County Council,23-Nov-18,51300540005,"-2,977.44",DECOY FARM,CARE ESTABLISHMENT,LD - East Locality,LD - East Cambs - Special Needs,Residential Care
Cambridgeshire County Council,23-Nov-18,51300511519,"-2,977.44",DECOY FARM,CARE ESTABLISHMENT,LD - East Locality,LD - East Cambs - Special Needs,Residential Care
Cambridgeshire County Council,23-Nov-18,51300511528,"-2,977.44",DECOY FARM,CARE ESTABLISHMENT,LD - East Locality,LD - East Cambs - Special Needs,Residential Care
Cambridgeshire County Council,23-Nov-18,51300554007,"-2,977.44",DECOY FARM,CARE ESTABLISHMENT,LD - East Locality,LD - East Cambs - Special Needs,Residential Care
Cambridgeshire County Council,23-Nov-18,51300554030,"-2,977.44",DECOY FARM,CARE ESTABLISHMENT,LD - East Locality,LD - East Cambs - Special Needs,Residential Care
Cambridgeshire County Council,23-Nov-18,51300554025,"-2,977.44",DECOY FARM,CARE ESTABLISHMENT,LD - East Locality,LD - East Cambs - Special Needs,Residential Care
Cambridgeshire County Council,23-Nov-18,51300553899,"-2,977.44",DECOY FARM,CARE ESTABLISHMENT,LD - East Locality,LD - East Cambs - Special Needs,Residential Care
Cambridgeshire County Council,23-Nov-18,51300553908,"-2,977.44",DECOY FARM,CARE ESTABLISHMENT,LD - East Locality,LD - East Cambs - Special Needs,Residential Care
Cambridgeshire County Council,23-Nov-18,51300554013,"-2,977.44",DECOY FARM,CARE ESTABLISHMENT,LD - East Locality,LD - East Cambs - Special Needs,Residential Care
Cambridgeshire County Council,23-Nov-18,51300554022,"-2,977.44",DECOY FARM,CARE ESTABLISHMENT,LD - East Locality,LD - East Cambs - Special Needs,Residential Care
Cambridgeshire County Council,23-Nov-18,51300553935,"-2,977.44",DECOY FARM,CARE ESTABLISHMENT,LD - East Locality,LD - East Cambs - Special Needs,Residential Care
Cambridgeshire County Council,29-Nov-18,51300565911,"-2,977.44",DECOY FARM,CARE ESTABLISHMENT,LD - East Locality,LD - East Cambs - Special Needs,Residential Care
Cambridgeshire County Council,29-Nov-18,51300565796,"-2,977.44",DECOY FARM,CARE ESTABLISHMENT,LD - East Locality,LD - East Cambs - Special Needs,Residential Care
Cambridgeshire County Council,29-Nov-18,51300565822,"-2,977.44",DECOY FARM,CARE ESTABLISHMENT,LD - East Locality,LD - East Cambs - Special Needs,Residential Care
Cambridgeshire County Council,29-Nov-18,51300565800,"-2,977.44",DECOY FARM,CARE ESTABLISHMENT,LD - East Locality,LD - East Cambs - Special Needs,Residential Care
Cambridgeshire County Council,29-Nov-18,51300565880,"-2,977.44",DECOY FARM,CARE ESTABLISHMENT,LD - East Locality,LD - East Cambs - Special Needs,Residential Care
Cambridgeshire County Council,29-Nov-18,51300565917,"-2,977.44",DECOY FARM,CARE ESTABLISHMENT,LD - East Locality,LD - East Cambs - Special Needs,Residential Care
Cambridgeshire County Council,29-Nov-18,51300565831,"-2,977.44",DECOY FARM,CARE ESTABLISHMENT,LD - East Locality,LD - East Cambs - Special Needs,Residential Care
Cambridgeshire County Council,29-Nov-18,51300565885,"-2,977.44",DECOY FARM,CARE ESTABLISHMENT,LD - East Locality,LD - East Cambs - Special Needs,Residential Care
Cambridgeshire County Council,29-Nov-18,51300565864,"-2,977.44",DECOY FARM,CARE ESTABLISHMENT,LD - East Locality,LD - East Cambs - Special Needs,Residential Care
Cambridgeshire County Council,29-Nov-18,51300565846,"-2,977.44",DECOY FARM,CARE ESTABLISHMENT,LD - East Locality,LD - East Cambs - Special Needs,Residential Care
Cambridgeshire County Council,29-Nov-18,51300565936,"-2,977.44",DECOY FARM,CARE ESTABLISHMENT,LD - East Locality,LD - East Cambs - Special Needs,Residential Care
Cambridgeshire County Council,29-Nov-18,51300565875,"-2,977.44",DECOY FARM,CARE ESTABLISHMENT,LD - East Locality,LD - East Cambs - Special Needs,Residential Care
Cambridgeshire County Council,29-Nov-18,51300565913,"-2,977.44",DECOY FARM,CARE ESTABLISHMENT,LD - East Locality,LD - East Cambs - Special Needs,Residential Care
Cambridgeshire County Council,29-Nov-18,51300565865,"-2,977.44",DECOY FARM,CARE ESTABLISHMENT,LD - East Locality,LD - East Cambs - Special Needs,Residential Care
Cambridgeshire County Council,29-Nov-18,51300565808,"-2,977.44",DECOY FARM,CARE ESTABLISHMENT,LD - East Locality,LD - East Cambs - Special Needs,Residential Care
Cambridgeshire County Council,29-Nov-18,51300565894,"-2,977.44",DECOY FARM,CARE ESTABLISHMENT,LD - East Locality,LD - East Cambs - Special Needs,Residential Care
Cambridgeshire County Council,29-Nov-18,51300565928,"-2,977.44",DECOY FARM,CARE ESTABLISHMENT,LD - East Locality,LD - East Cambs - Special Needs,Residential Care
Cambridgeshire County Council,29-Nov-18,51300565844,"-2,977.44",DECOY FARM,CARE ESTABLISHMENT,LD - East Locality,LD - East Cambs - Special Needs,Residential Care
Cambridgeshire County Council,29-Nov-18,51300565823,"-2,977.44",DECOY FARM,CARE ESTABLISHMENT,LD - East Locality,LD - East Cambs - Special Needs,Residential Care
Cambridgeshire County Council,29-Nov-18,51300565858,"-2,977.44",DECOY FARM,CARE ESTABLISHMENT,LD - East Locality,LD - East Cambs - Special Needs,Residential Care
Cambridgeshire County Council,29-Nov-18,51300565905,"-2,977.44",DECOY FARM,CARE ESTABLISHMENT,LD - East Locality,LD - East Cambs - Special Needs,Residential Care
Cambridgeshire County Council,29-Nov-18,51300565794,"-2,977.44",DECOY FARM,CARE ESTABLISHMENT,LD - East Locality,LD - East Cambs - Special Needs,Residential Care
Cambridgeshire County Council,29-Nov-18,51300565826,"-2,977.44",DECOY FARM,CARE ESTABLISHMENT,LD - East Locality,LD - East Cambs - Special Needs,Residential Care
Cambridgeshire County Council,29-Nov-18,51300565891,"-2,977.44",DECOY FARM,CARE ESTABLISHMENT,LD - East Locality,LD - East Cambs - Special Needs,Residential Care
Cambridgeshire County Council,29-Nov-18,51300565914,"-2,977.44",DECOY FARM,CARE ESTABLISHMENT,LD - East Locality,LD - East Cambs - Special Needs,Residential Care
Cambridgeshire County Council,29-Nov-18,51300565860,"-2,977.44",DECOY FARM,CARE ESTABLISHMENT,LD - East Locality,LD - East Cambs - Special Needs,Residential Care
Cambridgeshire County Council,29-Nov-18,51300565903,"-2,977.44",DECOY FARM,CARE ESTABLISHMENT,LD - East Locality,LD - East Cambs - Special Needs,Residential Care
Cambridgeshire County Council,29-Nov-18,51300565930,"-2,977.44",DECOY FARM,CARE ESTABLISHMENT,LD - East Locality,LD - East Cambs - Special Needs,Residential Care
Cambridgeshire County Council,29-Nov-18,51300565882,"-2,977.44",DECOY FARM,CARE ESTABLISHMENT,LD - East Locality,LD - East Cambs - Special Needs,Residential Care
Cambridgeshire County Council,29-Nov-18,51300565933,"-2,977.44",DECOY FARM,CARE ESTABLISHMENT,LD - East Locality,LD - East Cambs - Special Needs,Residential Care
Cambridgeshire County Council,29-Nov-18,51300565873,"-2,977.44",DECOY FARM,CARE ESTABLISHMENT,LD - East Locality,LD - East Cambs - Special Needs,Residential Care
Cambridgeshire County Council,29-Nov-18,51300565886,"-2,977.44",DECOY FARM,CARE ESTABLISHMENT,LD - East Locality,LD - East Cambs - Special Needs,Residential Care
Cambridgeshire County Council,29-Nov-18,51300565787,"-2,977.44",DECOY FARM,CARE ESTABLISHMENT,LD - East Locality,LD - East Cambs - Special Needs,Residential Care
Cambridgeshire County Council,29-Nov-18,51300565931,"-2,977.44",DECOY FARM,CARE ESTABLISHMENT,LD - East Locality,LD - East Cambs - Special Needs,Residential Care
Cambridgeshire County Council,29-Nov-18,51300565807,"-2,977.44",DECOY FARM,CARE ESTABLISHMENT,LD - East Locality,LD - East Cambs - Special Needs,Residential Care
Cambridgeshire County Council,29-Nov-18,51300565840,"-2,977.44",DECOY FARM,CARE ESTABLISHMENT,LD - East Locality,LD - East Cambs - Special Needs,Residential Care
Cambridgeshire County Council,29-Nov-18,51300565861,"-2,977.44",DECOY FARM,CARE ESTABLISHMENT,LD - East Locality,LD - East Cambs - Special Needs,Residential Care
Cambridgeshire County Council,29-Nov-18,51300565927,"-2,977.44",DECOY FARM,CARE ESTABLISHMENT,LD - East Locality,LD - East Cambs - Special Needs,Residential Care
Cambridgeshire County Council,29-Nov-18,51300565839,"-2,977.44",DECOY FARM,CARE ESTABLISHMENT,LD - East Locality,LD - East Cambs - Special Needs,Residential Care
Cambridgeshire County Council,29-Nov-18,51300565845,"-2,977.44",DECOY FARM,CARE ESTABLISHMENT,LD - East Locality,LD - East Cambs - Special Needs,Residential Care
Cambridgeshire County Council,29-Nov-18,51300565925,"-2,977.44",DECOY FARM,CARE ESTABLISHMENT,LD - East Locality,LD - East Cambs - Special Needs,Residential Care
Cambridgeshire County Council,29-Nov-18,51300565813,"-2,977.44",DECOY FARM,CARE ESTABLISHMENT,LD - East Locality,LD - East Cambs - Special Needs,Residential Care
Cambridgeshire County Council,29-Nov-18,51300565847,"-2,977.44",DECOY FARM,CARE ESTABLISHMENT,LD - East Locality,LD - East Cambs - Special Needs,Residential Care
Cambridgeshire County Council,29-Nov-18,51300565897,"-2,977.44",DECOY FARM,CARE ESTABLISHMENT,LD - East Locality,LD - East Cambs - Special Needs,Residential Care
Cambridgeshire County Council,29-Nov-18,51300565874,"-2,977.44",DECOY FARM,CARE ESTABLISHMENT,LD - East Locality,LD - East Cambs - Special Needs,Residential Care
Cambridgeshire County Council,29-Nov-18,51300565828,"-2,977.44",DECOY FARM,CARE ESTABLISHMENT,LD - East Locality,LD - East Cambs - Special Needs,Residential Care
Cambridgeshire County Council,29-Nov-18,51300565850,"-2,977.44",DECOY FARM,CARE ESTABLISHMENT,LD - East Locality,LD - East Cambs - Special Needs,Residential Care
Cambridgeshire County Council,29-Nov-18,51300565792,"-2,977.44",DECOY FARM,CARE ESTABLISHMENT,LD - East Locality,LD - East Cambs - Special Needs,Residential Care
Cambridgeshire County Council,29-Nov-18,51300565793,"-2,977.44",DECOY FARM,CARE ESTABLISHMENT,LD - East Locality,LD - East Cambs - Special Needs,Residential Care
Cambridgeshire County Council,29-Nov-18,51300565805,"-2,977.44",DECOY FARM,CARE ESTABLISHMENT,LD - East Locality,LD - East Cambs - Special Needs,Residential Care
Cambridgeshire County Council,29-Nov-18,51300565902,"-2,977.44",DECOY FARM,CARE ESTABLISHMENT,LD - East Locality,LD - East Cambs - Special Needs,Residential Care
Cambridgeshire County Council,29-Nov-18,51300565857,"-2,977.44",DECOY FARM,CARE ESTABLISHMENT,LD - East Locality,LD - East Cambs - Special Needs,Residential Care
Cambridgeshire County Council,29-Nov-18,51300565934,"-2,977.44",DECOY FARM,CARE ESTABLISHMENT,LD - East Locality,LD - East Cambs - Special Needs,Residential Care
Cambridgeshire County Council,29-Nov-18,51300565892,"-2,977.44",DECOY FARM,CARE ESTABLISHMENT,LD - East Locality,LD - East Cambs - Special Needs,Residential Care
Cambridgeshire County Council,29-Nov-18,51300565872,"-2,977.44",DECOY FARM,CARE ESTABLISHMENT,LD - East Locality,LD - East Cambs - Special Needs,Residential Care
Cambridgeshire County Council,29-Nov-18,51300565788,"-2,977.44",DECOY FARM,CARE ESTABLISHMENT,LD - East Locality,LD - East Cambs - Special Needs,Residential Care
Cambridgeshire County Council,29-Nov-18,51300565920,"-2,977.44",DECOY FARM,CARE ESTABLISHMENT,LD - East Locality,LD - East Cambs - Special Needs,Residential Care
Cambridgeshire County Council,29-Nov-18,51300565819,"-2,977.44",DECOY FARM,CARE ESTABLISHMENT,LD - East Locality,LD - East Cambs - Special Needs,Residential Care
Cambridgeshire County Council,29-Nov-18,51300565916,"-2,977.44",DECOY FARM,CARE ESTABLISHMENT,LD - East Locality,LD - East Cambs - Special Needs,Residential Care
Cambridgeshire County Council,29-Nov-18,51300565849,"-2,977.44",DECOY FARM,CARE ESTABLISHMENT,LD - East Locality,LD - East Cambs - Special Needs,Residential Care
Cambridgeshire County Council,29-Nov-18,51300565881,"-2,977.44",DECOY FARM,CARE ESTABLISHMENT,LD - East Locality,LD - East Cambs - Special Needs,Residential Care
Cambridgeshire County Council,29-Nov-18,51300565790,"-2,977.44",DECOY FARM,CARE ESTABLISHMENT,LD - East Locality,LD - East Cambs - Special Needs,Residential Care
Cambridgeshire County Council,29-Nov-18,51300565791,"-2,977.44",DECOY FARM,CARE ESTABLISHMENT,LD - East Locality,LD - East Cambs - Special Needs,Residential Care
Cambridgeshire County Council,29-Nov-18,51300565898,"-2,977.44",DECOY FARM,CARE ESTABLISHMENT,LD - East Locality,LD - East Cambs - Special Needs,Residential Care
Cambridgeshire County Council,29-Nov-18,51300565801,"-2,977.44",DECOY FARM,CARE ESTABLISHMENT,LD - East Locality,LD - East Cambs - Special Needs,Residential Care
Cambridgeshire County Council,29-Nov-18,51300565904,"-2,977.44",DECOY FARM,CARE ESTABLISHMENT,LD - East Locality,LD - East Cambs - Special Needs,Residential Care
Cambridgeshire County Council,29-Nov-18,51300565912,"-2,977.44",DECOY FARM,CARE ESTABLISHMENT,LD - East Locality,LD - East Cambs - Special Needs,Residential Care
Cambridgeshire County Council,29-Nov-18,51300565871,"-2,977.44",DECOY FARM,CARE ESTABLISHMENT,LD - East Locality,LD - East Cambs - Special Needs,Residential Care
Cambridgeshire County Council,29-Nov-18,51300565869,"-2,977.44",DECOY FARM,CARE ESTABLISHMENT,LD - East Locality,LD - East Cambs - Special Needs,Residential Care
Cambridgeshire County Council,29-Nov-18,51300565841,"-2,977.44",DECOY FARM,CARE ESTABLISHMENT,LD - East Locality,LD - East Cambs - Special Needs,Residential Care
Cambridgeshire County Council,29-Nov-18,51300565838,"-2,977.44",DECOY FARM,CARE ESTABLISHMENT,LD - East Locality,LD - East Cambs - Special Needs,Residential Care
Cambridgeshire County Council,29-Nov-18,51300565932,"-2,977.44",DECOY FARM,CARE ESTABLISHMENT,LD - East Locality,LD - East Cambs - Special Needs,Residential Care
Cambridgeshire County Council,29-Nov-18,51300565837,"-2,977.44",DECOY FARM,CARE ESTABLISHMENT,LD - East Locality,LD - East Cambs - Special Needs,Residential Care
Cambridgeshire County Council,06-Nov-18,51300509009,"-2,969.69",AZELIS UK LTD,TRADE SUPPLIER,Winter Maintenance,West Winter,Specialist Supplies and Materials
Cambridgeshire County Council,22-Nov-18,51300434623,"-2,856.00",CYPAD LTD,TRADE SUPPLIER,Catering,CCS - Overheads - Catering,Subscriptions
Cambridgeshire County Council,27-Nov-18,51300508784,"-2,760.00",WRIXON CARE SERVICES,CARE ESTABLISHMENT,LAC Placements,Placements - Social Care,Agency Placements - In County
Cambridgeshire County Council,30-Nov-18,51300507656,"-2,758.80",ROLAND FLETCHER,SOLETRADER,Highways - Rights of Way,Highways - Rights of Way,Construction - External Professional Fees
Cambridgeshire County Council,26-Nov-18,51300538532,"-2,649.65",W S ATKINS (SERVICES) LTD,COMPANY,TIPF - Strategy & Scheme Dev,TIPF - Strategy & Scheme Dev,Construction - External Professional Fees
Cambridgeshire County Council,07-Nov-18,51300509007,"-2,584.78",SEMI INDEPENDENT HOUSE,CARE ESTABLISHMENT,Unaccompanied Asylum Seeking Children,Unaccompanied Asylum Seeking Children <18,Asylum Seekers
Cambridgeshire County Council,30-Nov-18,51300570131,"-2,584.78",SEMI INDEPENDENT HOUSE,CARE ESTABLISHMENT,Unaccompanied Asylum Seeking Children,Unaccompanied Asylum Seeking Children <18,Asylum Seekers
Cambridgeshire County Council,01-Nov-18,51300502777,"-2,552.09",DECOY FARM,CARE ESTABLISHMENT,LD - East Locality,LD - East Cambs - Special Needs,Residential Care
Cambridgeshire County Council,23-Nov-18,51300539890,"-2,552.09",DECOY FARM,CARE ESTABLISHMENT,LD - East Locality,LD - East Cambs - Special Needs,Residential Care
Cambridgeshire County Council,23-Nov-18,51300553896,"-2,552.09",DECOY FARM,CARE ESTABLISHMENT,LD - East Locality,LD - East Cambs - Special Needs,Residential Care
Cambridgeshire County Council,23-Nov-18,51300511663,"-2,552.09",DECOY FARM,CARE ESTABLISHMENT,LD - East Locality,LD - East Cambs - Special Needs,Residential Care
Cambridgeshire County Council,29-Nov-18,51300565820,"-2,552.09",DECOY FARM,CARE ESTABLISHMENT,LD - East Locality,LD - East Cambs - Special Needs,Residential Care
Cambridgeshire County Council,15-Nov-18,51300536085,"-2,365.70",SIXTEEN PLUS,CARE ESTABLISHMENT,LAC Placements,Placements - supported accommodation,Agency Placements - In County
Cambridgeshire County Council,07-Nov-18,51300507807,"-2,337.29",UNIT 2B (DIMENSIONS),CARE ESTABLISHMENT,LD - City Locality,LD - City - Special Needs,Supported Living
Cambridgeshire County Council,07-Nov-18,51300507814,"-2,337.29",UNIT 2B (DIMENSIONS),CARE ESTABLISHMENT,LD - City Locality,LD - City - Special Needs,Supported Living
Cambridgeshire County Council,07-Nov-18,51300507812,"-2,337.29",UNIT 2B (DIMENSIONS),CARE ESTABLISHMENT,LD - City Locality,LD - City - Special Needs,Supported Living
Cambridgeshire County Council,07-Nov-18,51300507817,"-2,337.29",UNIT 2B (DIMENSIONS),CARE ESTABLISHMENT,LD - South Locality,LD - South Cambs - Special Needs,Supported Living
Cambridgeshire County Council,07-Nov-18,51300507820,"-2,337.29",UNIT 2B (DIMENSIONS),CARE ESTABLISHMENT,LD - South Locality,LD - South Cambs - Special Needs,Supported Living
Cambridgeshire County Council,07-Nov-18,51300507810,"-2,337.29",UNIT 2B (DIMENSIONS),CARE ESTABLISHMENT,LD - South Locality,LD - South Cambs - Special Needs,Supported Living
Cambridgeshire County Council,07-Nov-18,51300507804,"-2,337.29",UNIT 2B (DIMENSIONS),CARE ESTABLISHMENT,LD - South Locality,LD - South Cambs - Special Needs,Supported Living
Cambridgeshire County Council,07-Nov-18,51300507808,"-2,337.29",UNIT 2B (DIMENSIONS),CARE ESTABLISHMENT,LD - South Locality,LD - South Cambs - Special Needs,Supported Living
Cambridgeshire County Council,08-Nov-18,51300536029,"-2,337.29",UNIT 2B (DIMENSIONS),CARE ESTABLISHMENT,LD - City Locality,LD - City - Special Needs,Supported Living
Cambridgeshire County Council,08-Nov-18,51300536036,"-2,337.29",UNIT 2B (DIMENSIONS),CARE ESTABLISHMENT,LD - City Locality,LD - City - Special Needs,Supported Living
Cambridgeshire County Council,08-Nov-18,51300536022,"-2,337.29",UNIT 2B (DIMENSIONS),CARE ESTABLISHMENT,LD - City Locality,LD - City - Special Needs,Supported Living
Cambridgeshire County Council,08-Nov-18,51300536023,"-2,337.29",UNIT 2B (DIMENSIONS),CARE ESTABLISHMENT,LD - City Locality,LD - City - Special Needs,Supported Living
Cambridgeshire County Council,08-Nov-18,51300536021,"-2,337.29",UNIT 2B (DIMENSIONS),CARE ESTABLISHMENT,LD - South Locality,LD - South Cambs - Special Needs,Supported Living
Cambridgeshire County Council,08-Nov-18,51300536027,"-2,337.29",UNIT 2B (DIMENSIONS),CARE ESTABLISHMENT,LD - City Locality,LD - City - Special Needs,Supported Living
Cambridgeshire County Council,08-Nov-18,51300536038,"-2,337.29",UNIT 2B (DIMENSIONS),CARE ESTABLISHMENT,LD - City Locality,LD - City - Special Needs,Supported Living
Cambridgeshire County Council,08-Nov-18,51300536037,"-2,337.29",UNIT 2B (DIMENSIONS),CARE ESTABLISHMENT,LD - South Locality,LD - South Cambs - Special Needs,Supported Living
Cambridgeshire County Council,27-Nov-18,51300500093,"-2,337.29",DIMENSIONS (UK) LTD,CARE ESTABLISHMENT,LD - South Locality,LD - South Cambs - Special Needs,Supported Living
Cambridgeshire County Council,27-Nov-18,51300500105,"-2,337.29",DIMENSIONS (UK) LTD,CARE ESTABLISHMENT,LD - South Locality,LD - South Cambs - Special Needs,Supported Living
Cambridgeshire County Council,27-Nov-18,51300500091,"-2,337.29",DIMENSIONS (UK) LTD,CARE ESTABLISHMENT,LD - South Locality,LD - South Cambs - Special Needs,Supported Living
Cambridgeshire County Council,27-Nov-18,51300500103,"-2,337.29",DIMENSIONS (UK) LTD,CARE ESTABLISHMENT,LD - South Locality,LD - South Cambs - Special Needs,Supported Living
Cambridgeshire County Council,27-Nov-18,51300500092,"-2,337.29",DIMENSIONS (UK) LTD,CARE ESTABLISHMENT,LD - South Locality,LD - South Cambs - Special Needs,Supported Living
Cambridgeshire County Council,27-Nov-18,51300500100,"-2,337.29",DIMENSIONS (UK) LTD,CARE ESTABLISHMENT,LD - City Locality,LD - City - Special Needs,Supported Living
Cambridgeshire County Council,27-Nov-18,51300500098,"-2,337.29",DIMENSIONS (UK) LTD,CARE ESTABLISHMENT,LD - City Locality,LD - City - Special Needs,Supported Living
Cambridgeshire County Council,27-Nov-18,51300500097,"-2,337.29",DIMENSIONS (UK) LTD,CARE ESTABLISHMENT,LD - City Locality,LD - City - Special Needs,Supported Living
Cambridgeshire County Council,15-Nov-18,51300508985,"-2,304.48",BT GLOBAL SERVICES,TRADE SUPPLIER,"Telephony, CPSN & MFD",Universal System Licensing & Maintenance,Telephone costs
Cambridgeshire County Council,07-Nov-18,51300510786,"-2,175.47",OAKLANDS,CARE ESTABLISHMENT,LD - Hunts Locality,LD - Huntigndonshire  - Special Needs,Residential Care
Cambridgeshire County Council,07-Nov-18,51300510764,"-2,175.47",OAKLANDS,CARE ESTABLISHMENT,LD - Hunts Locality,LD - Huntigndonshire  - Special Needs,Residential Care
Cambridgeshire County Council,07-Nov-18,51300510757,"-2,175.47",OAKLANDS,CARE ESTABLISHMENT,LD - Hunts Locality,LD - Huntigndonshire  - Special Needs,Residential Care
Cambridgeshire County Council,07-Nov-18,51300510819,"-2,175.47",OAKLANDS,CARE ESTABLISHMENT,LD - Hunts Locality,LD - Huntigndonshire  - Special Needs,Residential Care
Cambridgeshire County Council,07-Nov-18,51300510837,"-2,175.47",OAKLANDS,CARE ESTABLISHMENT,LD - Hunts Locality,LD - Huntigndonshire  - Special Needs,Residential Care
Cambridgeshire County Council,07-Nov-18,51300510847,"-2,175.47",OAKLANDS,CARE ESTABLISHMENT,LD - Hunts Locality,LD - Huntigndonshire  - Special Needs,Residential Care
Cambridgeshire County Council,07-Nov-18,51300510774,"-2,175.47",OAKLANDS,CARE ESTABLISHMENT,LD - Hunts Locality,LD - Huntigndonshire  - Special Needs,Residential Care
Cambridgeshire County Council,07-Nov-18,51300510825,"-2,175.47",OAKLANDS,CARE ESTABLISHMENT,LD - Hunts Locality,LD - Huntigndonshire  - Special Needs,Residential Care
Cambridgeshire County Council,07-Nov-18,51300510848,"-2,175.47",OAKLANDS,CARE ESTABLISHMENT,LD - Hunts Locality,LD - Huntigndonshire  - Special Needs,Residential Care
Cambridgeshire County Council,07-Nov-18,51300510806,"-2,175.47",OAKLANDS,CARE ESTABLISHMENT,LD - Hunts Locality,LD - Huntigndonshire  - Special Needs,Residential Care
Cambridgeshire County Council,07-Nov-18,51300510740,"-2,175.47",OAKLANDS,CARE ESTABLISHMENT,LD - Hunts Locality,LD - Huntigndonshire  - Special Needs,Residential Care
Cambridgeshire County Council,07-Nov-18,51300510748,"-2,175.47",OAKLANDS,CARE ESTABLISHMENT,LD - Hunts Locality,LD - Huntigndonshire  - Special Needs,Residential Care
Cambridgeshire County Council,07-Nov-18,51300510785,"-2,175.47",OAKLANDS,CARE ESTABLISHMENT,LD - Hunts Locality,LD - Huntigndonshire  - Special Needs,Residential Care
Cambridgeshire County Council,26-Nov-18,51300536805,"-2,171.73",HEATH FARM FAMILY SERVICES LIMITED,CARE ESTABLISHMENT,LAC Placements,Placements - independent fostering,Agency Placements - Out of  County
Cambridgeshire County Council,13-Nov-18,51300508355,"-2,166.00",WEIGHTMANS LLP,TRADE SUPPLIER,Insurance,Insurance Section,Insurance Claims Paid
Cambridgeshire County Council,07-Nov-18,51300510772,"-2,009.47",OAKLANDS,CARE ESTABLISHMENT,LD - Hunts Locality,LD - Huntigndonshire  - Special Needs,Residential Care
Cambridgeshire County Council,07-Nov-18,51300510813,"-2,009.47",OAKLANDS,CARE ESTABLISHMENT,LD - Hunts Locality,LD - Huntigndonshire  - Special Needs,Residential Care
Cambridgeshire County Council,07-Nov-18,51300510750,"-2,009.47",OAKLANDS,CARE ESTABLISHMENT,LD - Hunts Locality,LD - Huntigndonshire  - Special Needs,Residential Care
Cambridgeshire County Council,07-Nov-18,51300510736,"-2,009.47",OAKLANDS,CARE ESTABLISHMENT,LD - Hunts Locality,LD - Huntigndonshire  - Special Needs,Residential Care
Cambridgeshire County Council,07-Nov-18,51300510780,"-2,009.47",OAKLANDS,CARE ESTABLISHMENT,LD - Hunts Locality,LD - Huntigndonshire  - Special Needs,Residential Care
Cambridgeshire County Council,07-Nov-18,51300510791,"-2,009.47",OAKLANDS,CARE ESTABLISHMENT,LD - Hunts Locality,LD - Huntigndonshire  - Special Needs,Residential Care
Cambridgeshire County Council,07-Nov-18,51300510781,"-2,009.47",OAKLANDS,CARE ESTABLISHMENT,LD - Hunts Locality,LD - Huntigndonshire  - Special Needs,Residential Care
Cambridgeshire County Council,07-Nov-18,51300510771,"-2,009.47",OAKLANDS,CARE ESTABLISHMENT,LD - Hunts Locality,LD - Huntigndonshire  - Special Needs,Residential Care
Cambridgeshire County Council,07-Nov-18,51300510831,"-2,009.47",OAKLANDS,CARE ESTABLISHMENT,LD - Hunts Locality,LD - Huntigndonshire  - Special Needs,Residential Care
Cambridgeshire County Council,07-Nov-18,51300510830,"-2,009.47",OAKLANDS,CARE ESTABLISHMENT,LD - Hunts Locality,LD - Huntigndonshire  - Special Needs,Residential Care
Cambridgeshire County Council,07-Nov-18,51300510795,"-2,009.47",OAKLANDS,CARE ESTABLISHMENT,LD - Hunts Locality,LD - Huntigndonshire  - Special Needs,Residential Care
Cambridgeshire County Council,07-Nov-18,51300510777,"-2,009.47",OAKLANDS,CARE ESTABLISHMENT,LD - Hunts Locality,LD - Huntigndonshire  - Special Needs,Residential Care
Cambridgeshire County Council,07-Nov-18,51300510856,"-2,009.47",OAKLANDS,CARE ESTABLISHMENT,LD - Hunts Locality,LD - Huntigndonshire  - Special Needs,Residential Care
Cambridgeshire County Council,07-Nov-18,51300510773,"-2,009.47",OAKLANDS,CARE ESTABLISHMENT,LD - Hunts Locality,LD - Huntigndonshire  - Special Needs,Residential Care
Cambridgeshire County Council,07-Nov-18,51300510867,"-2,009.47",OAKLANDS,CARE ESTABLISHMENT,LD - Hunts Locality,LD - Huntigndonshire  - Special Needs,Residential Care
Cambridgeshire County Council,07-Nov-18,51300510808,"-2,009.47",OAKLANDS,CARE ESTABLISHMENT,LD - Hunts Locality,LD - Huntigndonshire  - Special Needs,Residential Care
Cambridgeshire County Council,07-Nov-18,51300510743,"-2,009.47",OAKLANDS,CARE ESTABLISHMENT,LD - Hunts Locality,LD - Huntigndonshire  - Special Needs,Residential Care
Cambridgeshire County Council,07-Nov-18,51300510868,"-2,009.47",OAKLANDS,CARE ESTABLISHMENT,LD - Hunts Locality,LD - Huntigndonshire  - Special Needs,Residential Care
Cambridgeshire County Council,07-Nov-18,51300510751,"-2,009.47",OAKLANDS,CARE ESTABLISHMENT,LD - Hunts Locality,LD - Huntigndonshire  - Special Needs,Residential Care
Cambridgeshire County Council,07-Nov-18,51300510735,"-2,009.47",OAKLANDS,CARE ESTABLISHMENT,LD - Hunts Locality,LD - Huntigndonshire  - Special Needs,Residential Care
Cambridgeshire County Council,19-Nov-18,51300538530,"-1,914.00",BREAK,CHARITY,LAC Placements,Placements - 16+,Childrens Lodgings
Cambridgeshire County Council,15-Nov-18,51300536518,"-1,892.56",SIXTEEN PLUS,CARE ESTABLISHMENT,LAC Placements,Placements - supported accommodation,Agency Placements - In County
Cambridgeshire County Council,06-Nov-18,51300484633,"-1,872.00",SP LANDSCAPES LTD,COMPANY,MID - Public Transport,Guided Bus,Consultancy
Cambridgeshire County Council,23-Nov-18,51300540441,"-1,732.50",GUYATT HOUSE CARE LTD,CARE ESTABLISHMENT,LD - Young Adults Team,LD - Young Adults - Special Needs,Supported Living
Cambridgeshire County Council,23-Nov-18,51300540443,"-1,732.50",GUYATT HOUSE CARE LTD,CARE ESTABLISHMENT,LD - Young Adults Team,LD - Young Adults - Special Needs,Supported Living
Cambridgeshire County Council,07-Nov-18,51300531015,"-1,711.36",AFFINITY TRUST,CARE ESTABLISHMENT,LD - Fenland Locality,LD - Fenland  - Care,Supported Living
Cambridgeshire County Council,07-Nov-18,51300476309,"-1,711.36",AFFINITY TRUST,CARE ESTABLISHMENT,LD - Fenland Locality,LD - Fenland  - Care,Supported Living
Cambridgeshire County Council,07-Nov-18,51300504889,"-1,711.36",AFFINITY TRUST,CARE ESTABLISHMENT,LD - Fenland Locality,LD - Fenland  - Care,Supported Living
Cambridgeshire County Council,07-Nov-18,51300497619,"-1,711.36",AFFINITY TRUST,CARE ESTABLISHMENT,LD - Fenland Locality,LD - Fenland  - Care,Supported Living
Cambridgeshire County Council,07-Nov-18,51300497610,"-1,711.36",AFFINITY TRUST,CARE ESTABLISHMENT,LD - Fenland Locality,LD - Fenland  - Care,Supported Living
Cambridgeshire County Council,07-Nov-18,51300504908,"-1,711.36",AFFINITY TRUST,CARE ESTABLISHMENT,LD - Fenland Locality,LD - Fenland  - Care,Supported Living
Cambridgeshire County Council,07-Nov-18,51300531042,"-1,711.36",AFFINITY TRUST,CARE ESTABLISHMENT,LD - Fenland Locality,LD - Fenland  - Care,Supported Living
Cambridgeshire County Council,07-Nov-18,51300497633,"-1,711.36",AFFINITY TRUST,CARE ESTABLISHMENT,LD - Fenland Locality,LD - Fenland  - Care,Supported Living
Cambridgeshire County Council,07-Nov-18,51300504884,"-1,711.36",AFFINITY TRUST,CARE ESTABLISHMENT,LD - Fenland Locality,LD - Fenland  - Care,Supported Living
Cambridgeshire County Council,07-Nov-18,51300476300,"-1,711.36",AFFINITY TRUST,CARE ESTABLISHMENT,LD - Fenland Locality,LD - Fenland  - Care,Supported Living
Cambridgeshire County Council,07-Nov-18,51300531018,"-1,711.36",AFFINITY TRUST,CARE ESTABLISHMENT,LD - Fenland Locality,LD - Fenland  - Care,Supported Living
Cambridgeshire County Council,07-Nov-18,51300531030,"-1,711.36",AFFINITY TRUST,CARE ESTABLISHMENT,LD - Fenland Locality,LD - Fenland  - Care,Supported Living
Cambridgeshire County Council,07-Nov-18,51300531048,"-1,711.36",AFFINITY TRUST,CARE ESTABLISHMENT,LD - Fenland Locality,LD - Fenland  - Care,Supported Living
Cambridgeshire County Council,07-Nov-18,51300531032,"-1,711.36",AFFINITY TRUST,CARE ESTABLISHMENT,LD - Fenland Locality,LD - Fenland  - Care,Supported Living
Cambridgeshire County Council,07-Nov-18,51300504890,"-1,711.36",AFFINITY TRUST,CARE ESTABLISHMENT,LD - Fenland Locality,LD - Fenland  - Care,Supported Living
Cambridgeshire County Council,07-Nov-18,51300504900,"-1,711.36",AFFINITY TRUST,CARE ESTABLISHMENT,LD - Fenland Locality,LD - Fenland  - Care,Supported Living
Cambridgeshire County Council,07-Nov-18,51300497640,"-1,711.36",AFFINITY TRUST,CARE ESTABLISHMENT,LD - Fenland Locality,LD - Fenland  - Care,Supported Living
Cambridgeshire County Council,07-Nov-18,51300504895,"-1,711.36",AFFINITY TRUST,CARE ESTABLISHMENT,LD - Fenland Locality,LD - Fenland  - Care,Supported Living
Cambridgeshire County Council,07-Nov-18,51300476318,"-1,711.36",AFFINITY TRUST,CARE ESTABLISHMENT,LD - Fenland Locality,LD - Fenland  - Care,Supported Living
Cambridgeshire County Council,07-Nov-18,51300497635,"-1,711.36",AFFINITY TRUST,CARE ESTABLISHMENT,LD - Fenland Locality,LD - Fenland  - Care,Supported Living
Cambridgeshire County Council,07-Nov-18,51300476311,"-1,711.36",AFFINITY TRUST,CARE ESTABLISHMENT,LD - Fenland Locality,LD - Fenland  - Care,Supported Living
Cambridgeshire County Council,07-Nov-18,51300504907,"-1,711.36",AFFINITY TRUST,CARE ESTABLISHMENT,LD - Fenland Locality,LD - Fenland  - Care,Supported Living
Cambridgeshire County Council,07-Nov-18,51300476302,"-1,711.36",AFFINITY TRUST,CARE ESTABLISHMENT,LD - Fenland Locality,LD - Fenland  - Care,Supported Living
Cambridgeshire County Council,07-Nov-18,51300504905,"-1,711.36",AFFINITY TRUST,CARE ESTABLISHMENT,LD - Fenland Locality,LD - Fenland  - Care,Supported Living
Cambridgeshire County Council,07-Nov-18,51300531029,"-1,711.36",AFFINITY TRUST,CARE ESTABLISHMENT,LD - Fenland Locality,LD - Fenland  - Care,Supported Living
Cambridgeshire County Council,07-Nov-18,51300476320,"-1,711.36",AFFINITY TRUST,CARE ESTABLISHMENT,LD - Fenland Locality,LD - Fenland  - Special Needs,Supported Living
Cambridgeshire County Council,07-Nov-18,51300531031,"-1,711.36",AFFINITY TRUST,CARE ESTABLISHMENT,LD - Fenland Locality,LD - Fenland  - Special Needs,Supported Living
Cambridgeshire County Council,07-Nov-18,51300476305,"-1,711.36",AFFINITY TRUST,CARE ESTABLISHMENT,LD - Fenland Locality,LD - Fenland  - Care,Supported Living
Cambridgeshire County Council,07-Nov-18,51300531052,"-1,711.36",AFFINITY TRUST,CARE ESTABLISHMENT,LD - Fenland Locality,LD - Fenland  - Care,Supported Living
Cambridgeshire County Council,07-Nov-18,51300497620,"-1,711.36",AFFINITY TRUST,CARE ESTABLISHMENT,LD - Fenland Locality,LD - Fenland  - Care,Supported Living
Cambridgeshire County Council,07-Nov-18,51300504901,"-1,711.36",AFFINITY TRUST,CARE ESTABLISHMENT,LD - Fenland Locality,LD - Fenland  - Special Needs,Supported Living
Cambridgeshire County Council,07-Nov-18,51300476314,"-1,711.36",AFFINITY TRUST,CARE ESTABLISHMENT,LD - Fenland Locality,LD - Fenland  - Care,Supported Living
Cambridgeshire County Council,07-Nov-18,51300504885,"-1,711.36",AFFINITY TRUST,CARE ESTABLISHMENT,LD - Fenland Locality,LD - Fenland  - Care,Supported Living
Cambridgeshire County Council,07-Nov-18,51300531027,"-1,711.36",AFFINITY TRUST,CARE ESTABLISHMENT,LD - Fenland Locality,LD - Fenland  - Special Needs,Supported Living
Cambridgeshire County Council,07-Nov-18,51300497634,"-1,711.36",AFFINITY TRUST,CARE ESTABLISHMENT,LD - Fenland Locality,LD - Fenland  - Special Needs,Supported Living
Cambridgeshire County Council,07-Nov-18,51300531046,"-1,711.36",AFFINITY TRUST,CARE ESTABLISHMENT,LD - Fenland Locality,LD - Fenland  - Special Needs,Supported Living
Cambridgeshire County Council,07-Nov-18,51300476313,"-1,711.36",AFFINITY TRUST,CARE ESTABLISHMENT,LD - Fenland Locality,LD - Fenland  - Special Needs,Supported Living
Cambridgeshire County Council,07-Nov-18,51300497613,"-1,711.36",AFFINITY TRUST,CARE ESTABLISHMENT,LD - Fenland Locality,LD - Fenland  - Special Needs,Supported Living
Cambridgeshire County Council,07-Nov-18,51300531016,"-1,711.36",AFFINITY TRUST,CARE ESTABLISHMENT,LD - Fenland Locality,LD - Fenland  - Special Needs,Supported Living
Cambridgeshire County Council,07-Nov-18,51300497636,"-1,711.36",AFFINITY TRUST,CARE ESTABLISHMENT,LD - Fenland Locality,LD - Fenland  - Special Needs,Supported Living
Cambridgeshire County Council,07-Nov-18,51300504903,"-1,711.36",AFFINITY TRUST,CARE ESTABLISHMENT,LD - Fenland Locality,LD - Fenland  - Special Needs,Supported Living
Cambridgeshire County Council,07-Nov-18,51300531043,"-1,711.36",AFFINITY TRUST,CARE ESTABLISHMENT,LD - Fenland Locality,LD - Fenland  - Special Needs,Supported Living
Cambridgeshire County Council,07-Nov-18,51300504892,"-1,711.36",AFFINITY TRUST,CARE ESTABLISHMENT,LD - Fenland Locality,LD - Fenland  - Special Needs,Supported Living
Cambridgeshire County Council,07-Nov-18,51300504888,"-1,711.36",AFFINITY TRUST,CARE ESTABLISHMENT,LD - Fenland Locality,LD - Fenland  - Special Needs,Supported Living
Cambridgeshire County Council,07-Nov-18,51300497625,"-1,711.36",AFFINITY TRUST,CARE ESTABLISHMENT,LD - Fenland Locality,LD - Fenland  - Special Needs,Supported Living
Cambridgeshire County Council,07-Nov-18,51300476312,"-1,711.36",AFFINITY TRUST,CARE ESTABLISHMENT,LD - Fenland Locality,LD - Fenland  - Special Needs,Supported Living
Cambridgeshire County Council,07-Nov-18,51300476306,"-1,711.36",AFFINITY TRUST,CARE ESTABLISHMENT,LD - Fenland Locality,LD - Fenland  - Special Needs,Supported Living
Cambridgeshire County Council,07-Nov-18,51300497628,"-1,711.36",AFFINITY TRUST,CARE ESTABLISHMENT,LD - Fenland Locality,LD - Fenland  - Special Needs,Supported Living
Cambridgeshire County Council,07-Nov-18,51300497614,"-1,711.36",AFFINITY TRUST,CARE ESTABLISHMENT,LD - Fenland Locality,LD - Fenland  - Special Needs,Supported Living
Cambridgeshire County Council,07-Nov-18,51300504880,"-1,711.36",AFFINITY TRUST,CARE ESTABLISHMENT,LD - Fenland Locality,LD - Fenland  - Special Needs,Supported Living
Cambridgeshire County Council,07-Nov-18,51300531050,"-1,711.36",AFFINITY TRUST,CARE ESTABLISHMENT,LD - Fenland Locality,LD - Fenland  - Special Needs,Supported Living
Cambridgeshire County Council,07-Nov-18,51300504904,"-1,711.36",AFFINITY TRUST,CARE ESTABLISHMENT,LD - Fenland Locality,LD - Fenland  - Special Needs,Supported Living
Cambridgeshire County Council,07-Nov-18,51300504896,"-1,711.36",AFFINITY TRUST,CARE ESTABLISHMENT,LD - Fenland Locality,LD - Fenland  - Special Needs,Supported Living
Cambridgeshire County Council,07-Nov-18,51300497622,"-1,711.36",AFFINITY TRUST,CARE ESTABLISHMENT,LD - Fenland Locality,LD - Fenland  - Special Needs,Supported Living
Cambridgeshire County Council,07-Nov-18,51300497629,"-1,711.36",AFFINITY TRUST,CARE ESTABLISHMENT,LD - Fenland Locality,LD - Fenland  - Special Needs,Supported Living
Cambridgeshire County Council,07-Nov-18,51300531051,"-1,711.36",AFFINITY TRUST,CARE ESTABLISHMENT,LD - Fenland Locality,LD - Fenland  - Special Needs,Supported Living
Cambridgeshire County Council,07-Nov-18,51300476307,"-1,711.36",AFFINITY TRUST,CARE ESTABLISHMENT,LD - Fenland Locality,LD - Fenland  - Special Needs,Supported Living
Cambridgeshire County Council,07-Nov-18,51300476322,"-1,711.36",AFFINITY TRUST,CARE ESTABLISHMENT,LD - Fenland Locality,LD - Fenland  - Special Needs,Supported Living
Cambridgeshire County Council,07-Nov-18,51300476323,"-1,711.36",AFFINITY TRUST,CARE ESTABLISHMENT,LD - Fenland Locality,LD - Fenland  - Special Needs,Supported Living
Cambridgeshire County Council,07-Nov-18,51300497607,"-1,711.36",AFFINITY TRUST,CARE ESTABLISHMENT,LD - Fenland Locality,LD - Fenland  - Special Needs,Supported Living
Cambridgeshire County Council,07-Nov-18,51300476296,"-1,711.36",AFFINITY TRUST,CARE ESTABLISHMENT,LD - Fenland Locality,LD - Fenland  - Special Needs,Supported Living
Cambridgeshire County Council,07-Nov-18,51300476294,"-1,711.36",AFFINITY TRUST,CARE ESTABLISHMENT,LD - Fenland Locality,LD - Fenland  - Special Needs,Supported Living
Cambridgeshire County Council,07-Nov-18,51300497615,"-1,711.36",AFFINITY TRUST,CARE ESTABLISHMENT,LD - Fenland Locality,LD - Fenland  - Special Needs,Supported Living
Cambridgeshire County Council,07-Nov-18,51300531039,"-1,711.36",AFFINITY TRUST,CARE ESTABLISHMENT,LD - Fenland Locality,LD - Fenland  - Special Needs,Supported Living
Cambridgeshire County Council,07-Nov-18,51300529869,"-1,623.61",SOCIAL CARE SOLUTIONS LTD,CARE ESTABLISHMENT,OP - Hunts Locality,Hunts O P  Team,Supported Living
Cambridgeshire County Council,23-Nov-18,51300509080,"-1,613.70",BEACH BABIES LIMITED (WILBURTON),NURSERY,Early Years Specialist Support,Procurement - TA Inclusion & Access (EARLY YEARS),Care & Ed Partner Organisations
Cambridgeshire County Council,15-Nov-18,51300547185,"-1,608.14",SDC BUILDERS LTD,COMPANY,Buildings and Capital,Education Property Strategy Manager,Capital - Assets Under Construction
Cambridgeshire County Council,07-Nov-18,51300504013,"-1,534.00",VOYAGE (LICHFIELD),CARE ESTABLISHMENT,LD - Fenland Locality,LD - Fenland  - Special Needs,Supported Living
Cambridgeshire County Council,07-Nov-18,51300504003,"-1,534.00",VOYAGE (LICHFIELD),CARE ESTABLISHMENT,LD - Fenland Locality,LD - Fenland  - Special Needs,Supported Living
Cambridgeshire County Council,07-Nov-18,51300504021,"-1,534.00",VOYAGE (LICHFIELD),CARE ESTABLISHMENT,LD - Fenland Locality,LD - Fenland  - Special Needs,Supported Living
Cambridgeshire County Council,29-Nov-18,51300570136,"-1,487.50",STRUTT & PARKER LLP,TRADE SUPPLIER,Buildings and Capital,Education Property Strategy Manager,Capital - Assets Under Construction
Cambridgeshire County Council,07-Nov-18,51300514635,"-1,470.00",LIVING AMBITIONS LTD,CARE ESTABLISHMENT,LD - Hunts Locality,LD - Huntigndonshire  - Special Needs,Domiciliary Care
Cambridgeshire County Council,07-Nov-18,51300510741,"-1,435.34",OAKLANDS,CARE ESTABLISHMENT,LD - Hunts Locality,LD - Huntigndonshire  - Special Needs,Residential Care
Cambridgeshire County Council,07-Nov-18,51300531076,"-1,428.56",SOCIAL CARE SOLUTIONS LTD,CARE ESTABLISHMENT,LD - Fenland Locality,LD - Fenland  - Special Needs,Supported Living
Cambridgeshire County Council,26-Nov-18,51300484614,"-1,411.43",BRIGHTER FUTURES FOSTER CARE,CARE ESTABLISHMENT,LAC Placements,Placements - independent fostering,Agency Placements - In County
Cambridgeshire County Council,01-Nov-18,51300502546,"-1,400.95",CARETECH COMMUNITY SERVICES,CARE ESTABLISHMENT,LD - East Locality,LD - East Cambs - Special Needs,Residential Care
Cambridgeshire County Council,01-Nov-18,51300502549,"-1,400.95",CARETECH COMMUNITY SERVICES,CARE ESTABLISHMENT,LD - East Locality,LD - East Cambs - Special Needs,Residential Care
Cambridgeshire County Council,01-Nov-18,51300502563,"-1,400.95",CARETECH COMMUNITY SERVICES,CARE ESTABLISHMENT,LD - East Locality,LD - East Cambs - Special Needs,Residential Care
Cambridgeshire County Council,01-Nov-18,51300502538,"-1,400.95",CARETECH COMMUNITY SERVICES,CARE ESTABLISHMENT,LD - East Locality,LD - East Cambs - Special Needs,Residential Care
Cambridgeshire County Council,01-Nov-18,51300502571,"-1,400.95",CARETECH COMMUNITY SERVICES,CARE ESTABLISHMENT,LD - East Locality,LD - East Cambs - Special Needs,Residential Care
Cambridgeshire County Council,01-Nov-18,51300502573,"-1,400.95",CARETECH COMMUNITY SERVICES,CARE ESTABLISHMENT,LD - East Locality,LD - East Cambs - Special Needs,Residential Care
Cambridgeshire County Council,01-Nov-18,51300502540,"-1,400.95",CARETECH COMMUNITY SERVICES,CARE ESTABLISHMENT,LD - East Locality,LD - East Cambs - Special Needs,Residential Care
Cambridgeshire County Council,01-Nov-18,51300502547,"-1,400.95",CARETECH COMMUNITY SERVICES,CARE ESTABLISHMENT,LD - East Locality,LD - East Cambs - Special Needs,Residential Care
Cambridgeshire County Council,01-Nov-18,51300502556,"-1,400.95",CARETECH COMMUNITY SERVICES,CARE ESTABLISHMENT,LD - East Locality,LD - East Cambs - Special Needs,Residential Care
Cambridgeshire County Council,01-Nov-18,51300502569,"-1,400.95",CARETECH COMMUNITY SERVICES,CARE ESTABLISHMENT,LD - East Locality,LD - East Cambs - Special Needs,Residential Care
Cambridgeshire County Council,07-Nov-18,51300529864,"-1,391.67",SOCIAL CARE SOLUTIONS LTD,CARE ESTABLISHMENT,OP - Hunts Locality,Hunts O P  Team,Supported Living
Cambridgeshire County Council,07-Nov-18,51300519232,"-1,337.66",OAKLANDS,CARE ESTABLISHMENT,LD - Hunts Locality,LD - Huntigndonshire  - Special Needs,Residential Care
Cambridgeshire County Council,07-Nov-18,51300519234,"-1,337.66",OAKLANDS,CARE ESTABLISHMENT,LD - Hunts Locality,LD - Huntigndonshire  - Special Needs,Residential Care
Cambridgeshire County Council,07-Nov-18,51300519312,"-1,337.66",OAKLANDS,CARE ESTABLISHMENT,LD - Hunts Locality,LD - Huntigndonshire  - Special Needs,Residential Care
Cambridgeshire County Council,07-Nov-18,51300519260,"-1,337.66",OAKLANDS,CARE ESTABLISHMENT,LD - Hunts Locality,LD - Huntigndonshire  - Special Needs,Residential Care
Cambridgeshire County Council,07-Nov-18,51300519335,"-1,337.66",OAKLANDS,CARE ESTABLISHMENT,LD - Hunts Locality,LD - Huntigndonshire  - Special Needs,Residential Care
Cambridgeshire County Council,07-Nov-18,51300519317,"-1,337.66",OAKLANDS,CARE ESTABLISHMENT,LD - Hunts Locality,LD - Huntigndonshire  - Special Needs,Residential Care
Cambridgeshire County Council,07-Nov-18,51300519336,"-1,337.66",OAKLANDS,CARE ESTABLISHMENT,LD - Hunts Locality,LD - Huntigndonshire  - Special Needs,Residential Care
Cambridgeshire County Council,07-Nov-18,51300519326,"-1,337.66",OAKLANDS,CARE ESTABLISHMENT,LD - Hunts Locality,LD - Huntigndonshire  - Special Needs,Residential Care
Cambridgeshire County Council,07-Nov-18,51300519289,"-1,337.66",OAKLANDS,CARE ESTABLISHMENT,LD - Hunts Locality,LD - Huntigndonshire  - Special Needs,Residential Care
Cambridgeshire County Council,07-Nov-18,51300519265,"-1,337.66",OAKLANDS,CARE ESTABLISHMENT,LD - Hunts Locality,LD - Huntigndonshire  - Special Needs,Residential Care
Cambridgeshire County Council,07-Nov-18,51300519332,"-1,337.66",OAKLANDS,CARE ESTABLISHMENT,LD - Hunts Locality,LD - Huntigndonshire  - Special Needs,Residential Care
Cambridgeshire County Council,07-Nov-18,51300519263,"-1,337.66",OAKLANDS,CARE ESTABLISHMENT,LD - Hunts Locality,LD - Huntigndonshire  - Special Needs,Residential Care
Cambridgeshire County Council,07-Nov-18,51300519320,"-1,337.66",OAKLANDS,CARE ESTABLISHMENT,LD - Hunts Locality,LD - Huntigndonshire  - Special Needs,Residential Care
Cambridgeshire County Council,07-Nov-18,51300519282,"-1,337.66",OAKLANDS,CARE ESTABLISHMENT,LD - Hunts Locality,LD - Huntigndonshire  - Special Needs,Residential Care
Cambridgeshire County Council,07-Nov-18,51300519254,"-1,337.66",OAKLANDS,CARE ESTABLISHMENT,LD - Hunts Locality,LD - Huntigndonshire  - Special Needs,Residential Care
Cambridgeshire County Council,07-Nov-18,51300519228,"-1,337.66",OAKLANDS,CARE ESTABLISHMENT,LD - Hunts Locality,LD - Huntigndonshire  - Special Needs,Residential Care
Cambridgeshire County Council,07-Nov-18,51300519277,"-1,337.66",OAKLANDS,CARE ESTABLISHMENT,LD - Hunts Locality,LD - Huntigndonshire  - Special Needs,Residential Care
Cambridgeshire County Council,07-Nov-18,51300519287,"-1,337.66",OAKLANDS,CARE ESTABLISHMENT,LD - Hunts Locality,LD - Huntigndonshire  - Special Needs,Residential Care
Cambridgeshire County Council,07-Nov-18,51300519295,"-1,337.66",OAKLANDS,CARE ESTABLISHMENT,LD - Hunts Locality,LD - Huntigndonshire  - Special Needs,Residential Care
Cambridgeshire County Council,07-Nov-18,51300519245,"-1,337.66",OAKLANDS,CARE ESTABLISHMENT,LD - Hunts Locality,LD - Huntigndonshire  - Special Needs,Residential Care
Cambridgeshire County Council,07-Nov-18,51300519294,"-1,337.66",OAKLANDS,CARE ESTABLISHMENT,LD - Hunts Locality,LD - Huntigndonshire  - Special Needs,Residential Care
Cambridgeshire County Council,07-Nov-18,51300519310,"-1,337.66",OAKLANDS,CARE ESTABLISHMENT,LD - Hunts Locality,LD - Huntigndonshire  - Special Needs,Residential Care
Cambridgeshire County Council,07-Nov-18,51300519256,"-1,337.66",OAKLANDS,CARE ESTABLISHMENT,LD - Hunts Locality,LD - Huntigndonshire  - Special Needs,Residential Care
Cambridgeshire County Council,07-Nov-18,51300519286,"-1,337.66",OAKLANDS,CARE ESTABLISHMENT,LD - Hunts Locality,LD - Huntigndonshire  - Special Needs,Residential Care
Cambridgeshire County Council,07-Nov-18,51300519321,"-1,337.66",OAKLANDS,CARE ESTABLISHMENT,LD - Hunts Locality,LD - Huntigndonshire  - Special Needs,Residential Care
Cambridgeshire County Council,07-Nov-18,51300519229,"-1,337.66",OAKLANDS,CARE ESTABLISHMENT,LD - Hunts Locality,LD - Huntigndonshire  - Special Needs,Residential Care
Cambridgeshire County Council,07-Nov-18,51300519314,"-1,337.66",OAKLANDS,CARE ESTABLISHMENT,LD - Hunts Locality,LD - Huntigndonshire  - Special Needs,Residential Care
Cambridgeshire County Council,07-Nov-18,51300519291,"-1,337.66",OAKLANDS,CARE ESTABLISHMENT,LD - Hunts Locality,LD - Huntigndonshire  - Special Needs,Residential Care
Cambridgeshire County Council,07-Nov-18,51300519307,"-1,337.66",OAKLANDS,CARE ESTABLISHMENT,LD - Hunts Locality,LD - Huntigndonshire  - Special Needs,Residential Care
Cambridgeshire County Council,07-Nov-18,51300519275,"-1,337.66",OAKLANDS,CARE ESTABLISHMENT,LD - Hunts Locality,LD - Huntigndonshire  - Special Needs,Residential Care
Cambridgeshire County Council,07-Nov-18,51300519298,"-1,337.66",OAKLANDS,CARE ESTABLISHMENT,LD - Hunts Locality,LD - Huntigndonshire  - Special Needs,Residential Care
Cambridgeshire County Council,07-Nov-18,51300519264,"-1,337.66",OAKLANDS,CARE ESTABLISHMENT,LD - Hunts Locality,LD - Huntigndonshire  - Special Needs,Residential Care
Cambridgeshire County Council,07-Nov-18,51300519250,"-1,337.66",OAKLANDS,CARE ESTABLISHMENT,LD - Hunts Locality,LD - Huntigndonshire  - Special Needs,Residential Care
Cambridgeshire County Council,07-Nov-18,51300519313,"-1,337.66",OAKLANDS,CARE ESTABLISHMENT,LD - Hunts Locality,LD - Huntigndonshire  - Special Needs,Residential Care
Cambridgeshire County Council,07-Nov-18,51300519239,"-1,337.66",OAKLANDS,CARE ESTABLISHMENT,LD - Hunts Locality,LD - Huntigndonshire  - Special Needs,Residential Care
Cambridgeshire County Council,07-Nov-18,51300525059,"-1,328.70",SOCIAL CARE SOLUTIONS LTD,CARE ESTABLISHMENT,LD - Fenland Locality,LD - Fenland  - Special Needs,Supported Living
Cambridgeshire County Council,07-Nov-18,51300525545,"-1,328.70",SOCIAL CARE SOLUTIONS LTD,CARE ESTABLISHMENT,LD - Fenland Locality,LD - Fenland  - Special Needs,Supported Living
Cambridgeshire County Council,23-Nov-18,51300535696,"-1,328.44",CARE MANAGEMENT GROUP (64-66 CARLTON),CARE ESTABLISHMENT,LD - East Locality,LD - East Cambs - Special Needs,Residential Care
Cambridgeshire County Council,23-Nov-18,51300535699,"-1,328.44",CARE MANAGEMENT GROUP (64-66 CARLTON),CARE ESTABLISHMENT,LD - East Locality,LD - East Cambs - Special Needs,Residential Care
Cambridgeshire County Council,23-Nov-18,51300545256,"-1,328.44",CARE MANAGEMENT GROUP (64-66 CARLTON),CARE ESTABLISHMENT,LD - East Locality,LD - East Cambs - Special Needs,Residential Care
Cambridgeshire County Council,23-Nov-18,51300551251,"-1,328.44",CARE MANAGEMENT GROUP (64-66 CARLTON),CARE ESTABLISHMENT,LD - East Locality,LD - East Cambs - Special Needs,Residential Care
Cambridgeshire County Council,23-Nov-18,51300535628,"-1,328.44",CARE MANAGEMENT GROUP (64-66 CARLTON),CARE ESTABLISHMENT,LD - East Locality,LD - East Cambs - Special Needs,Residential Care
Cambridgeshire County Council,23-Nov-18,51300506136,"-1,328.44",CARE MANAGEMENT GROUP (64-66 CARLTON),CARE ESTABLISHMENT,LD - East Locality,LD - East Cambs - Special Needs,Residential Care
Cambridgeshire County Council,23-Nov-18,51300551192,"-1,328.44",CARE MANAGEMENT GROUP (64-66 CARLTON),CARE ESTABLISHMENT,LD - East Locality,LD - East Cambs - Special Needs,Residential Care
Cambridgeshire County Council,23-Nov-18,51300506125,"-1,328.44",CARE MANAGEMENT GROUP (64-66 CARLTON),CARE ESTABLISHMENT,LD - East Locality,LD - East Cambs - Special Needs,Residential Care
Cambridgeshire County Council,23-Nov-18,51300506105,"-1,328.44",CARE MANAGEMENT GROUP (64-66 CARLTON),CARE ESTABLISHMENT,LD - East Locality,LD - East Cambs - Special Needs,Residential Care
Cambridgeshire County Council,23-Nov-18,51300535703,"-1,328.44",CARE MANAGEMENT GROUP (64-66 CARLTON),CARE ESTABLISHMENT,LD - East Locality,LD - East Cambs - Special Needs,Residential Care
Cambridgeshire County Council,23-Nov-18,51300506067,"-1,328.44",CARE MANAGEMENT GROUP (64-66 CARLTON),CARE ESTABLISHMENT,LD - East Locality,LD - East Cambs - Special Needs,Residential Care
Cambridgeshire County Council,23-Nov-18,51300535671,"-1,328.44",CARE MANAGEMENT GROUP (64-66 CARLTON),CARE ESTABLISHMENT,LD - East Locality,LD - East Cambs - Special Needs,Residential Care
Cambridgeshire County Council,23-Nov-18,51300545226,"-1,328.44",CARE MANAGEMENT GROUP (64-66 CARLTON),CARE ESTABLISHMENT,LD - East Locality,LD - East Cambs - Special Needs,Residential Care
Cambridgeshire County Council,23-Nov-18,51300535621,"-1,328.44",CARE MANAGEMENT GROUP (64-66 CARLTON),CARE ESTABLISHMENT,LD - East Locality,LD - East Cambs - Special Needs,Residential Care
Cambridgeshire County Council,23-Nov-18,51300506044,"-1,328.44",CARE MANAGEMENT GROUP (64-66 CARLTON),CARE ESTABLISHMENT,LD - East Locality,LD - East Cambs - Special Needs,Residential Care
Cambridgeshire County Council,23-Nov-18,51300506115,"-1,328.44",CARE MANAGEMENT GROUP (64-66 CARLTON),CARE ESTABLISHMENT,LD - East Locality,LD - East Cambs - Special Needs,Residential Care
Cambridgeshire County Council,23-Nov-18,51300545287,"-1,328.44",CARE MANAGEMENT GROUP (64-66 CARLTON),CARE ESTABLISHMENT,LD - East Locality,LD - East Cambs - Special Needs,Residential Care
Cambridgeshire County Council,23-Nov-18,51300545329,"-1,328.44",CARE MANAGEMENT GROUP (64-66 CARLTON),CARE ESTABLISHMENT,LD - East Locality,LD - East Cambs - Special Needs,Residential Care
Cambridgeshire County Council,23-Nov-18,51300535679,"-1,328.44",CARE MANAGEMENT GROUP (64-66 CARLTON),CARE ESTABLISHMENT,LD - East Locality,LD - East Cambs - Special Needs,Residential Care
Cambridgeshire County Council,23-Nov-18,51300535737,"-1,328.44",CARE MANAGEMENT GROUP (64-66 CARLTON),CARE ESTABLISHMENT,LD - East Locality,LD - East Cambs - Special Needs,Residential Care
Cambridgeshire County Council,23-Nov-18,51300535672,"-1,328.44",CARE MANAGEMENT GROUP (64-66 CARLTON),CARE ESTABLISHMENT,LD - East Locality,LD - East Cambs - Special Needs,Residential Care
Cambridgeshire County Council,23-Nov-18,51300506021,"-1,328.44",CARE MANAGEMENT GROUP (64-66 CARLTON),CARE ESTABLISHMENT,LD - East Locality,LD - East Cambs - Special Needs,Residential Care
Cambridgeshire County Council,23-Nov-18,51300545283,"-1,328.44",CARE MANAGEMENT GROUP (64-66 CARLTON),CARE ESTABLISHMENT,LD - East Locality,LD - East Cambs - Special Needs,Residential Care
Cambridgeshire County Council,23-Nov-18,51300545238,"-1,328.44",CARE MANAGEMENT GROUP (64-66 CARLTON),CARE ESTABLISHMENT,LD - East Locality,LD - East Cambs - Special Needs,Residential Care
Cambridgeshire County Council,23-Nov-18,51300545239,"-1,328.44",CARE MANAGEMENT GROUP (64-66 CARLTON),CARE ESTABLISHMENT,LD - East Locality,LD - East Cambs - Special Needs,Residential Care
Cambridgeshire County Council,23-Nov-18,51300551236,"-1,328.44",CARE MANAGEMENT GROUP (64-66 CARLTON),CARE ESTABLISHMENT,LD - East Locality,LD - East Cambs - Special Needs,Residential Care
Cambridgeshire County Council,23-Nov-18,51300506134,"-1,328.44",CARE MANAGEMENT GROUP (64-66 CARLTON),CARE ESTABLISHMENT,LD - East Locality,LD - East Cambs - Special Needs,Residential Care
Cambridgeshire County Council,23-Nov-18,51300506054,"-1,328.44",CARE MANAGEMENT GROUP (64-66 CARLTON),CARE ESTABLISHMENT,LD - East Locality,LD - East Cambs - Special Needs,Residential Care
Cambridgeshire County Council,23-Nov-18,51300551298,"-1,328.44",CARE MANAGEMENT GROUP (64-66 CARLTON),CARE ESTABLISHMENT,LD - East Locality,LD - East Cambs - Special Needs,Residential Care
Cambridgeshire County Council,23-Nov-18,51300535697,"-1,328.44",CARE MANAGEMENT GROUP (64-66 CARLTON),CARE ESTABLISHMENT,LD - East Locality,LD - East Cambs - Special Needs,Residential Care
Cambridgeshire County Council,23-Nov-18,51300506158,"-1,328.44",CARE MANAGEMENT GROUP (64-66 CARLTON),CARE ESTABLISHMENT,LD - East Locality,LD - East Cambs - Special Needs,Residential Care
Cambridgeshire County Council,23-Nov-18,51300551285,"-1,328.44",CARE MANAGEMENT GROUP (64-66 CARLTON),CARE ESTABLISHMENT,LD - East Locality,LD - East Cambs - Special Needs,Residential Care
Cambridgeshire County Council,23-Nov-18,51300545251,"-1,328.44",CARE MANAGEMENT GROUP (64-66 CARLTON),CARE ESTABLISHMENT,LD - East Locality,LD - East Cambs - Special Needs,Residential Care
Cambridgeshire County Council,23-Nov-18,51300545241,"-1,328.44",CARE MANAGEMENT GROUP (64-66 CARLTON),CARE ESTABLISHMENT,LD - East Locality,LD - East Cambs - Special Needs,Residential Care
Cambridgeshire County Council,23-Nov-18,51300535707,"-1,328.44",CARE MANAGEMENT GROUP (64-66 CARLTON),CARE ESTABLISHMENT,LD - East Locality,LD - East Cambs - Special Needs,Residential Care
Cambridgeshire County Council,23-Nov-18,51300551342,"-1,328.44",CARE MANAGEMENT GROUP (64-66 CARLTON),CARE ESTABLISHMENT,LD - East Locality,LD - East Cambs - Special Needs,Residential Care
Cambridgeshire County Council,23-Nov-18,51300551213,"-1,328.44",CARE MANAGEMENT GROUP (64-66 CARLTON),CARE ESTABLISHMENT,LD - East Locality,LD - East Cambs - Special Needs,Residential Care
Cambridgeshire County Council,23-Nov-18,51300545299,"-1,328.44",CARE MANAGEMENT GROUP (64-66 CARLTON),CARE ESTABLISHMENT,LD - East Locality,LD - East Cambs - Special Needs,Residential Care
Cambridgeshire County Council,23-Nov-18,51300551211,"-1,328.44",CARE MANAGEMENT GROUP (64-66 CARLTON),CARE ESTABLISHMENT,LD - East Locality,LD - East Cambs - Special Needs,Residential Care
Cambridgeshire County Council,23-Nov-18,51300545252,"-1,328.44",CARE MANAGEMENT GROUP (64-66 CARLTON),CARE ESTABLISHMENT,LD - East Locality,LD - East Cambs - Special Needs,Residential Care
Cambridgeshire County Council,23-Nov-18,51300535691,"-1,328.44",CARE MANAGEMENT GROUP (64-66 CARLTON),CARE ESTABLISHMENT,LD - East Locality,LD - East Cambs - Special Needs,Residential Care
Cambridgeshire County Council,23-Nov-18,51300545273,"-1,328.44",CARE MANAGEMENT GROUP (64-66 CARLTON),CARE ESTABLISHMENT,LD - East Locality,LD - East Cambs - Special Needs,Residential Care
Cambridgeshire County Council,23-Nov-18,51300545288,"-1,328.44",CARE MANAGEMENT GROUP (64-66 CARLTON),CARE ESTABLISHMENT,LD - East Locality,LD - East Cambs - Special Needs,Residential Care
Cambridgeshire County Council,23-Nov-18,51300506011,"-1,328.44",CARE MANAGEMENT GROUP (64-66 CARLTON),CARE ESTABLISHMENT,LD - East Locality,LD - East Cambs - Special Needs,Residential Care
Cambridgeshire County Council,23-Nov-18,51300506045,"-1,328.44",CARE MANAGEMENT GROUP (64-66 CARLTON),CARE ESTABLISHMENT,LD - East Locality,LD - East Cambs - Special Needs,Residential Care
Cambridgeshire County Council,23-Nov-18,51300551217,"-1,328.44",CARE MANAGEMENT GROUP (64-66 CARLTON),CARE ESTABLISHMENT,LD - East Locality,LD - East Cambs - Special Needs,Residential Care
Cambridgeshire County Council,23-Nov-18,51300506020,"-1,328.44",CARE MANAGEMENT GROUP (64-66 CARLTON),CARE ESTABLISHMENT,LD - East Locality,LD - East Cambs - Special Needs,Residential Care
Cambridgeshire County Council,23-Nov-18,51300545303,"-1,328.44",CARE MANAGEMENT GROUP (64-66 CARLTON),CARE ESTABLISHMENT,LD - East Locality,LD - East Cambs - Special Needs,Residential Care
Cambridgeshire County Council,23-Nov-18,51300506093,"-1,328.44",CARE MANAGEMENT GROUP (64-66 CARLTON),CARE ESTABLISHMENT,LD - East Locality,LD - East Cambs - Special Needs,Residential Care
Cambridgeshire County Council,23-Nov-18,51300535748,"-1,328.44",CARE MANAGEMENT GROUP (64-66 CARLTON),CARE ESTABLISHMENT,LD - East Locality,LD - East Cambs - Special Needs,Residential Care
Cambridgeshire County Council,23-Nov-18,51300551190,"-1,328.44",CARE MANAGEMENT GROUP (64-66 CARLTON),CARE ESTABLISHMENT,LD - East Locality,LD - East Cambs - Special Needs,Residential Care
Cambridgeshire County Council,23-Nov-18,51300551297,"-1,328.44",CARE MANAGEMENT GROUP (64-66 CARLTON),CARE ESTABLISHMENT,LD - East Locality,LD - East Cambs - Special Needs,Residential Care
Cambridgeshire County Council,23-Nov-18,51300545262,"-1,328.44",CARE MANAGEMENT GROUP (64-66 CARLTON),CARE ESTABLISHMENT,LD - East Locality,LD - East Cambs - Special Needs,Residential Care
Cambridgeshire County Council,23-Nov-18,51300506128,"-1,328.44",CARE MANAGEMENT GROUP (64-66 CARLTON),CARE ESTABLISHMENT,LD - East Locality,LD - East Cambs - Special Needs,Residential Care
Cambridgeshire County Council,23-Nov-18,51300545333,"-1,328.44",CARE MANAGEMENT GROUP (64-66 CARLTON),CARE ESTABLISHMENT,LD - East Locality,LD - East Cambs - Special Needs,Residential Care
Cambridgeshire County Council,23-Nov-18,51300506144,"-1,328.44",CARE MANAGEMENT GROUP (64-66 CARLTON),CARE ESTABLISHMENT,LD - East Locality,LD - East Cambs - Special Needs,Residential Care
Cambridgeshire County Council,23-Nov-18,51300551189,"-1,328.44",CARE MANAGEMENT GROUP (64-66 CARLTON),CARE ESTABLISHMENT,LD - East Locality,LD - East Cambs - Special Needs,Residential Care
Cambridgeshire County Council,23-Nov-18,51300551191,"-1,328.44",CARE MANAGEMENT GROUP (64-66 CARLTON),CARE ESTABLISHMENT,LD - East Locality,LD - East Cambs - Special Needs,Residential Care
Cambridgeshire County Council,23-Nov-18,51300535650,"-1,328.44",CARE MANAGEMENT GROUP (64-66 CARLTON),CARE ESTABLISHMENT,LD - East Locality,LD - East Cambs - Special Needs,Residential Care
Cambridgeshire County Council,23-Nov-18,51300545236,"-1,328.44",CARE MANAGEMENT GROUP (64-66 CARLTON),CARE ESTABLISHMENT,LD - East Locality,LD - East Cambs - Special Needs,Residential Care
Cambridgeshire County Council,23-Nov-18,51300535722,"-1,328.44",CARE MANAGEMENT GROUP (64-66 CARLTON),CARE ESTABLISHMENT,LD - East Locality,LD - East Cambs - Special Needs,Residential Care
Cambridgeshire County Council,23-Nov-18,51300551193,"-1,328.44",CARE MANAGEMENT GROUP (64-66 CARLTON),CARE ESTABLISHMENT,LD - East Locality,LD - East Cambs - Special Needs,Residential Care
Cambridgeshire County Council,23-Nov-18,51300545220,"-1,328.44",CARE MANAGEMENT GROUP (64-66 CARLTON),CARE ESTABLISHMENT,LD - East Locality,LD - East Cambs - Special Needs,Residential Care
Cambridgeshire County Council,23-Nov-18,51300545267,"-1,328.44",CARE MANAGEMENT GROUP (64-66 CARLTON),CARE ESTABLISHMENT,LD - East Locality,LD - East Cambs - Special Needs,Residential Care
Cambridgeshire County Council,23-Nov-18,51300551243,"-1,328.44",CARE MANAGEMENT GROUP (64-66 CARLTON),CARE ESTABLISHMENT,LD - East Locality,LD - East Cambs - Special Needs,Residential Care
Cambridgeshire County Council,23-Nov-18,51300535657,"-1,328.44",CARE MANAGEMENT GROUP (64-66 CARLTON),CARE ESTABLISHMENT,LD - East Locality,LD - East Cambs - Special Needs,Residential Care
Cambridgeshire County Council,23-Nov-18,51300545351,"-1,328.44",CARE MANAGEMENT GROUP (64-66 CARLTON),CARE ESTABLISHMENT,LD - East Locality,LD - East Cambs - Special Needs,Residential Care
Cambridgeshire County Council,23-Nov-18,51300506022,"-1,328.44",CARE MANAGEMENT GROUP (64-66 CARLTON),CARE ESTABLISHMENT,LD - East Locality,LD - East Cambs - Special Needs,Residential Care
Cambridgeshire County Council,23-Nov-18,51300551345,"-1,328.44",CARE MANAGEMENT GROUP (64-66 CARLTON),CARE ESTABLISHMENT,LD - East Locality,LD - East Cambs - Special Needs,Residential Care
Cambridgeshire County Council,23-Nov-18,51300551324,"-1,328.44",CARE MANAGEMENT GROUP (64-66 CARLTON),CARE ESTABLISHMENT,LD - East Locality,LD - East Cambs - Special Needs,Residential Care
Cambridgeshire County Council,23-Nov-18,51300545342,"-1,328.44",CARE MANAGEMENT GROUP (64-66 CARLTON),CARE ESTABLISHMENT,LD - East Locality,LD - East Cambs - Special Needs,Residential Care
Cambridgeshire County Council,23-Nov-18,51300535749,"-1,328.44",CARE MANAGEMENT GROUP (64-66 CARLTON),CARE ESTABLISHMENT,LD - East Locality,LD - East Cambs - Special Needs,Residential Care
Cambridgeshire County Council,23-Nov-18,51300506064,"-1,328.44",CARE MANAGEMENT GROUP (64-66 CARLTON),CARE ESTABLISHMENT,LD - East Locality,LD - East Cambs - Special Needs,Residential Care
Cambridgeshire County Council,23-Nov-18,51300551270,"-1,328.44",CARE MANAGEMENT GROUP (64-66 CARLTON),CARE ESTABLISHMENT,LD - East Locality,LD - East Cambs - Special Needs,Residential Care
Cambridgeshire County Council,23-Nov-18,51300535668,"-1,328.44",CARE MANAGEMENT GROUP (64-66 CARLTON),CARE ESTABLISHMENT,LD - East Locality,LD - East Cambs - Special Needs,Residential Care
Cambridgeshire County Council,23-Nov-18,51300551272,"-1,328.44",CARE MANAGEMENT GROUP (64-66 CARLTON),CARE ESTABLISHMENT,LD - East Locality,LD - East Cambs - Special Needs,Residential Care
Cambridgeshire County Council,23-Nov-18,51300551346,"-1,328.44",CARE MANAGEMENT GROUP (64-66 CARLTON),CARE ESTABLISHMENT,LD - East Locality,LD - East Cambs - Special Needs,Residential Care
Cambridgeshire County Council,23-Nov-18,51300551327,"-1,328.44",CARE MANAGEMENT GROUP (64-66 CARLTON),CARE ESTABLISHMENT,LD - East Locality,LD - East Cambs - Special Needs,Residential Care
Cambridgeshire County Council,23-Nov-18,51300506107,"-1,328.44",CARE MANAGEMENT GROUP (64-66 CARLTON),CARE ESTABLISHMENT,LD - East Locality,LD - East Cambs - Special Needs,Residential Care
Cambridgeshire County Council,23-Nov-18,51300551330,"-1,328.44",CARE MANAGEMENT GROUP (64-66 CARLTON),CARE ESTABLISHMENT,LD - East Locality,LD - East Cambs - Special Needs,Residential Care
Cambridgeshire County Council,23-Nov-18,51300545354,"-1,328.44",CARE MANAGEMENT GROUP (64-66 CARLTON),CARE ESTABLISHMENT,LD - East Locality,LD - East Cambs - Special Needs,Residential Care
Cambridgeshire County Council,23-Nov-18,51300551277,"-1,328.44",CARE MANAGEMENT GROUP (64-66 CARLTON),CARE ESTABLISHMENT,LD - East Locality,LD - East Cambs - Special Needs,Residential Care
Cambridgeshire County Council,23-Nov-18,51300535678,"-1,328.44",CARE MANAGEMENT GROUP (64-66 CARLTON),CARE ESTABLISHMENT,LD - East Locality,LD - East Cambs - Special Needs,Residential Care
Cambridgeshire County Council,23-Nov-18,51300535635,"-1,328.44",CARE MANAGEMENT GROUP (64-66 CARLTON),CARE ESTABLISHMENT,LD - East Locality,LD - East Cambs - Special Needs,Residential Care
Cambridgeshire County Council,23-Nov-18,51300545308,"-1,328.44",CARE MANAGEMENT GROUP (64-66 CARLTON),CARE ESTABLISHMENT,LD - East Locality,LD - East Cambs - Special Needs,Residential Care
Cambridgeshire County Council,23-Nov-18,51300545277,"-1,328.44",CARE MANAGEMENT GROUP (64-66 CARLTON),CARE ESTABLISHMENT,LD - East Locality,LD - East Cambs - Special Needs,Residential Care
Cambridgeshire County Council,23-Nov-18,51300545346,"-1,328.44",CARE MANAGEMENT GROUP (64-66 CARLTON),CARE ESTABLISHMENT,LD - East Locality,LD - East Cambs - Special Needs,Residential Care
Cambridgeshire County Council,23-Nov-18,51300506052,"-1,328.44",CARE MANAGEMENT GROUP (64-66 CARLTON),CARE ESTABLISHMENT,LD - East Locality,LD - East Cambs - Special Needs,Residential Care
Cambridgeshire County Council,23-Nov-18,51300545278,"-1,328.44",CARE MANAGEMENT GROUP (64-66 CARLTON),CARE ESTABLISHMENT,LD - East Locality,LD - East Cambs - Special Needs,Residential Care
Cambridgeshire County Council,23-Nov-18,51300551294,"-1,328.44",CARE MANAGEMENT GROUP (64-66 CARLTON),CARE ESTABLISHMENT,LD - East Locality,LD - East Cambs - Special Needs,Residential Care
Cambridgeshire County Council,23-Nov-18,51300545227,"-1,328.44",CARE MANAGEMENT GROUP (64-66 CARLTON),CARE ESTABLISHMENT,LD - East Locality,LD - East Cambs - Special Needs,Residential Care
Cambridgeshire County Council,23-Nov-18,51300506137,"-1,328.44",CARE MANAGEMENT GROUP (64-66 CARLTON),CARE ESTABLISHMENT,LD - East Locality,LD - East Cambs - Special Needs,Residential Care
Cambridgeshire County Council,23-Nov-18,51300506042,"-1,328.44",CARE MANAGEMENT GROUP (64-66 CARLTON),CARE ESTABLISHMENT,LD - East Locality,LD - East Cambs - Special Needs,Residential Care
Cambridgeshire County Council,23-Nov-18,51300506114,"-1,328.44",CARE MANAGEMENT GROUP (64-66 CARLTON),CARE ESTABLISHMENT,LD - East Locality,LD - East Cambs - Special Needs,Residential Care
Cambridgeshire County Council,23-Nov-18,51300535727,"-1,328.44",CARE MANAGEMENT GROUP (64-66 CARLTON),CARE ESTABLISHMENT,LD - East Locality,LD - East Cambs - Special Needs,Residential Care
Cambridgeshire County Council,23-Nov-18,51300551229,"-1,328.44",CARE MANAGEMENT GROUP (64-66 CARLTON),CARE ESTABLISHMENT,LD - East Locality,LD - East Cambs - Special Needs,Residential Care
Cambridgeshire County Council,23-Nov-18,51300551220,"-1,328.44",CARE MANAGEMENT GROUP (64-66 CARLTON),CARE ESTABLISHMENT,LD - East Locality,LD - East Cambs - Special Needs,Residential Care
Cambridgeshire County Council,23-Nov-18,51300551332,"-1,328.44",CARE MANAGEMENT GROUP (64-66 CARLTON),CARE ESTABLISHMENT,LD - East Locality,LD - East Cambs - Special Needs,Residential Care
Cambridgeshire County Council,23-Nov-18,51300551200,"-1,328.44",CARE MANAGEMENT GROUP (64-66 CARLTON),CARE ESTABLISHMENT,LD - East Locality,LD - East Cambs - Special Needs,Residential Care
Cambridgeshire County Council,23-Nov-18,51300535662,"-1,328.44",CARE MANAGEMENT GROUP (64-66 CARLTON),CARE ESTABLISHMENT,LD - East Locality,LD - East Cambs - Special Needs,Residential Care
Cambridgeshire County Council,23-Nov-18,51300551309,"-1,328.44",CARE MANAGEMENT GROUP (64-66 CARLTON),CARE ESTABLISHMENT,LD - East Locality,LD - East Cambs - Special Needs,Residential Care
Cambridgeshire County Council,23-Nov-18,51300551311,"-1,328.44",CARE MANAGEMENT GROUP (64-66 CARLTON),CARE ESTABLISHMENT,LD - East Locality,LD - East Cambs - Special Needs,Residential Care
Cambridgeshire County Council,23-Nov-18,51300551199,"-1,328.44",CARE MANAGEMENT GROUP (64-66 CARLTON),CARE ESTABLISHMENT,LD - East Locality,LD - East Cambs - Special Needs,Residential Care
Cambridgeshire County Council,23-Nov-18,51300545225,"-1,328.44",CARE MANAGEMENT GROUP (64-66 CARLTON),CARE ESTABLISHMENT,LD - East Locality,LD - East Cambs - Special Needs,Residential Care
Cambridgeshire County Council,23-Nov-18,51300551201,"-1,328.44",CARE MANAGEMENT GROUP (64-66 CARLTON),CARE ESTABLISHMENT,LD - East Locality,LD - East Cambs - Special Needs,Residential Care
Cambridgeshire County Council,23-Nov-18,51300551215,"-1,328.44",CARE MANAGEMENT GROUP (64-66 CARLTON),CARE ESTABLISHMENT,LD - East Locality,LD - East Cambs - Special Needs,Residential Care
Cambridgeshire County Council,23-Nov-18,51300545292,"-1,328.44",CARE MANAGEMENT GROUP (64-66 CARLTON),CARE ESTABLISHMENT,LD - East Locality,LD - East Cambs - Special Needs,Residential Care
Cambridgeshire County Council,23-Nov-18,51300545248,"-1,328.44",CARE MANAGEMENT GROUP (64-66 CARLTON),CARE ESTABLISHMENT,LD - East Locality,LD - East Cambs - Special Needs,Residential Care
Cambridgeshire County Council,23-Nov-18,51300551196,"-1,328.44",CARE MANAGEMENT GROUP (64-66 CARLTON),CARE ESTABLISHMENT,LD - East Locality,LD - East Cambs - Special Needs,Residential Care
Cambridgeshire County Council,23-Nov-18,51300551281,"-1,328.44",CARE MANAGEMENT GROUP (64-66 CARLTON),CARE ESTABLISHMENT,LD - East Locality,LD - East Cambs - Special Needs,Residential Care
Cambridgeshire County Council,23-Nov-18,51300551259,"-1,328.44",CARE MANAGEMENT GROUP (64-66 CARLTON),CARE ESTABLISHMENT,LD - East Locality,LD - East Cambs - Special Needs,Residential Care
Cambridgeshire County Council,23-Nov-18,51300506100,"-1,328.44",CARE MANAGEMENT GROUP (64-66 CARLTON),CARE ESTABLISHMENT,LD - East Locality,LD - East Cambs - Special Needs,Residential Care
Cambridgeshire County Council,23-Nov-18,51300535742,"-1,328.44",CARE MANAGEMENT GROUP (64-66 CARLTON),CARE ESTABLISHMENT,LD - East Locality,LD - East Cambs - Special Needs,Residential Care
Cambridgeshire County Council,23-Nov-18,51300506108,"-1,328.44",CARE MANAGEMENT GROUP (64-66 CARLTON),CARE ESTABLISHMENT,LD - East Locality,LD - East Cambs - Special Needs,Residential Care
Cambridgeshire County Council,23-Nov-18,51300535630,"-1,328.44",CARE MANAGEMENT GROUP (64-66 CARLTON),CARE ESTABLISHMENT,LD - East Locality,LD - East Cambs - Special Needs,Residential Care
Cambridgeshire County Council,23-Nov-18,51300551252,"-1,328.44",CARE MANAGEMENT GROUP (64-66 CARLTON),CARE ESTABLISHMENT,LD - East Locality,LD - East Cambs - Special Needs,Residential Care
Cambridgeshire County Council,23-Nov-18,51300551210,"-1,328.44",CARE MANAGEMENT GROUP (64-66 CARLTON),CARE ESTABLISHMENT,LD - East Locality,LD - East Cambs - Special Needs,Residential Care
Cambridgeshire County Council,23-Nov-18,51300506035,"-1,328.44",CARE MANAGEMENT GROUP (64-66 CARLTON),CARE ESTABLISHMENT,LD - East Locality,LD - East Cambs - Special Needs,Residential Care
Cambridgeshire County Council,23-Nov-18,51300506068,"-1,328.44",CARE MANAGEMENT GROUP (64-66 CARLTON),CARE ESTABLISHMENT,LD - East Locality,LD - East Cambs - Special Needs,Residential Care
Cambridgeshire County Council,23-Nov-18,51300545237,"-1,328.44",CARE MANAGEMENT GROUP (64-66 CARLTON),CARE ESTABLISHMENT,LD - East Locality,LD - East Cambs - Special Needs,Residential Care
Cambridgeshire County Council,23-Nov-18,51300551249,"-1,328.44",CARE MANAGEMENT GROUP (64-66 CARLTON),CARE ESTABLISHMENT,LD - East Locality,LD - East Cambs - Special Needs,Residential Care
Cambridgeshire County Council,23-Nov-18,51300551206,"-1,328.44",CARE MANAGEMENT GROUP (64-66 CARLTON),CARE ESTABLISHMENT,LD - East Locality,LD - East Cambs - Special Needs,Residential Care
Cambridgeshire County Council,23-Nov-18,51300535724,"-1,328.44",CARE MANAGEMENT GROUP (64-66 CARLTON),CARE ESTABLISHMENT,LD - East Locality,LD - East Cambs - Special Needs,Residential Care
Cambridgeshire County Council,23-Nov-18,51300535611,"-1,328.44",CARE MANAGEMENT GROUP (64-66 CARLTON),CARE ESTABLISHMENT,LD - East Locality,LD - East Cambs - Special Needs,Residential Care
Cambridgeshire County Council,23-Nov-18,51300535609,"-1,328.44",CARE MANAGEMENT GROUP (64-66 CARLTON),CARE ESTABLISHMENT,LD - East Locality,LD - East Cambs - Special Needs,Residential Care
Cambridgeshire County Council,23-Nov-18,51300545349,"-1,328.44",CARE MANAGEMENT GROUP (64-66 CARLTON),CARE ESTABLISHMENT,LD - East Locality,LD - East Cambs - Special Needs,Residential Care
Cambridgeshire County Council,23-Nov-18,51300535736,"-1,328.44",CARE MANAGEMENT GROUP (64-66 CARLTON),CARE ESTABLISHMENT,LD - East Locality,LD - East Cambs - Special Needs,Residential Care
Cambridgeshire County Council,23-Nov-18,51300545280,"-1,328.44",CARE MANAGEMENT GROUP (64-66 CARLTON),CARE ESTABLISHMENT,LD - East Locality,LD - East Cambs - Special Needs,Residential Care
Cambridgeshire County Council,23-Nov-18,51300506046,"-1,328.44",CARE MANAGEMENT GROUP (64-66 CARLTON),CARE ESTABLISHMENT,LD - East Locality,LD - East Cambs - Special Needs,Residential Care
Cambridgeshire County Council,23-Nov-18,51300551204,"-1,328.44",CARE MANAGEMENT GROUP (64-66 CARLTON),CARE ESTABLISHMENT,LD - East Locality,LD - East Cambs - Special Needs,Residential Care
Cambridgeshire County Council,23-Nov-18,51300506031,"-1,328.44",CARE MANAGEMENT GROUP (64-66 CARLTON),CARE ESTABLISHMENT,LD - East Locality,LD - East Cambs - Special Needs,Residential Care
Cambridgeshire County Council,23-Nov-18,51300551233,"-1,328.44",CARE MANAGEMENT GROUP (64-66 CARLTON),CARE ESTABLISHMENT,LD - East Locality,LD - East Cambs - Special Needs,Residential Care
Cambridgeshire County Council,23-Nov-18,51300535753,"-1,328.44",CARE MANAGEMENT GROUP (64-66 CARLTON),CARE ESTABLISHMENT,LD - East Locality,LD - East Cambs - Special Needs,Residential Care
Cambridgeshire County Council,23-Nov-18,51300545356,"-1,328.44",CARE MANAGEMENT GROUP (64-66 CARLTON),CARE ESTABLISHMENT,LD - East Locality,LD - East Cambs - Special Needs,Residential Care
Cambridgeshire County Council,23-Nov-18,51300535644,"-1,328.44",CARE MANAGEMENT GROUP (64-66 CARLTON),CARE ESTABLISHMENT,LD - East Locality,LD - East Cambs - Special Needs,Residential Care
Cambridgeshire County Council,23-Nov-18,51300506110,"-1,328.44",CARE MANAGEMENT GROUP (64-66 CARLTON),CARE ESTABLISHMENT,LD - East Locality,LD - East Cambs - Special Needs,Residential Care
Cambridgeshire County Council,23-Nov-18,51300506096,"-1,328.44",CARE MANAGEMENT GROUP (64-66 CARLTON),CARE ESTABLISHMENT,LD - East Locality,LD - East Cambs - Special Needs,Residential Care
Cambridgeshire County Council,23-Nov-18,51300506145,"-1,328.44",CARE MANAGEMENT GROUP (64-66 CARLTON),CARE ESTABLISHMENT,LD - East Locality,LD - East Cambs - Special Needs,Residential Care
Cambridgeshire County Council,23-Nov-18,51300551253,"-1,328.44",CARE MANAGEMENT GROUP (64-66 CARLTON),CARE ESTABLISHMENT,LD - East Locality,LD - East Cambs - Special Needs,Residential Care
Cambridgeshire County Council,23-Nov-18,51300506061,"-1,328.44",CARE MANAGEMENT GROUP (64-66 CARLTON),CARE ESTABLISHMENT,LD - East Locality,LD - East Cambs - Special Needs,Residential Care
Cambridgeshire County Council,23-Nov-18,51300535613,"-1,328.44",CARE MANAGEMENT GROUP (64-66 CARLTON),CARE ESTABLISHMENT,LD - East Locality,LD - East Cambs - Special Needs,Residential Care
Cambridgeshire County Council,23-Nov-18,51300545215,"-1,328.44",CARE MANAGEMENT GROUP (64-66 CARLTON),CARE ESTABLISHMENT,LD - East Locality,LD - East Cambs - Special Needs,Residential Care
Cambridgeshire County Council,23-Nov-18,51300545345,"-1,328.44",CARE MANAGEMENT GROUP (64-66 CARLTON),CARE ESTABLISHMENT,LD - East Locality,LD - East Cambs - Special Needs,Residential Care
Cambridgeshire County Council,23-Nov-18,51300506038,"-1,328.44",CARE MANAGEMENT GROUP (64-66 CARLTON),CARE ESTABLISHMENT,LD - East Locality,LD - East Cambs - Special Needs,Residential Care
Cambridgeshire County Council,23-Nov-18,51300535616,"-1,328.44",CARE MANAGEMENT GROUP (64-66 CARLTON),CARE ESTABLISHMENT,LD - East Locality,LD - East Cambs - Special Needs,Residential Care
Cambridgeshire County Council,23-Nov-18,51300535739,"-1,328.44",CARE MANAGEMENT GROUP (64-66 CARLTON),CARE ESTABLISHMENT,LD - East Locality,LD - East Cambs - Special Needs,Residential Care
Cambridgeshire County Council,23-Nov-18,51300506146,"-1,328.44",CARE MANAGEMENT GROUP (64-66 CARLTON),CARE ESTABLISHMENT,LD - East Locality,LD - East Cambs - Special Needs,Residential Care
Cambridgeshire County Council,23-Nov-18,51300535717,"-1,328.44",CARE MANAGEMENT GROUP (64-66 CARLTON),CARE ESTABLISHMENT,LD - East Locality,LD - East Cambs - Special Needs,Residential Care
Cambridgeshire County Council,23-Nov-18,51300535670,"-1,328.44",CARE MANAGEMENT GROUP (64-66 CARLTON),CARE ESTABLISHMENT,LD - East Locality,LD - East Cambs - Special Needs,Residential Care
Cambridgeshire County Council,23-Nov-18,51300535751,"-1,328.44",CARE MANAGEMENT GROUP (64-66 CARLTON),CARE ESTABLISHMENT,LD - East Locality,LD - East Cambs - Special Needs,Residential Care
Cambridgeshire County Council,23-Nov-18,51300545319,"-1,328.44",CARE MANAGEMENT GROUP (64-66 CARLTON),CARE ESTABLISHMENT,LD - East Locality,LD - East Cambs - Special Needs,Residential Care
Cambridgeshire County Council,23-Nov-18,51300545355,"-1,328.44",CARE MANAGEMENT GROUP (64-66 CARLTON),CARE ESTABLISHMENT,LD - East Locality,LD - East Cambs - Special Needs,Residential Care
Cambridgeshire County Council,23-Nov-18,51300551292,"-1,328.44",CARE MANAGEMENT GROUP (64-66 CARLTON),CARE ESTABLISHMENT,LD - East Locality,LD - East Cambs - Special Needs,Residential Care
Cambridgeshire County Council,23-Nov-18,51300551265,"-1,328.44",CARE MANAGEMENT GROUP (64-66 CARLTON),CARE ESTABLISHMENT,LD - East Locality,LD - East Cambs - Special Needs,Residential Care
Cambridgeshire County Council,23-Nov-18,51300551197,"-1,328.44",CARE MANAGEMENT GROUP (64-66 CARLTON),CARE ESTABLISHMENT,LD - East Locality,LD - East Cambs - Special Needs,Residential Care
Cambridgeshire County Council,23-Nov-18,51300551314,"-1,328.44",CARE MANAGEMENT GROUP (64-66 CARLTON),CARE ESTABLISHMENT,LD - East Locality,LD - East Cambs - Special Needs,Residential Care
Cambridgeshire County Council,23-Nov-18,51300506153,"-1,328.44",CARE MANAGEMENT GROUP (64-66 CARLTON),CARE ESTABLISHMENT,LD - East Locality,LD - East Cambs - Special Needs,Residential Care
Cambridgeshire County Council,23-Nov-18,51300506081,"-1,328.44",CARE MANAGEMENT GROUP (64-66 CARLTON),CARE ESTABLISHMENT,LD - East Locality,LD - East Cambs - Special Needs,Residential Care
Cambridgeshire County Council,23-Nov-18,51300545332,"-1,328.44",CARE MANAGEMENT GROUP (64-66 CARLTON),CARE ESTABLISHMENT,LD - East Locality,LD - East Cambs - Special Needs,Residential Care
Cambridgeshire County Council,23-Nov-18,51300545298,"-1,328.44",CARE MANAGEMENT GROUP (64-66 CARLTON),CARE ESTABLISHMENT,LD - East Locality,LD - East Cambs - Special Needs,Residential Care
Cambridgeshire County Council,23-Nov-18,51300545272,"-1,328.44",CARE MANAGEMENT GROUP (64-66 CARLTON),CARE ESTABLISHMENT,LD - East Locality,LD - East Cambs - Special Needs,Residential Care
Cambridgeshire County Council,23-Nov-18,51300545261,"-1,328.44",CARE MANAGEMENT GROUP (64-66 CARLTON),CARE ESTABLISHMENT,LD - East Locality,LD - East Cambs - Special Needs,Residential Care
Cambridgeshire County Council,23-Nov-18,51300506082,"-1,328.44",CARE MANAGEMENT GROUP (64-66 CARLTON),CARE ESTABLISHMENT,LD - East Locality,LD - East Cambs - Special Needs,Residential Care
Cambridgeshire County Council,23-Nov-18,51300506109,"-1,328.44",CARE MANAGEMENT GROUP (64-66 CARLTON),CARE ESTABLISHMENT,LD - East Locality,LD - East Cambs - Special Needs,Residential Care
Cambridgeshire County Council,23-Nov-18,51300535690,"-1,328.44",CARE MANAGEMENT GROUP (64-66 CARLTON),CARE ESTABLISHMENT,LD - East Locality,LD - East Cambs - Special Needs,Residential Care
Cambridgeshire County Council,23-Nov-18,51300535629,"-1,328.44",CARE MANAGEMENT GROUP (64-66 CARLTON),CARE ESTABLISHMENT,LD - East Locality,LD - East Cambs - Special Needs,Residential Care
Cambridgeshire County Council,23-Nov-18,51300545362,"-1,328.44",CARE MANAGEMENT GROUP (64-66 CARLTON),CARE ESTABLISHMENT,LD - East Locality,LD - East Cambs - Special Needs,Residential Care
Cambridgeshire County Council,23-Nov-18,51300545334,"-1,328.44",CARE MANAGEMENT GROUP (64-66 CARLTON),CARE ESTABLISHMENT,LD - East Locality,LD - East Cambs - Special Needs,Residential Care
Cambridgeshire County Council,23-Nov-18,51300506019,"-1,328.44",CARE MANAGEMENT GROUP (64-66 CARLTON),CARE ESTABLISHMENT,LD - East Locality,LD - East Cambs - Special Needs,Residential Care
Cambridgeshire County Council,23-Nov-18,51300545313,"-1,328.44",CARE MANAGEMENT GROUP (64-66 CARLTON),CARE ESTABLISHMENT,LD - East Locality,LD - East Cambs - Special Needs,Residential Care
Cambridgeshire County Council,23-Nov-18,51300535642,"-1,328.44",CARE MANAGEMENT GROUP (64-66 CARLTON),CARE ESTABLISHMENT,LD - East Locality,LD - East Cambs - Special Needs,Residential Care
Cambridgeshire County Council,23-Nov-18,51300535659,"-1,328.44",CARE MANAGEMENT GROUP (64-66 CARLTON),CARE ESTABLISHMENT,LD - East Locality,LD - East Cambs - Special Needs,Residential Care
Cambridgeshire County Council,23-Nov-18,51300535664,"-1,328.44",CARE MANAGEMENT GROUP (64-66 CARLTON),CARE ESTABLISHMENT,LD - East Locality,LD - East Cambs - Special Needs,Residential Care
Cambridgeshire County Council,23-Nov-18,51300506026,"-1,328.44",CARE MANAGEMENT GROUP (64-66 CARLTON),CARE ESTABLISHMENT,LD - East Locality,LD - East Cambs - Special Needs,Residential Care
Cambridgeshire County Council,23-Nov-18,51300506104,"-1,328.44",CARE MANAGEMENT GROUP (64-66 CARLTON),CARE ESTABLISHMENT,LD - East Locality,LD - East Cambs - Special Needs,Residential Care
Cambridgeshire County Council,23-Nov-18,51300535608,"-1,328.44",CARE MANAGEMENT GROUP (64-66 CARLTON),CARE ESTABLISHMENT,LD - East Locality,LD - East Cambs - Special Needs,Residential Care
Cambridgeshire County Council,23-Nov-18,51300535710,"-1,328.44",CARE MANAGEMENT GROUP (64-66 CARLTON),CARE ESTABLISHMENT,LD - East Locality,LD - East Cambs - Special Needs,Residential Care
Cambridgeshire County Council,23-Nov-18,51300506037,"-1,328.44",CARE MANAGEMENT GROUP (64-66 CARLTON),CARE ESTABLISHMENT,LD - East Locality,LD - East Cambs - Special Needs,Residential Care
Cambridgeshire County Council,23-Nov-18,51300506089,"-1,328.44",CARE MANAGEMENT GROUP (64-66 CARLTON),CARE ESTABLISHMENT,LD - East Locality,LD - East Cambs - Special Needs,Residential Care
Cambridgeshire County Council,23-Nov-18,51300545291,"-1,328.44",CARE MANAGEMENT GROUP (64-66 CARLTON),CARE ESTABLISHMENT,LD - East Locality,LD - East Cambs - Special Needs,Residential Care
Cambridgeshire County Council,23-Nov-18,51300545331,"-1,328.44",CARE MANAGEMENT GROUP (64-66 CARLTON),CARE ESTABLISHMENT,LD - East Locality,LD - East Cambs - Special Needs,Residential Care
Cambridgeshire County Council,23-Nov-18,51300535738,"-1,328.44",CARE MANAGEMENT GROUP (64-66 CARLTON),CARE ESTABLISHMENT,LD - East Locality,LD - East Cambs - Special Needs,Residential Care
Cambridgeshire County Council,23-Nov-18,51300535708,"-1,328.44",CARE MANAGEMENT GROUP (64-66 CARLTON),CARE ESTABLISHMENT,LD - East Locality,LD - East Cambs - Special Needs,Residential Care
Cambridgeshire County Council,23-Nov-18,51300535667,"-1,328.44",CARE MANAGEMENT GROUP (64-66 CARLTON),CARE ESTABLISHMENT,LD - East Locality,LD - East Cambs - Special Needs,Residential Care
Cambridgeshire County Council,23-Nov-18,51300535677,"-1,328.44",CARE MANAGEMENT GROUP (64-66 CARLTON),CARE ESTABLISHMENT,LD - East Locality,LD - East Cambs - Special Needs,Residential Care
Cambridgeshire County Council,23-Nov-18,51300535728,"-1,328.44",CARE MANAGEMENT GROUP (64-66 CARLTON),CARE ESTABLISHMENT,LD - East Locality,LD - East Cambs - Special Needs,Residential Care
Cambridgeshire County Council,23-Nov-18,51300535655,"-1,328.44",CARE MANAGEMENT GROUP (64-66 CARLTON),CARE ESTABLISHMENT,LD - East Locality,LD - East Cambs - Special Needs,Residential Care
Cambridgeshire County Council,23-Nov-18,51300551258,"-1,328.44",CARE MANAGEMENT GROUP (64-66 CARLTON),CARE ESTABLISHMENT,LD - East Locality,LD - East Cambs - Special Needs,Residential Care
Cambridgeshire County Council,23-Nov-18,51300551260,"-1,328.44",CARE MANAGEMENT GROUP (64-66 CARLTON),CARE ESTABLISHMENT,LD - East Locality,LD - East Cambs - Special Needs,Residential Care
Cambridgeshire County Council,23-Nov-18,51300545300,"-1,328.44",CARE MANAGEMENT GROUP (64-66 CARLTON),CARE ESTABLISHMENT,LD - East Locality,LD - East Cambs - Special Needs,Residential Care
Cambridgeshire County Council,23-Nov-18,51300506024,"-1,328.44",CARE MANAGEMENT GROUP (64-66 CARLTON),CARE ESTABLISHMENT,LD - East Locality,LD - East Cambs - Special Needs,Residential Care
Cambridgeshire County Council,23-Nov-18,51300506075,"-1,328.44",CARE MANAGEMENT GROUP (64-66 CARLTON),CARE ESTABLISHMENT,LD - East Locality,LD - East Cambs - Special Needs,Residential Care
Cambridgeshire County Council,23-Nov-18,51300506118,"-1,328.44",CARE MANAGEMENT GROUP (64-66 CARLTON),CARE ESTABLISHMENT,LD - East Locality,LD - East Cambs - Special Needs,Residential Care
Cambridgeshire County Council,23-Nov-18,51300506147,"-1,328.44",CARE MANAGEMENT GROUP (64-66 CARLTON),CARE ESTABLISHMENT,LD - East Locality,LD - East Cambs - Special Needs,Residential Care
Cambridgeshire County Council,23-Nov-18,51300506099,"-1,328.44",CARE MANAGEMENT GROUP (64-66 CARLTON),CARE ESTABLISHMENT,LD - East Locality,LD - East Cambs - Special Needs,Residential Care
Cambridgeshire County Council,23-Nov-18,51300535718,"-1,328.44",CARE MANAGEMENT GROUP (64-66 CARLTON),CARE ESTABLISHMENT,LD - East Locality,LD - East Cambs - Special Needs,Residential Care
Cambridgeshire County Council,23-Nov-18,51300535726,"-1,328.44",CARE MANAGEMENT GROUP (64-66 CARLTON),CARE ESTABLISHMENT,LD - East Locality,LD - East Cambs - Special Needs,Residential Care
Cambridgeshire County Council,23-Nov-18,51300535693,"-1,328.44",CARE MANAGEMENT GROUP (64-66 CARLTON),CARE ESTABLISHMENT,LD - East Locality,LD - East Cambs - Special Needs,Residential Care
Cambridgeshire County Council,23-Nov-18,51300535729,"-1,328.44",CARE MANAGEMENT GROUP (64-66 CARLTON),CARE ESTABLISHMENT,LD - East Locality,LD - East Cambs - Special Needs,Residential Care
Cambridgeshire County Council,23-Nov-18,51300551280,"-1,328.44",CARE MANAGEMENT GROUP (64-66 CARLTON),CARE ESTABLISHMENT,LD - East Locality,LD - East Cambs - Special Needs,Residential Care
Cambridgeshire County Council,23-Nov-18,51300545358,"-1,328.44",CARE MANAGEMENT GROUP (64-66 CARLTON),CARE ESTABLISHMENT,LD - East Locality,LD - East Cambs - Special Needs,Residential Care
Cambridgeshire County Council,23-Nov-18,51300545260,"-1,328.44",CARE MANAGEMENT GROUP (64-66 CARLTON),CARE ESTABLISHMENT,LD - East Locality,LD - East Cambs - Special Needs,Residential Care
Cambridgeshire County Council,23-Nov-18,51300545361,"-1,328.44",CARE MANAGEMENT GROUP (64-66 CARLTON),CARE ESTABLISHMENT,LD - East Locality,LD - East Cambs - Special Needs,Residential Care
Cambridgeshire County Council,23-Nov-18,51300535683,"-1,328.44",CARE MANAGEMENT GROUP (64-66 CARLTON),CARE ESTABLISHMENT,LD - East Locality,LD - East Cambs - Special Needs,Residential Care
Cambridgeshire County Council,23-Nov-18,51300551209,"-1,328.44",CARE MANAGEMENT GROUP (64-66 CARLTON),CARE ESTABLISHMENT,LD - East Locality,LD - East Cambs - Special Needs,Residential Care
Cambridgeshire County Council,23-Nov-18,51300551317,"-1,328.44",CARE MANAGEMENT GROUP (64-66 CARLTON),CARE ESTABLISHMENT,LD - East Locality,LD - East Cambs - Special Needs,Residential Care
Cambridgeshire County Council,23-Nov-18,51300551208,"-1,328.44",CARE MANAGEMENT GROUP (64-66 CARLTON),CARE ESTABLISHMENT,LD - East Locality,LD - East Cambs - Special Needs,Residential Care
Cambridgeshire County Council,23-Nov-18,51300551279,"-1,328.44",CARE MANAGEMENT GROUP (64-66 CARLTON),CARE ESTABLISHMENT,LD - East Locality,LD - East Cambs - Special Needs,Residential Care
Cambridgeshire County Council,23-Nov-18,51300551325,"-1,328.44",CARE MANAGEMENT GROUP (64-66 CARLTON),CARE ESTABLISHMENT,LD - East Locality,LD - East Cambs - Special Needs,Residential Care
Cambridgeshire County Council,23-Nov-18,51300535622,"-1,328.44",CARE MANAGEMENT GROUP (64-66 CARLTON),CARE ESTABLISHMENT,LD - East Locality,LD - East Cambs - Special Needs,Residential Care
Cambridgeshire County Council,23-Nov-18,51300545219,"-1,328.44",CARE MANAGEMENT GROUP (64-66 CARLTON),CARE ESTABLISHMENT,LD - East Locality,LD - East Cambs - Special Needs,Residential Care
Cambridgeshire County Council,23-Nov-18,51300551256,"-1,328.44",CARE MANAGEMENT GROUP (64-66 CARLTON),CARE ESTABLISHMENT,LD - East Locality,LD - East Cambs - Special Needs,Residential Care
Cambridgeshire County Council,23-Nov-18,51300506106,"-1,328.44",CARE MANAGEMENT GROUP (64-66 CARLTON),CARE ESTABLISHMENT,LD - East Locality,LD - East Cambs - Special Needs,Residential Care
Cambridgeshire County Council,23-Nov-18,51300545311,"-1,328.44",CARE MANAGEMENT GROUP (64-66 CARLTON),CARE ESTABLISHMENT,LD - East Locality,LD - East Cambs - Special Needs,Residential Care
Cambridgeshire County Council,23-Nov-18,51300551222,"-1,328.44",CARE MANAGEMENT GROUP (64-66 CARLTON),CARE ESTABLISHMENT,LD - East Locality,LD - East Cambs - Special Needs,Residential Care
Cambridgeshire County Council,23-Nov-18,51300551207,"-1,328.44",CARE MANAGEMENT GROUP (64-66 CARLTON),CARE ESTABLISHMENT,LD - East Locality,LD - East Cambs - Special Needs,Residential Care
Cambridgeshire County Council,23-Nov-18,51300506048,"-1,328.44",CARE MANAGEMENT GROUP (64-66 CARLTON),CARE ESTABLISHMENT,LD - East Locality,LD - East Cambs - Special Needs,Residential Care
Cambridgeshire County Council,23-Nov-18,51300506013,"-1,328.44",CARE MANAGEMENT GROUP (64-66 CARLTON),CARE ESTABLISHMENT,LD - East Locality,LD - East Cambs - Special Needs,Residential Care
Cambridgeshire County Council,23-Nov-18,51300506016,"-1,328.44",CARE MANAGEMENT GROUP (64-66 CARLTON),CARE ESTABLISHMENT,LD - East Locality,LD - East Cambs - Special Needs,Residential Care
Cambridgeshire County Council,23-Nov-18,51300506041,"-1,328.44",CARE MANAGEMENT GROUP (64-66 CARLTON),CARE ESTABLISHMENT,LD - East Locality,LD - East Cambs - Special Needs,Residential Care
Cambridgeshire County Council,23-Nov-18,51300551212,"-1,328.44",CARE MANAGEMENT GROUP (64-66 CARLTON),CARE ESTABLISHMENT,LD - East Locality,LD - East Cambs - Special Needs,Residential Care
Cambridgeshire County Council,23-Nov-18,51300506084,"-1,328.44",CARE MANAGEMENT GROUP (64-66 CARLTON),CARE ESTABLISHMENT,LD - East Locality,LD - East Cambs - Special Needs,Residential Care
Cambridgeshire County Council,23-Nov-18,51300506032,"-1,328.44",CARE MANAGEMENT GROUP (64-66 CARLTON),CARE ESTABLISHMENT,LD - East Locality,LD - East Cambs - Special Needs,Residential Care
Cambridgeshire County Council,23-Nov-18,51300506140,"-1,328.44",CARE MANAGEMENT GROUP (64-66 CARLTON),CARE ESTABLISHMENT,LD - East Locality,LD - East Cambs - Special Needs,Residential Care
Cambridgeshire County Council,23-Nov-18,51300506113,"-1,328.44",CARE MANAGEMENT GROUP (64-66 CARLTON),CARE ESTABLISHMENT,LD - East Locality,LD - East Cambs - Special Needs,Residential Care
Cambridgeshire County Council,23-Nov-18,51300506141,"-1,328.44",CARE MANAGEMENT GROUP (64-66 CARLTON),CARE ESTABLISHMENT,LD - East Locality,LD - East Cambs - Special Needs,Residential Care
Cambridgeshire County Council,23-Nov-18,51300535689,"-1,328.44",CARE MANAGEMENT GROUP (64-66 CARLTON),CARE ESTABLISHMENT,LD - East Locality,LD - East Cambs - Special Needs,Residential Care
Cambridgeshire County Council,23-Nov-18,51300535633,"-1,328.44",CARE MANAGEMENT GROUP (64-66 CARLTON),CARE ESTABLISHMENT,LD - East Locality,LD - East Cambs - Special Needs,Residential Care
Cambridgeshire County Council,23-Nov-18,51300535721,"-1,328.44",CARE MANAGEMENT GROUP (64-66 CARLTON),CARE ESTABLISHMENT,LD - East Locality,LD - East Cambs - Special Needs,Residential Care
Cambridgeshire County Council,23-Nov-18,51300535713,"-1,328.44",CARE MANAGEMENT GROUP (64-66 CARLTON),CARE ESTABLISHMENT,LD - East Locality,LD - East Cambs - Special Needs,Residential Care
Cambridgeshire County Council,23-Nov-18,51300545296,"-1,328.44",CARE MANAGEMENT GROUP (64-66 CARLTON),CARE ESTABLISHMENT,LD - East Locality,LD - East Cambs - Special Needs,Residential Care
Cambridgeshire County Council,23-Nov-18,51300545360,"-1,328.44",CARE MANAGEMENT GROUP (64-66 CARLTON),CARE ESTABLISHMENT,LD - East Locality,LD - East Cambs - Special Needs,Residential Care
Cambridgeshire County Council,23-Nov-18,51300545276,"-1,328.44",CARE MANAGEMENT GROUP (64-66 CARLTON),CARE ESTABLISHMENT,LD - East Locality,LD - East Cambs - Special Needs,Residential Care
Cambridgeshire County Council,23-Nov-18,51300545324,"-1,328.44",CARE MANAGEMENT GROUP (64-66 CARLTON),CARE ESTABLISHMENT,LD - East Locality,LD - East Cambs - Special Needs,Residential Care
Cambridgeshire County Council,23-Nov-18,51300545326,"-1,328.44",CARE MANAGEMENT GROUP (64-66 CARLTON),CARE ESTABLISHMENT,LD - East Locality,LD - East Cambs - Special Needs,Residential Care
Cambridgeshire County Council,23-Nov-18,51300545336,"-1,328.44",CARE MANAGEMENT GROUP (64-66 CARLTON),CARE ESTABLISHMENT,LD - East Locality,LD - East Cambs - Special Needs,Residential Care
Cambridgeshire County Council,23-Nov-18,51300506050,"-1,328.44",CARE MANAGEMENT GROUP (64-66 CARLTON),CARE ESTABLISHMENT,LD - East Locality,LD - East Cambs - Special Needs,Residential Care
Cambridgeshire County Council,23-Nov-18,51300506130,"-1,328.44",CARE MANAGEMENT GROUP (64-66 CARLTON),CARE ESTABLISHMENT,LD - East Locality,LD - East Cambs - Special Needs,Residential Care
Cambridgeshire County Council,23-Nov-18,51300506123,"-1,328.44",CARE MANAGEMENT GROUP (64-66 CARLTON),CARE ESTABLISHMENT,LD - East Locality,LD - East Cambs - Special Needs,Residential Care
Cambridgeshire County Council,23-Nov-18,51300545213,"-1,328.44",CARE MANAGEMENT GROUP (64-66 CARLTON),CARE ESTABLISHMENT,LD - East Locality,LD - East Cambs - Special Needs,Residential Care
Cambridgeshire County Council,23-Nov-18,51300545214,"-1,328.44",CARE MANAGEMENT GROUP (64-66 CARLTON),CARE ESTABLISHMENT,LD - East Locality,LD - East Cambs - Special Needs,Residential Care
Cambridgeshire County Council,23-Nov-18,51300551303,"-1,328.44",CARE MANAGEMENT GROUP (64-66 CARLTON),CARE ESTABLISHMENT,LD - East Locality,LD - East Cambs - Special Needs,Residential Care
Cambridgeshire County Council,23-Nov-18,51300551273,"-1,328.44",CARE MANAGEMENT GROUP (64-66 CARLTON),CARE ESTABLISHMENT,LD - East Locality,LD - East Cambs - Special Needs,Residential Care
Cambridgeshire County Council,23-Nov-18,51300551310,"-1,328.44",CARE MANAGEMENT GROUP (64-66 CARLTON),CARE ESTABLISHMENT,LD - East Locality,LD - East Cambs - Special Needs,Residential Care
Cambridgeshire County Council,23-Nov-18,51300551299,"-1,328.44",CARE MANAGEMENT GROUP (64-66 CARLTON),CARE ESTABLISHMENT,LD - East Locality,LD - East Cambs - Special Needs,Residential Care
Cambridgeshire County Council,23-Nov-18,51300506135,"-1,328.44",CARE MANAGEMENT GROUP (64-66 CARLTON),CARE ESTABLISHMENT,LD - East Locality,LD - East Cambs - Special Needs,Residential Care
Cambridgeshire County Council,23-Nov-18,51300506129,"-1,328.44",CARE MANAGEMENT GROUP (64-66 CARLTON),CARE ESTABLISHMENT,LD - East Locality,LD - East Cambs - Special Needs,Residential Care
Cambridgeshire County Council,23-Nov-18,51300551262,"-1,328.44",CARE MANAGEMENT GROUP (64-66 CARLTON),CARE ESTABLISHMENT,LD - East Locality,LD - East Cambs - Special Needs,Residential Care
Cambridgeshire County Council,23-Nov-18,51300506034,"-1,328.44",CARE MANAGEMENT GROUP (64-66 CARLTON),CARE ESTABLISHMENT,LD - East Locality,LD - East Cambs - Special Needs,Residential Care
Cambridgeshire County Council,23-Nov-18,51300506017,"-1,328.44",CARE MANAGEMENT GROUP (64-66 CARLTON),CARE ESTABLISHMENT,LD - East Locality,LD - East Cambs - Special Needs,Residential Care
Cambridgeshire County Council,23-Nov-18,51300506027,"-1,328.44",CARE MANAGEMENT GROUP (64-66 CARLTON),CARE ESTABLISHMENT,LD - East Locality,LD - East Cambs - Special Needs,Residential Care
Cambridgeshire County Council,23-Nov-18,51300535632,"-1,328.44",CARE MANAGEMENT GROUP (64-66 CARLTON),CARE ESTABLISHMENT,LD - East Locality,LD - East Cambs - Special Needs,Residential Care
Cambridgeshire County Council,23-Nov-18,51300535656,"-1,328.44",CARE MANAGEMENT GROUP (64-66 CARLTON),CARE ESTABLISHMENT,LD - East Locality,LD - East Cambs - Special Needs,Residential Care
Cambridgeshire County Council,23-Nov-18,51300545268,"-1,328.44",CARE MANAGEMENT GROUP (64-66 CARLTON),CARE ESTABLISHMENT,LD - East Locality,LD - East Cambs - Special Needs,Residential Care
Cambridgeshire County Council,23-Nov-18,51300535735,"-1,328.44",CARE MANAGEMENT GROUP (64-66 CARLTON),CARE ESTABLISHMENT,LD - East Locality,LD - East Cambs - Special Needs,Residential Care
Cambridgeshire County Council,23-Nov-18,51300545307,"-1,328.44",CARE MANAGEMENT GROUP (64-66 CARLTON),CARE ESTABLISHMENT,LD - East Locality,LD - East Cambs - Special Needs,Residential Care
Cambridgeshire County Council,23-Nov-18,51300551347,"-1,328.44",CARE MANAGEMENT GROUP (64-66 CARLTON),CARE ESTABLISHMENT,LD - East Locality,LD - East Cambs - Special Needs,Residential Care
Cambridgeshire County Council,23-Nov-18,51300551267,"-1,328.44",CARE MANAGEMENT GROUP (64-66 CARLTON),CARE ESTABLISHMENT,LD - East Locality,LD - East Cambs - Special Needs,Residential Care
Cambridgeshire County Council,23-Nov-18,51300551315,"-1,328.44",CARE MANAGEMENT GROUP (64-66 CARLTON),CARE ESTABLISHMENT,LD - East Locality,LD - East Cambs - Special Needs,Residential Care
Cambridgeshire County Council,23-Nov-18,51300535709,"-1,328.44",CARE MANAGEMENT GROUP (64-66 CARLTON),CARE ESTABLISHMENT,LD - East Locality,LD - East Cambs - Special Needs,Residential Care
Cambridgeshire County Council,23-Nov-18,51300535712,"-1,328.44",CARE MANAGEMENT GROUP (64-66 CARLTON),CARE ESTABLISHMENT,LD - East Locality,LD - East Cambs - Special Needs,Residential Care
Cambridgeshire County Council,23-Nov-18,51300535756,"-1,328.44",CARE MANAGEMENT GROUP (64-66 CARLTON),CARE ESTABLISHMENT,LD - East Locality,LD - East Cambs - Special Needs,Residential Care
Cambridgeshire County Council,23-Nov-18,51300535641,"-1,328.44",CARE MANAGEMENT GROUP (64-66 CARLTON),CARE ESTABLISHMENT,LD - East Locality,LD - East Cambs - Special Needs,Residential Care
Cambridgeshire County Council,23-Nov-18,51300545286,"-1,328.44",CARE MANAGEMENT GROUP (64-66 CARLTON),CARE ESTABLISHMENT,LD - East Locality,LD - East Cambs - Special Needs,Residential Care
Cambridgeshire County Council,23-Nov-18,51300545322,"-1,328.44",CARE MANAGEMENT GROUP (64-66 CARLTON),CARE ESTABLISHMENT,LD - East Locality,LD - East Cambs - Special Needs,Residential Care
Cambridgeshire County Council,23-Nov-18,51300545323,"-1,328.44",CARE MANAGEMENT GROUP (64-66 CARLTON),CARE ESTABLISHMENT,LD - East Locality,LD - East Cambs - Special Needs,Residential Care
Cambridgeshire County Council,23-Nov-18,51300551255,"-1,328.44",CARE MANAGEMENT GROUP (64-66 CARLTON),CARE ESTABLISHMENT,LD - East Locality,LD - East Cambs - Special Needs,Residential Care
Cambridgeshire County Council,23-Nov-18,51300545294,"-1,328.44",CARE MANAGEMENT GROUP (64-66 CARLTON),CARE ESTABLISHMENT,LD - East Locality,LD - East Cambs - Special Needs,Residential Care
Cambridgeshire County Council,23-Nov-18,51300551274,"-1,328.44",CARE MANAGEMENT GROUP (64-66 CARLTON),CARE ESTABLISHMENT,LD - East Locality,LD - East Cambs - Special Needs,Residential Care
Cambridgeshire County Council,23-Nov-18,51300551234,"-1,328.44",CARE MANAGEMENT GROUP (64-66 CARLTON),CARE ESTABLISHMENT,LD - East Locality,LD - East Cambs - Special Needs,Residential Care
Cambridgeshire County Council,23-Nov-18,51300551245,"-1,328.44",CARE MANAGEMENT GROUP (64-66 CARLTON),CARE ESTABLISHMENT,LD - East Locality,LD - East Cambs - Special Needs,Residential Care
Cambridgeshire County Council,23-Nov-18,51300551341,"-1,328.44",CARE MANAGEMENT GROUP (64-66 CARLTON),CARE ESTABLISHMENT,LD - East Locality,LD - East Cambs - Special Needs,Residential Care
Cambridgeshire County Council,23-Nov-18,51300545297,"-1,328.44",CARE MANAGEMENT GROUP (64-66 CARLTON),CARE ESTABLISHMENT,LD - East Locality,LD - East Cambs - Special Needs,Residential Care
Cambridgeshire County Council,23-Nov-18,51300535740,"-1,328.44",CARE MANAGEMENT GROUP (64-66 CARLTON),CARE ESTABLISHMENT,LD - East Locality,LD - East Cambs - Special Needs,Residential Care
Cambridgeshire County Council,23-Nov-18,51300545281,"-1,328.44",CARE MANAGEMENT GROUP (64-66 CARLTON),CARE ESTABLISHMENT,LD - East Locality,LD - East Cambs - Special Needs,Residential Care
Cambridgeshire County Council,23-Nov-18,51300545305,"-1,328.44",CARE MANAGEMENT GROUP (64-66 CARLTON),CARE ESTABLISHMENT,LD - East Locality,LD - East Cambs - Special Needs,Residential Care
Cambridgeshire County Council,23-Nov-18,51300535733,"-1,328.44",CARE MANAGEMENT GROUP (64-66 CARLTON),CARE ESTABLISHMENT,LD - East Locality,LD - East Cambs - Special Needs,Residential Care
Cambridgeshire County Council,23-Nov-18,51300545325,"-1,328.44",CARE MANAGEMENT GROUP (64-66 CARLTON),CARE ESTABLISHMENT,LD - East Locality,LD - East Cambs - Special Needs,Residential Care
Cambridgeshire County Council,23-Nov-18,51300545343,"-1,328.44",CARE MANAGEMENT GROUP (64-66 CARLTON),CARE ESTABLISHMENT,LD - East Locality,LD - East Cambs - Special Needs,Residential Care
Cambridgeshire County Council,23-Nov-18,51300545321,"-1,328.44",CARE MANAGEMENT GROUP (64-66 CARLTON),CARE ESTABLISHMENT,LD - East Locality,LD - East Cambs - Special Needs,Residential Care
Cambridgeshire County Council,23-Nov-18,51300535681,"-1,328.44",CARE MANAGEMENT GROUP (64-66 CARLTON),CARE ESTABLISHMENT,LD - East Locality,LD - East Cambs - Special Needs,Residential Care
Cambridgeshire County Council,23-Nov-18,51300506132,"-1,328.44",CARE MANAGEMENT GROUP (64-66 CARLTON),CARE ESTABLISHMENT,LD - East Locality,LD - East Cambs - Special Needs,Residential Care
Cambridgeshire County Council,23-Nov-18,51300506047,"-1,328.44",CARE MANAGEMENT GROUP (64-66 CARLTON),CARE ESTABLISHMENT,LD - East Locality,LD - East Cambs - Special Needs,Residential Care
Cambridgeshire County Council,23-Nov-18,51300506053,"-1,328.44",CARE MANAGEMENT GROUP (64-66 CARLTON),CARE ESTABLISHMENT,LD - East Locality,LD - East Cambs - Special Needs,Residential Care
Cambridgeshire County Council,23-Nov-18,51300506150,"-1,328.44",CARE MANAGEMENT GROUP (64-66 CARLTON),CARE ESTABLISHMENT,LD - East Locality,LD - East Cambs - Special Needs,Residential Care
Cambridgeshire County Council,23-Nov-18,51300551271,"-1,328.44",CARE MANAGEMENT GROUP (64-66 CARLTON),CARE ESTABLISHMENT,LD - East Locality,LD - East Cambs - Special Needs,Residential Care
Cambridgeshire County Council,23-Nov-18,51300506059,"-1,328.44",CARE MANAGEMENT GROUP (64-66 CARLTON),CARE ESTABLISHMENT,LD - East Locality,LD - East Cambs - Special Needs,Residential Care
Cambridgeshire County Council,23-Nov-18,51300535715,"-1,328.44",CARE MANAGEMENT GROUP (64-66 CARLTON),CARE ESTABLISHMENT,LD - East Locality,LD - East Cambs - Special Needs,Residential Care
Cambridgeshire County Council,23-Nov-18,51300535686,"-1,328.44",CARE MANAGEMENT GROUP (64-66 CARLTON),CARE ESTABLISHMENT,LD - East Locality,LD - East Cambs - Special Needs,Residential Care
Cambridgeshire County Council,23-Nov-18,51300535746,"-1,328.44",CARE MANAGEMENT GROUP (64-66 CARLTON),CARE ESTABLISHMENT,LD - East Locality,LD - East Cambs - Special Needs,Residential Care
Cambridgeshire County Council,23-Nov-18,51300535754,"-1,328.44",CARE MANAGEMENT GROUP (64-66 CARLTON),CARE ESTABLISHMENT,LD - East Locality,LD - East Cambs - Special Needs,Residential Care
Cambridgeshire County Council,23-Nov-18,51300506087,"-1,328.44",CARE MANAGEMENT GROUP (64-66 CARLTON),CARE ESTABLISHMENT,LD - East Locality,LD - East Cambs - Special Needs,Residential Care
Cambridgeshire County Council,01-Nov-18,51300502580,"-1,323.00",CARETECH COMMUNITY SERVICES,CARE ESTABLISHMENT,LD - East Locality,LD - East Cambs - Special Needs,Residential Care
Cambridgeshire County Council,01-Nov-18,51300502551,"-1,323.00",CARETECH COMMUNITY SERVICES,CARE ESTABLISHMENT,LD - East Locality,LD - East Cambs - Special Needs,Residential Care
Cambridgeshire County Council,01-Nov-18,51300502558,"-1,323.00",CARETECH COMMUNITY SERVICES,CARE ESTABLISHMENT,LD - East Locality,LD - East Cambs - Special Needs,Residential Care
Cambridgeshire County Council,01-Nov-18,51300502544,"-1,323.00",CARETECH COMMUNITY SERVICES,CARE ESTABLISHMENT,LD - East Locality,LD - East Cambs - Special Needs,Residential Care
Cambridgeshire County Council,01-Nov-18,51300502572,"-1,323.00",CARETECH COMMUNITY SERVICES,CARE ESTABLISHMENT,LD - East Locality,LD - East Cambs - Special Needs,Residential Care
Cambridgeshire County Council,01-Nov-18,51300502579,"-1,323.00",CARETECH COMMUNITY SERVICES,CARE ESTABLISHMENT,LD - East Locality,LD - East Cambs - Special Needs,Residential Care
Cambridgeshire County Council,01-Nov-18,51300502534,"-1,323.00",CARETECH COMMUNITY SERVICES,CARE ESTABLISHMENT,LD - East Locality,LD - East Cambs - Special Needs,Residential Care
Cambridgeshire County Council,01-Nov-18,51300502565,"-1,323.00",CARETECH COMMUNITY SERVICES,CARE ESTABLISHMENT,LD - East Locality,LD - East Cambs - Special Needs,Residential Care
Cambridgeshire County Council,01-Nov-18,51300502562,"-1,323.00",CARETECH COMMUNITY SERVICES,CARE ESTABLISHMENT,LD - East Locality,LD - East Cambs - Special Needs,Residential Care
Cambridgeshire County Council,01-Nov-18,51300502561,"-1,323.00",CARETECH COMMUNITY SERVICES,CARE ESTABLISHMENT,LD - East Locality,LD - East Cambs - Special Needs,Residential Care
Cambridgeshire County Council,01-Nov-18,51300503563,"-1,317.11",ALDERTON HOUSE,CARE ESTABLISHMENT,LD - East Locality,LD - East Cambs - Special Needs,Residential Care
Cambridgeshire County Council,01-Nov-18,51300503495,"-1,317.11",ALDERTON HOUSE,CARE ESTABLISHMENT,LD - East Locality,LD - East Cambs - Special Needs,Residential Care
Cambridgeshire County Council,01-Nov-18,51300503581,"-1,317.11",ALDERTON HOUSE,CARE ESTABLISHMENT,LD - East Locality,LD - East Cambs - Special Needs,Residential Care
Cambridgeshire County Council,01-Nov-18,51300503521,"-1,317.11",ALDERTON HOUSE,CARE ESTABLISHMENT,LD - East Locality,LD - East Cambs - Special Needs,Residential Care
Cambridgeshire County Council,01-Nov-18,51300503493,"-1,317.11",ALDERTON HOUSE,CARE ESTABLISHMENT,LD - East Locality,LD - East Cambs - Special Needs,Residential Care
Cambridgeshire County Council,01-Nov-18,51300503502,"-1,317.11",ALDERTON HOUSE,CARE ESTABLISHMENT,LD - East Locality,LD - East Cambs - Special Needs,Residential Care
Cambridgeshire County Council,01-Nov-18,51300503498,"-1,317.11",ALDERTON HOUSE,CARE ESTABLISHMENT,LD - East Locality,LD - East Cambs - Special Needs,Residential Care
Cambridgeshire County Council,01-Nov-18,51300503477,"-1,317.11",ALDERTON HOUSE,CARE ESTABLISHMENT,LD - East Locality,LD - East Cambs - Special Needs,Residential Care
Cambridgeshire County Council,01-Nov-18,51300503529,"-1,317.11",ALDERTON HOUSE,CARE ESTABLISHMENT,LD - East Locality,LD - East Cambs - Care,Residential Care
Cambridgeshire County Council,01-Nov-18,51300503574,"-1,317.11",ALDERTON HOUSE,CARE ESTABLISHMENT,LD - East Locality,LD - East Cambs - Care,Residential Care
Cambridgeshire County Council,01-Nov-18,51300503488,"-1,317.11",ALDERTON HOUSE,CARE ESTABLISHMENT,LD - East Locality,LD - East Cambs - Care,Residential Care
Cambridgeshire County Council,01-Nov-18,51300503577,"-1,317.11",ALDERTON HOUSE,CARE ESTABLISHMENT,LD - East Locality,LD - East Cambs - Care,Residential Care
Cambridgeshire County Council,01-Nov-18,51300503482,"-1,317.11",ALDERTON HOUSE,CARE ESTABLISHMENT,LD - East Locality,LD - East Cambs - Care,Residential Care
Cambridgeshire County Council,01-Nov-18,51300503511,"-1,317.11",ALDERTON HOUSE,CARE ESTABLISHMENT,LD - East Locality,LD - East Cambs - Care,Residential Care
Cambridgeshire County Council,01-Nov-18,51300503542,"-1,317.11",ALDERTON HOUSE,CARE ESTABLISHMENT,LD - East Locality,LD - East Cambs - Care,Residential Care
Cambridgeshire County Council,01-Nov-18,51300503504,"-1,317.11",ALDERTON HOUSE,CARE ESTABLISHMENT,LD - East Locality,LD - East Cambs - Care,Residential Care
Cambridgeshire County Council,01-Nov-18,51300503548,"-1,317.11",ALDERTON HOUSE,CARE ESTABLISHMENT,LD - East Locality,LD - East Cambs - Care,Residential Care
Cambridgeshire County Council,01-Nov-18,51300503483,"-1,317.11",ALDERTON HOUSE,CARE ESTABLISHMENT,LD - East Locality,LD - East Cambs - Care,Residential Care
Cambridgeshire County Council,01-Nov-18,51300503475,"-1,317.11",ALDERTON HOUSE,CARE ESTABLISHMENT,LD - East Locality,LD - East Cambs - Care,Residential Care
Cambridgeshire County Council,01-Nov-18,51300503518,"-1,317.11",ALDERTON HOUSE,CARE ESTABLISHMENT,LD - East Locality,LD - East Cambs - Care,Residential Care
Cambridgeshire County Council,01-Nov-18,51300503520,"-1,317.11",ALDERTON HOUSE,CARE ESTABLISHMENT,LD - East Locality,LD - East Cambs - Care,Residential Care
Cambridgeshire County Council,01-Nov-18,51300503531,"-1,317.11",ALDERTON HOUSE,CARE ESTABLISHMENT,LD - East Locality,LD - East Cambs - Care,Residential Care
Cambridgeshire County Council,01-Nov-18,51300503553,"-1,317.11",ALDERTON HOUSE,CARE ESTABLISHMENT,LD - East Locality,LD - East Cambs - Care,Residential Care
Cambridgeshire County Council,01-Nov-18,51300503479,"-1,317.11",ALDERTON HOUSE,CARE ESTABLISHMENT,LD - East Locality,LD - East Cambs - Care,Residential Care
Cambridgeshire County Council,01-Nov-18,51300503569,"-1,317.11",ALDERTON HOUSE,CARE ESTABLISHMENT,LD - East Locality,LD - East Cambs - Care,Residential Care
Cambridgeshire County Council,01-Nov-18,51300503576,"-1,317.11",ALDERTON HOUSE,CARE ESTABLISHMENT,LD - East Locality,LD - East Cambs - Care,Residential Care
Cambridgeshire County Council,01-Nov-18,51300503544,"-1,317.11",ALDERTON HOUSE,CARE ESTABLISHMENT,LD - East Locality,LD - East Cambs - Care,Residential Care
Cambridgeshire County Council,01-Nov-18,51300503486,"-1,317.11",ALDERTON HOUSE,CARE ESTABLISHMENT,LD - East Locality,LD - East Cambs - Care,Residential Care
Cambridgeshire County Council,01-Nov-18,51300503528,"-1,317.11",ALDERTON HOUSE,CARE ESTABLISHMENT,LD - East Locality,LD - East Cambs - Care,Residential Care
Cambridgeshire County Council,01-Nov-18,51300503472,"-1,317.11",ALDERTON HOUSE,CARE ESTABLISHMENT,LD - East Locality,LD - East Cambs - Care,Residential Care
Cambridgeshire County Council,01-Nov-18,51300503499,"-1,317.11",ALDERTON HOUSE,CARE ESTABLISHMENT,LD - East Locality,LD - East Cambs - Care,Residential Care
Cambridgeshire County Council,01-Nov-18,51300503545,"-1,317.11",ALDERTON HOUSE,CARE ESTABLISHMENT,LD - East Locality,LD - East Cambs - Care,Residential Care
Cambridgeshire County Council,01-Nov-18,51300503547,"-1,317.11",ALDERTON HOUSE,CARE ESTABLISHMENT,LD - East Locality,LD - East Cambs - Care,Residential Care
Cambridgeshire County Council,01-Nov-18,51300503552,"-1,317.11",ALDERTON HOUSE,CARE ESTABLISHMENT,LD - East Locality,LD - East Cambs - Care,Residential Care
Cambridgeshire County Council,01-Nov-18,51300503560,"-1,317.11",ALDERTON HOUSE,CARE ESTABLISHMENT,LD - East Locality,LD - East Cambs - Care,Residential Care
Cambridgeshire County Council,01-Nov-18,51300503565,"-1,317.11",ALDERTON HOUSE,CARE ESTABLISHMENT,LD - East Locality,LD - East Cambs - Care,Residential Care
Cambridgeshire County Council,01-Nov-18,51300503536,"-1,317.11",ALDERTON HOUSE,CARE ESTABLISHMENT,LD - East Locality,LD - East Cambs - Care,Residential Care
Cambridgeshire County Council,01-Nov-18,51300503580,"-1,317.11",ALDERTON HOUSE,CARE ESTABLISHMENT,LD - East Locality,LD - East Cambs - Care,Residential Care
Cambridgeshire County Council,01-Nov-18,51300503556,"-1,317.11",ALDERTON HOUSE,CARE ESTABLISHMENT,LD - East Locality,LD - East Cambs - Care,Residential Care
Cambridgeshire County Council,01-Nov-18,51300503525,"-1,317.11",ALDERTON HOUSE,CARE ESTABLISHMENT,LD - East Locality,LD - East Cambs - Care,Residential Care
Cambridgeshire County Council,01-Nov-18,51300503515,"-1,317.11",ALDERTON HOUSE,CARE ESTABLISHMENT,LD - East Locality,LD - East Cambs - Special Needs,Residential Care
Cambridgeshire County Council,01-Nov-18,51300503535,"-1,317.11",ALDERTON HOUSE,CARE ESTABLISHMENT,LD - East Locality,LD - East Cambs - Special Needs,Residential Care
Cambridgeshire County Council,01-Nov-18,51300503538,"-1,317.11",ALDERTON HOUSE,CARE ESTABLISHMENT,LD - East Locality,LD - East Cambs - Special Needs,Residential Care
Cambridgeshire County Council,01-Nov-18,51300503558,"-1,317.11",ALDERTON HOUSE,CARE ESTABLISHMENT,LD - East Locality,LD - East Cambs - Special Needs,Residential Care
Cambridgeshire County Council,01-Nov-18,51300503559,"-1,317.11",ALDERTON HOUSE,CARE ESTABLISHMENT,LD - East Locality,LD - East Cambs - Special Needs,Residential Care
Cambridgeshire County Council,01-Nov-18,51300503496,"-1,317.11",ALDERTON HOUSE,CARE ESTABLISHMENT,LD - East Locality,LD - East Cambs - Special Needs,Residential Care
Cambridgeshire County Council,01-Nov-18,51300503503,"-1,317.11",ALDERTON HOUSE,CARE ESTABLISHMENT,LD - East Locality,LD - East Cambs - Special Needs,Residential Care
Cambridgeshire County Council,01-Nov-18,51300503566,"-1,317.11",ALDERTON HOUSE,CARE ESTABLISHMENT,LD - East Locality,LD - East Cambs - Special Needs,Residential Care
Cambridgeshire County Council,01-Nov-18,51300503543,"-1,317.11",ALDERTON HOUSE,CARE ESTABLISHMENT,LD - East Locality,LD - East Cambs - Special Needs,Residential Care
Cambridgeshire County Council,01-Nov-18,51300503572,"-1,317.11",ALDERTON HOUSE,CARE ESTABLISHMENT,LD - East Locality,LD - East Cambs - Special Needs,Residential Care
Cambridgeshire County Council,01-Nov-18,51300503554,"-1,317.11",ALDERTON HOUSE,CARE ESTABLISHMENT,LD - East Locality,LD - East Cambs - Special Needs,Residential Care
Cambridgeshire County Council,01-Nov-18,51300503517,"-1,317.11",ALDERTON HOUSE,CARE ESTABLISHMENT,LD - East Locality,LD - East Cambs - Special Needs,Residential Care
Cambridgeshire County Council,01-Nov-18,51300503530,"-1,317.11",ALDERTON HOUSE,CARE ESTABLISHMENT,LD - East Locality,LD - East Cambs - Special Needs,Residential Care
Cambridgeshire County Council,07-Nov-18,51300517107,"-1,317.11",ALDERTON HOUSE,CARE ESTABLISHMENT,LD - East Locality,LD - East Cambs - Special Needs,Residential Care
Cambridgeshire County Council,07-Nov-18,51300517097,"-1,317.11",ALDERTON HOUSE,CARE ESTABLISHMENT,LD - East Locality,LD - East Cambs - Special Needs,Residential Care
Cambridgeshire County Council,07-Nov-18,51300517049,"-1,317.11",ALDERTON HOUSE,CARE ESTABLISHMENT,LD - East Locality,LD - East Cambs - Special Needs,Residential Care
Cambridgeshire County Council,07-Nov-18,51300517128,"-1,317.11",ALDERTON HOUSE,CARE ESTABLISHMENT,LD - East Locality,LD - East Cambs - Special Needs,Residential Care
Cambridgeshire County Council,07-Nov-18,51300517164,"-1,317.11",ALDERTON HOUSE,CARE ESTABLISHMENT,LD - East Locality,LD - East Cambs - Special Needs,Residential Care
Cambridgeshire County Council,07-Nov-18,51300517141,"-1,317.11",ALDERTON HOUSE,CARE ESTABLISHMENT,LD - East Locality,LD - East Cambs - Special Needs,Residential Care
Cambridgeshire County Council,07-Nov-18,51300517059,"-1,317.11",ALDERTON HOUSE,CARE ESTABLISHMENT,LD - East Locality,LD - East Cambs - Special Needs,Residential Care
Cambridgeshire County Council,07-Nov-18,51300517186,"-1,317.11",ALDERTON HOUSE,CARE ESTABLISHMENT,LD - East Locality,LD - East Cambs - Special Needs,Residential Care
Cambridgeshire County Council,07-Nov-18,51300517196,"-1,317.11",ALDERTON HOUSE,CARE ESTABLISHMENT,LD - East Locality,LD - East Cambs - Special Needs,Residential Care
Cambridgeshire County Council,07-Nov-18,51300517124,"-1,317.11",ALDERTON HOUSE,CARE ESTABLISHMENT,LD - East Locality,LD - East Cambs - Special Needs,Residential Care
Cambridgeshire County Council,07-Nov-18,51300517171,"-1,317.11",ALDERTON HOUSE,CARE ESTABLISHMENT,LD - East Locality,LD - East Cambs - Special Needs,Residential Care
Cambridgeshire County Council,07-Nov-18,51300517123,"-1,317.11",ALDERTON HOUSE,CARE ESTABLISHMENT,LD - East Locality,LD - East Cambs - Special Needs,Residential Care
Cambridgeshire County Council,07-Nov-18,51300517065,"-1,317.11",ALDERTON HOUSE,CARE ESTABLISHMENT,LD - East Locality,LD - East Cambs - Special Needs,Residential Care
Cambridgeshire County Council,07-Nov-18,51300517086,"-1,317.11",ALDERTON HOUSE,CARE ESTABLISHMENT,LD - East Locality,LD - East Cambs - Care,Residential Care
Cambridgeshire County Council,07-Nov-18,51300517087,"-1,317.11",ALDERTON HOUSE,CARE ESTABLISHMENT,LD - East Locality,LD - East Cambs - Care,Residential Care
Cambridgeshire County Council,07-Nov-18,51300517153,"-1,317.11",ALDERTON HOUSE,CARE ESTABLISHMENT,LD - East Locality,LD - East Cambs - Care,Residential Care
Cambridgeshire County Council,07-Nov-18,51300517146,"-1,317.11",ALDERTON HOUSE,CARE ESTABLISHMENT,LD - East Locality,LD - East Cambs - Care,Residential Care
Cambridgeshire County Council,07-Nov-18,51300517121,"-1,317.11",ALDERTON HOUSE,CARE ESTABLISHMENT,LD - East Locality,LD - East Cambs - Care,Residential Care
Cambridgeshire County Council,07-Nov-18,51300517078,"-1,317.11",ALDERTON HOUSE,CARE ESTABLISHMENT,LD - East Locality,LD - East Cambs - Care,Residential Care
Cambridgeshire County Council,07-Nov-18,51300517046,"-1,317.11",ALDERTON HOUSE,CARE ESTABLISHMENT,LD - East Locality,LD - East Cambs - Care,Residential Care
Cambridgeshire County Council,07-Nov-18,51300517043,"-1,317.11",ALDERTON HOUSE,CARE ESTABLISHMENT,LD - East Locality,LD - East Cambs - Care,Residential Care
Cambridgeshire County Council,07-Nov-18,51300517187,"-1,317.11",ALDERTON HOUSE,CARE ESTABLISHMENT,LD - East Locality,LD - East Cambs - Care,Residential Care
Cambridgeshire County Council,07-Nov-18,51300517198,"-1,317.11",ALDERTON HOUSE,CARE ESTABLISHMENT,LD - East Locality,LD - East Cambs - Care,Residential Care
Cambridgeshire County Council,07-Nov-18,51300517154,"-1,317.11",ALDERTON HOUSE,CARE ESTABLISHMENT,LD - East Locality,LD - East Cambs - Care,Residential Care
Cambridgeshire County Council,07-Nov-18,51300517170,"-1,317.11",ALDERTON HOUSE,CARE ESTABLISHMENT,LD - East Locality,LD - East Cambs - Care,Residential Care
Cambridgeshire County Council,07-Nov-18,51300517089,"-1,317.11",ALDERTON HOUSE,CARE ESTABLISHMENT,LD - East Locality,LD - East Cambs - Care,Residential Care
Cambridgeshire County Council,07-Nov-18,51300517106,"-1,317.11",ALDERTON HOUSE,CARE ESTABLISHMENT,LD - East Locality,LD - East Cambs - Care,Residential Care
Cambridgeshire County Council,07-Nov-18,51300517176,"-1,317.11",ALDERTON HOUSE,CARE ESTABLISHMENT,LD - East Locality,LD - East Cambs - Care,Residential Care
Cambridgeshire County Council,07-Nov-18,51300517177,"-1,317.11",ALDERTON HOUSE,CARE ESTABLISHMENT,LD - East Locality,LD - East Cambs - Care,Residential Care
Cambridgeshire County Council,07-Nov-18,51300517134,"-1,317.11",ALDERTON HOUSE,CARE ESTABLISHMENT,LD - East Locality,LD - East Cambs - Care,Residential Care
Cambridgeshire County Council,07-Nov-18,51300517040,"-1,317.11",ALDERTON HOUSE,CARE ESTABLISHMENT,LD - East Locality,LD - East Cambs - Care,Residential Care
Cambridgeshire County Council,07-Nov-18,51300517130,"-1,317.11",ALDERTON HOUSE,CARE ESTABLISHMENT,LD - East Locality,LD - East Cambs - Care,Residential Care
Cambridgeshire County Council,07-Nov-18,51300517188,"-1,317.11",ALDERTON HOUSE,CARE ESTABLISHMENT,LD - East Locality,LD - East Cambs - Care,Residential Care
Cambridgeshire County Council,07-Nov-18,51300517129,"-1,317.11",ALDERTON HOUSE,CARE ESTABLISHMENT,LD - East Locality,LD - East Cambs - Care,Residential Care
Cambridgeshire County Council,07-Nov-18,51300517194,"-1,317.11",ALDERTON HOUSE,CARE ESTABLISHMENT,LD - East Locality,LD - East Cambs - Care,Residential Care
Cambridgeshire County Council,07-Nov-18,51300517147,"-1,317.11",ALDERTON HOUSE,CARE ESTABLISHMENT,LD - East Locality,LD - East Cambs - Special Needs,Residential Care
Cambridgeshire County Council,07-Nov-18,51300517068,"-1,317.11",ALDERTON HOUSE,CARE ESTABLISHMENT,LD - East Locality,LD - East Cambs - Special Needs,Residential Care
Cambridgeshire County Council,07-Nov-18,51300517088,"-1,317.11",ALDERTON HOUSE,CARE ESTABLISHMENT,LD - East Locality,LD - East Cambs - Special Needs,Residential Care
Cambridgeshire County Council,07-Nov-18,51300517069,"-1,317.11",ALDERTON HOUSE,CARE ESTABLISHMENT,LD - East Locality,LD - East Cambs - Special Needs,Residential Care
Cambridgeshire County Council,07-Nov-18,51300517109,"-1,317.11",ALDERTON HOUSE,CARE ESTABLISHMENT,LD - East Locality,LD - East Cambs - Special Needs,Residential Care
Cambridgeshire County Council,07-Nov-18,51300517112,"-1,317.11",ALDERTON HOUSE,CARE ESTABLISHMENT,LD - East Locality,LD - East Cambs - Special Needs,Residential Care
Cambridgeshire County Council,07-Nov-18,51300517053,"-1,317.11",ALDERTON HOUSE,CARE ESTABLISHMENT,LD - East Locality,LD - East Cambs - Special Needs,Residential Care
Cambridgeshire County Council,07-Nov-18,51300517160,"-1,317.11",ALDERTON HOUSE,CARE ESTABLISHMENT,LD - East Locality,LD - East Cambs - Special Needs,Residential Care
Cambridgeshire County Council,07-Nov-18,51300517070,"-1,317.11",ALDERTON HOUSE,CARE ESTABLISHMENT,LD - East Locality,LD - East Cambs - Special Needs,Residential Care
Cambridgeshire County Council,07-Nov-18,51300517116,"-1,317.11",ALDERTON HOUSE,CARE ESTABLISHMENT,LD - East Locality,LD - East Cambs - Special Needs,Residential Care
Cambridgeshire County Council,07-Nov-18,51300517163,"-1,317.11",ALDERTON HOUSE,CARE ESTABLISHMENT,LD - East Locality,LD - East Cambs - Special Needs,Residential Care
Cambridgeshire County Council,07-Nov-18,51300517162,"-1,317.11",ALDERTON HOUSE,CARE ESTABLISHMENT,LD - East Locality,LD - East Cambs - Special Needs,Residential Care
Cambridgeshire County Council,07-Nov-18,51300517067,"-1,317.11",ALDERTON HOUSE,CARE ESTABLISHMENT,LD - East Locality,LD - East Cambs - Special Needs,Residential Care
Cambridgeshire County Council,07-Nov-18,51300517133,"-1,317.11",ALDERTON HOUSE,CARE ESTABLISHMENT,LD - East Locality,LD - East Cambs - Special Needs,Residential Care
Cambridgeshire County Council,07-Nov-18,51300517042,"-1,317.11",ALDERTON HOUSE,CARE ESTABLISHMENT,LD - East Locality,LD - East Cambs - Special Needs,Residential Care
Cambridgeshire County Council,07-Nov-18,51300517192,"-1,317.11",ALDERTON HOUSE,CARE ESTABLISHMENT,LD - East Locality,LD - East Cambs - Special Needs,Residential Care
Cambridgeshire County Council,07-Nov-18,51300517108,"-1,317.11",ALDERTON HOUSE,CARE ESTABLISHMENT,LD - East Locality,LD - East Cambs - Special Needs,Residential Care
Cambridgeshire County Council,07-Nov-18,51300517051,"-1,317.11",ALDERTON HOUSE,CARE ESTABLISHMENT,LD - East Locality,LD - East Cambs - Special Needs,Residential Care
Cambridgeshire County Council,23-Nov-18,51300555938,"-1,317.11",ALDERTON HOUSE,CARE ESTABLISHMENT,LD - East Locality,LD - East Cambs - Special Needs,Residential Care
Cambridgeshire County Council,23-Nov-18,51300555918,"-1,317.11",ALDERTON HOUSE,CARE ESTABLISHMENT,LD - East Locality,LD - East Cambs - Special Needs,Residential Care
Cambridgeshire County Council,23-Nov-18,51300541447,"-1,317.11",ALDERTON HOUSE,CARE ESTABLISHMENT,LD - East Locality,LD - East Cambs - Special Needs,Residential Care
Cambridgeshire County Council,23-Nov-18,51300541439,"-1,317.11",ALDERTON HOUSE,CARE ESTABLISHMENT,LD - East Locality,LD - East Cambs - Special Needs,Residential Care
Cambridgeshire County Council,23-Nov-18,51300541480,"-1,317.11",ALDERTON HOUSE,CARE ESTABLISHMENT,LD - East Locality,LD - East Cambs - Special Needs,Residential Care
Cambridgeshire County Council,23-Nov-18,51300555962,"-1,317.11",ALDERTON HOUSE,CARE ESTABLISHMENT,LD - East Locality,LD - East Cambs - Special Needs,Residential Care
Cambridgeshire County Council,23-Nov-18,51300555921,"-1,317.11",ALDERTON HOUSE,CARE ESTABLISHMENT,LD - East Locality,LD - East Cambs - Special Needs,Residential Care
Cambridgeshire County Council,23-Nov-18,51300541453,"-1,317.11",ALDERTON HOUSE,CARE ESTABLISHMENT,LD - East Locality,LD - East Cambs - Care,Residential Care
Cambridgeshire County Council,23-Nov-18,51300541573,"-1,317.11",ALDERTON HOUSE,CARE ESTABLISHMENT,LD - East Locality,LD - East Cambs - Special Needs,Residential Care
Cambridgeshire County Council,23-Nov-18,51300555957,"-1,317.11",ALDERTON HOUSE,CARE ESTABLISHMENT,LD - East Locality,LD - East Cambs - Special Needs,Residential Care
Cambridgeshire County Council,23-Nov-18,51300541442,"-1,317.11",ALDERTON HOUSE,CARE ESTABLISHMENT,LD - East Locality,LD - East Cambs - Special Needs,Residential Care
Cambridgeshire County Council,23-Nov-18,51300555982,"-1,317.11",ALDERTON HOUSE,CARE ESTABLISHMENT,LD - East Locality,LD - East Cambs - Special Needs,Residential Care
Cambridgeshire County Council,23-Nov-18,51300541441,"-1,317.11",ALDERTON HOUSE,CARE ESTABLISHMENT,LD - East Locality,LD - East Cambs - Special Needs,Residential Care
Cambridgeshire County Council,23-Nov-18,51300555961,"-1,317.11",ALDERTON HOUSE,CARE ESTABLISHMENT,LD - East Locality,LD - East Cambs - Special Needs,Residential Care
Cambridgeshire County Council,23-Nov-18,51300541540,"-1,317.11",ALDERTON HOUSE,CARE ESTABLISHMENT,LD - East Locality,LD - East Cambs - Special Needs,Residential Care
Cambridgeshire County Council,23-Nov-18,51300541545,"-1,317.11",ALDERTON HOUSE,CARE ESTABLISHMENT,LD - East Locality,LD - East Cambs - Special Needs,Residential Care
Cambridgeshire County Council,23-Nov-18,51300541500,"-1,317.11",ALDERTON HOUSE,CARE ESTABLISHMENT,LD - East Locality,LD - East Cambs - Special Needs,Residential Care
Cambridgeshire County Council,23-Nov-18,51300541501,"-1,317.11",ALDERTON HOUSE,CARE ESTABLISHMENT,LD - East Locality,LD - East Cambs - Special Needs,Residential Care
Cambridgeshire County Council,23-Nov-18,51300541434,"-1,317.11",ALDERTON HOUSE,CARE ESTABLISHMENT,LD - East Locality,LD - East Cambs - Special Needs,Residential Care
Cambridgeshire County Council,23-Nov-18,51300541534,"-1,317.11",ALDERTON HOUSE,CARE ESTABLISHMENT,LD - East Locality,LD - East Cambs - Special Needs,Residential Care
Cambridgeshire County Council,23-Nov-18,51300555915,"-1,317.11",ALDERTON HOUSE,CARE ESTABLISHMENT,LD - East Locality,LD - East Cambs - Special Needs,Residential Care
Cambridgeshire County Council,23-Nov-18,51300555924,"-1,317.11",ALDERTON HOUSE,CARE ESTABLISHMENT,LD - East Locality,LD - East Cambs - Special Needs,Residential Care
Cambridgeshire County Council,23-Nov-18,51300541574,"-1,317.11",ALDERTON HOUSE,CARE ESTABLISHMENT,LD - East Locality,LD - East Cambs - Special Needs,Residential Care
Cambridgeshire County Council,23-Nov-18,51300541488,"-1,317.11",ALDERTON HOUSE,CARE ESTABLISHMENT,LD - East Locality,LD - East Cambs - Special Needs,Residential Care
Cambridgeshire County Council,23-Nov-18,51300541503,"-1,317.11",ALDERTON HOUSE,CARE ESTABLISHMENT,LD - East Locality,LD - East Cambs - Special Needs,Residential Care
Cambridgeshire County Council,23-Nov-18,51300555923,"-1,317.11",ALDERTON HOUSE,CARE ESTABLISHMENT,LD - East Locality,LD - East Cambs - Special Needs,Residential Care
Cambridgeshire County Council,23-Nov-18,51300555966,"-1,317.11",ALDERTON HOUSE,CARE ESTABLISHMENT,LD - East Locality,LD - East Cambs - Special Needs,Residential Care
Cambridgeshire County Council,23-Nov-18,51300541498,"-1,317.11",ALDERTON HOUSE,CARE ESTABLISHMENT,LD - East Locality,LD - East Cambs - Care,Residential Care
Cambridgeshire County Council,23-Nov-18,51300555913,"-1,317.11",ALDERTON HOUSE,CARE ESTABLISHMENT,LD - East Locality,LD - East Cambs - Care,Residential Care
Cambridgeshire County Council,23-Nov-18,51300555929,"-1,317.11",ALDERTON HOUSE,CARE ESTABLISHMENT,LD - East Locality,LD - East Cambs - Care,Residential Care
Cambridgeshire County Council,23-Nov-18,51300556007,"-1,317.11",ALDERTON HOUSE,CARE ESTABLISHMENT,LD - East Locality,LD - East Cambs - Care,Residential Care
Cambridgeshire County Council,23-Nov-18,51300555950,"-1,317.11",ALDERTON HOUSE,CARE ESTABLISHMENT,LD - East Locality,LD - East Cambs - Care,Residential Care
Cambridgeshire County Council,23-Nov-18,51300541465,"-1,317.11",ALDERTON HOUSE,CARE ESTABLISHMENT,LD - East Locality,LD - East Cambs - Care,Residential Care
Cambridgeshire County Council,23-Nov-18,51300541551,"-1,317.11",ALDERTON HOUSE,CARE ESTABLISHMENT,LD - East Locality,LD - East Cambs - Care,Residential Care
Cambridgeshire County Council,23-Nov-18,51300555911,"-1,317.11",ALDERTON HOUSE,CARE ESTABLISHMENT,LD - East Locality,LD - East Cambs - Care,Residential Care
Cambridgeshire County Council,23-Nov-18,51300556015,"-1,317.11",ALDERTON HOUSE,CARE ESTABLISHMENT,LD - East Locality,LD - East Cambs - Care,Residential Care
Cambridgeshire County Council,23-Nov-18,51300556016,"-1,317.11",ALDERTON HOUSE,CARE ESTABLISHMENT,LD - East Locality,LD - East Cambs - Care,Residential Care
Cambridgeshire County Council,23-Nov-18,51300541430,"-1,317.11",ALDERTON HOUSE,CARE ESTABLISHMENT,LD - East Locality,LD - East Cambs - Special Needs,Residential Care
Cambridgeshire County Council,23-Nov-18,51300555901,"-1,317.11",ALDERTON HOUSE,CARE ESTABLISHMENT,LD - East Locality,LD - East Cambs - Special Needs,Residential Care
Cambridgeshire County Council,23-Nov-18,51300555995,"-1,317.11",ALDERTON HOUSE,CARE ESTABLISHMENT,LD - East Locality,LD - East Cambs - Special Needs,Residential Care
Cambridgeshire County Council,23-Nov-18,51300555907,"-1,317.11",ALDERTON HOUSE,CARE ESTABLISHMENT,LD - East Locality,LD - East Cambs - Special Needs,Residential Care
Cambridgeshire County Council,23-Nov-18,51300541468,"-1,317.11",ALDERTON HOUSE,CARE ESTABLISHMENT,LD - East Locality,LD - East Cambs - Special Needs,Residential Care
Cambridgeshire County Council,23-Nov-18,51300555919,"-1,317.11",ALDERTON HOUSE,CARE ESTABLISHMENT,LD - East Locality,LD - East Cambs - Special Needs,Residential Care
Cambridgeshire County Council,23-Nov-18,51300555977,"-1,317.11",ALDERTON HOUSE,CARE ESTABLISHMENT,LD - East Locality,LD - East Cambs - Special Needs,Residential Care
Cambridgeshire County Council,23-Nov-18,51300541426,"-1,317.11",ALDERTON HOUSE,CARE ESTABLISHMENT,LD - East Locality,LD - East Cambs - Special Needs,Residential Care
Cambridgeshire County Council,23-Nov-18,51300541466,"-1,317.11",ALDERTON HOUSE,CARE ESTABLISHMENT,LD - East Locality,LD - East Cambs - Special Needs,Residential Care
Cambridgeshire County Council,23-Nov-18,51300541514,"-1,317.11",ALDERTON HOUSE,CARE ESTABLISHMENT,LD - East Locality,LD - East Cambs - Special Needs,Residential Care
Cambridgeshire County Council,23-Nov-18,51300555960,"-1,317.11",ALDERTON HOUSE,CARE ESTABLISHMENT,LD - East Locality,LD - East Cambs - Care,Residential Care
Cambridgeshire County Council,23-Nov-18,51300541458,"-1,317.11",ALDERTON HOUSE,CARE ESTABLISHMENT,LD - East Locality,LD - East Cambs - Care,Residential Care
Cambridgeshire County Council,23-Nov-18,51300541436,"-1,317.11",ALDERTON HOUSE,CARE ESTABLISHMENT,LD - East Locality,LD - East Cambs - Care,Residential Care
Cambridgeshire County Council,23-Nov-18,51300541554,"-1,317.11",ALDERTON HOUSE,CARE ESTABLISHMENT,LD - East Locality,LD - East Cambs - Care,Residential Care
Cambridgeshire County Council,23-Nov-18,51300541546,"-1,317.11",ALDERTON HOUSE,CARE ESTABLISHMENT,LD - East Locality,LD - East Cambs - Care,Residential Care
Cambridgeshire County Council,23-Nov-18,51300541521,"-1,317.11",ALDERTON HOUSE,CARE ESTABLISHMENT,LD - East Locality,LD - East Cambs - Care,Residential Care
Cambridgeshire County Council,23-Nov-18,51300541536,"-1,317.11",ALDERTON HOUSE,CARE ESTABLISHMENT,LD - East Locality,LD - East Cambs - Care,Residential Care
Cambridgeshire County Council,23-Nov-18,51300541572,"-1,317.11",ALDERTON HOUSE,CARE ESTABLISHMENT,LD - East Locality,LD - East Cambs - Care,Residential Care
Cambridgeshire County Council,23-Nov-18,51300541549,"-1,317.11",ALDERTON HOUSE,CARE ESTABLISHMENT,LD - East Locality,LD - East Cambs - Care,Residential Care
Cambridgeshire County Council,23-Nov-18,51300555998,"-1,317.11",ALDERTON HOUSE,CARE ESTABLISHMENT,LD - East Locality,LD - East Cambs - Care,Residential Care
Cambridgeshire County Council,23-Nov-18,51300541445,"-1,317.11",ALDERTON HOUSE,CARE ESTABLISHMENT,LD - East Locality,LD - East Cambs - Care,Residential Care
Cambridgeshire County Council,23-Nov-18,51300555979,"-1,317.11",ALDERTON HOUSE,CARE ESTABLISHMENT,LD - East Locality,LD - East Cambs - Care,Residential Care
Cambridgeshire County Council,23-Nov-18,51300555958,"-1,317.11",ALDERTON HOUSE,CARE ESTABLISHMENT,LD - East Locality,LD - East Cambs - Care,Residential Care
Cambridgeshire County Council,23-Nov-18,51300541522,"-1,317.11",ALDERTON HOUSE,CARE ESTABLISHMENT,LD - East Locality,LD - East Cambs - Care,Residential Care
Cambridgeshire County Council,23-Nov-18,51300555953,"-1,317.11",ALDERTON HOUSE,CARE ESTABLISHMENT,LD - East Locality,LD - East Cambs - Care,Residential Care
Cambridgeshire County Council,23-Nov-18,51300556006,"-1,317.11",ALDERTON HOUSE,CARE ESTABLISHMENT,LD - East Locality,LD - East Cambs - Care,Residential Care
Cambridgeshire County Council,23-Nov-18,51300541569,"-1,317.11",ALDERTON HOUSE,CARE ESTABLISHMENT,LD - East Locality,LD - East Cambs - Care,Residential Care
Cambridgeshire County Council,23-Nov-18,51300541490,"-1,317.11",ALDERTON HOUSE,CARE ESTABLISHMENT,LD - East Locality,LD - East Cambs - Care,Residential Care
Cambridgeshire County Council,23-Nov-18,51300541538,"-1,317.11",ALDERTON HOUSE,CARE ESTABLISHMENT,LD - East Locality,LD - East Cambs - Care,Residential Care
Cambridgeshire County Council,23-Nov-18,51300555920,"-1,317.11",ALDERTON HOUSE,CARE ESTABLISHMENT,LD - East Locality,LD - East Cambs - Care,Residential Care
Cambridgeshire County Council,23-Nov-18,51300555963,"-1,317.11",ALDERTON HOUSE,CARE ESTABLISHMENT,LD - East Locality,LD - East Cambs - Care,Residential Care
Cambridgeshire County Council,23-Nov-18,51300556011,"-1,317.11",ALDERTON HOUSE,CARE ESTABLISHMENT,LD - East Locality,LD - East Cambs - Care,Residential Care
Cambridgeshire County Council,23-Nov-18,51300555927,"-1,317.11",ALDERTON HOUSE,CARE ESTABLISHMENT,LD - East Locality,LD - East Cambs - Care,Residential Care
Cambridgeshire County Council,23-Nov-18,51300541552,"-1,317.11",ALDERTON HOUSE,CARE ESTABLISHMENT,LD - East Locality,LD - East Cambs - Care,Residential Care
Cambridgeshire County Council,23-Nov-18,51300555990,"-1,317.11",ALDERTON HOUSE,CARE ESTABLISHMENT,LD - East Locality,LD - East Cambs - Care,Residential Care
Cambridgeshire County Council,23-Nov-18,51300541537,"-1,317.11",ALDERTON HOUSE,CARE ESTABLISHMENT,LD - East Locality,LD - East Cambs - Care,Residential Care
Cambridgeshire County Council,23-Nov-18,51300541471,"-1,317.11",ALDERTON HOUSE,CARE ESTABLISHMENT,LD - East Locality,LD - East Cambs - Care,Residential Care
Cambridgeshire County Council,23-Nov-18,51300555946,"-1,317.11",ALDERTON HOUSE,CARE ESTABLISHMENT,LD - East Locality,LD - East Cambs - Care,Residential Care
Cambridgeshire County Council,23-Nov-18,51300555985,"-1,317.11",ALDERTON HOUSE,CARE ESTABLISHMENT,LD - East Locality,LD - East Cambs - Care,Residential Care
Cambridgeshire County Council,23-Nov-18,51300556009,"-1,317.11",ALDERTON HOUSE,CARE ESTABLISHMENT,LD - East Locality,LD - East Cambs - Care,Residential Care
Cambridgeshire County Council,23-Nov-18,51300555942,"-1,317.11",ALDERTON HOUSE,CARE ESTABLISHMENT,LD - East Locality,LD - East Cambs - Care,Residential Care
Cambridgeshire County Council,23-Nov-18,51300541432,"-1,317.11",ALDERTON HOUSE,CARE ESTABLISHMENT,LD - East Locality,LD - East Cambs - Care,Residential Care
Cambridgeshire County Council,23-Nov-18,51300541444,"-1,317.11",ALDERTON HOUSE,CARE ESTABLISHMENT,LD - East Locality,LD - East Cambs - Care,Residential Care
Cambridgeshire County Council,23-Nov-18,51300541581,"-1,317.11",ALDERTON HOUSE,CARE ESTABLISHMENT,LD - East Locality,LD - East Cambs - Care,Residential Care
Cambridgeshire County Council,23-Nov-18,51300555939,"-1,317.11",ALDERTON HOUSE,CARE ESTABLISHMENT,LD - East Locality,LD - East Cambs - Care,Residential Care
Cambridgeshire County Council,23-Nov-18,51300541502,"-1,317.11",ALDERTON HOUSE,CARE ESTABLISHMENT,LD - East Locality,LD - East Cambs - Care,Residential Care
Cambridgeshire County Council,23-Nov-18,51300555908,"-1,317.11",ALDERTON HOUSE,CARE ESTABLISHMENT,LD - East Locality,LD - East Cambs - Care,Residential Care
Cambridgeshire County Council,23-Nov-18,51300555914,"-1,317.11",ALDERTON HOUSE,CARE ESTABLISHMENT,LD - East Locality,LD - East Cambs - Care,Residential Care
Cambridgeshire County Council,23-Nov-18,51300555922,"-1,317.11",ALDERTON HOUSE,CARE ESTABLISHMENT,LD - East Locality,LD - East Cambs - Care,Residential Care
Cambridgeshire County Council,23-Nov-18,51300555940,"-1,317.11",ALDERTON HOUSE,CARE ESTABLISHMENT,LD - East Locality,LD - East Cambs - Care,Residential Care
Cambridgeshire County Council,23-Nov-18,51300555984,"-1,317.11",ALDERTON HOUSE,CARE ESTABLISHMENT,LD - East Locality,LD - East Cambs - Care,Residential Care
Cambridgeshire County Council,23-Nov-18,51300555983,"-1,317.11",ALDERTON HOUSE,CARE ESTABLISHMENT,LD - East Locality,LD - East Cambs - Care,Residential Care
Cambridgeshire County Council,23-Nov-18,51300541440,"-1,317.11",ALDERTON HOUSE,CARE ESTABLISHMENT,LD - East Locality,LD - East Cambs - Care,Residential Care
Cambridgeshire County Council,23-Nov-18,51300541520,"-1,317.11",ALDERTON HOUSE,CARE ESTABLISHMENT,LD - East Locality,LD - East Cambs - Care,Residential Care
Cambridgeshire County Council,23-Nov-18,51300541446,"-1,317.11",ALDERTON HOUSE,CARE ESTABLISHMENT,LD - East Locality,LD - East Cambs - Care,Residential Care
Cambridgeshire County Council,23-Nov-18,51300555991,"-1,317.11",ALDERTON HOUSE,CARE ESTABLISHMENT,LD - East Locality,LD - East Cambs - Care,Residential Care
Cambridgeshire County Council,23-Nov-18,51300541575,"-1,317.11",ALDERTON HOUSE,CARE ESTABLISHMENT,LD - East Locality,LD - East Cambs - Special Needs,Residential Care
Cambridgeshire County Council,23-Nov-18,51300556013,"-1,317.11",ALDERTON HOUSE,CARE ESTABLISHMENT,LD - East Locality,LD - East Cambs - Special Needs,Residential Care
Cambridgeshire County Council,23-Nov-18,51300541523,"-1,317.11",ALDERTON HOUSE,CARE ESTABLISHMENT,LD - East Locality,LD - East Cambs - Special Needs,Residential Care
Cambridgeshire County Council,23-Nov-18,51300541455,"-1,317.11",ALDERTON HOUSE,CARE ESTABLISHMENT,LD - East Locality,LD - East Cambs - Special Needs,Residential Care
Cambridgeshire County Council,23-Nov-18,51300541510,"-1,317.11",ALDERTON HOUSE,CARE ESTABLISHMENT,LD - East Locality,LD - East Cambs - Special Needs,Residential Care
Cambridgeshire County Council,23-Nov-18,51300541580,"-1,317.11",ALDERTON HOUSE,CARE ESTABLISHMENT,LD - East Locality,LD - East Cambs - Special Needs,Residential Care
Cambridgeshire County Council,23-Nov-18,51300555986,"-1,317.11",ALDERTON HOUSE,CARE ESTABLISHMENT,LD - East Locality,LD - East Cambs - Special Needs,Residential Care
Cambridgeshire County Council,23-Nov-18,51300555912,"-1,317.11",ALDERTON HOUSE,CARE ESTABLISHMENT,LD - East Locality,LD - East Cambs - Special Needs,Residential Care
Cambridgeshire County Council,23-Nov-18,51300555971,"-1,317.11",ALDERTON HOUSE,CARE ESTABLISHMENT,LD - East Locality,LD - East Cambs - Special Needs,Residential Care
Cambridgeshire County Council,23-Nov-18,51300541564,"-1,317.11",ALDERTON HOUSE,CARE ESTABLISHMENT,LD - East Locality,LD - East Cambs - Special Needs,Residential Care
Cambridgeshire County Council,23-Nov-18,51300555973,"-1,317.11",ALDERTON HOUSE,CARE ESTABLISHMENT,LD - East Locality,LD - East Cambs - Special Needs,Residential Care
Cambridgeshire County Council,23-Nov-18,51300555967,"-1,317.11",ALDERTON HOUSE,CARE ESTABLISHMENT,LD - East Locality,LD - East Cambs - Special Needs,Residential Care
Cambridgeshire County Council,23-Nov-18,51300555949,"-1,317.11",ALDERTON HOUSE,CARE ESTABLISHMENT,LD - East Locality,LD - East Cambs - Special Needs,Residential Care
Cambridgeshire County Council,29-Nov-18,51300567294,"-1,317.11",ALDERTON HOUSE,CARE ESTABLISHMENT,LD - East Locality,LD - East Cambs - Care,Residential Care
Cambridgeshire County Council,29-Nov-18,51300567214,"-1,317.11",ALDERTON HOUSE,CARE ESTABLISHMENT,LD - East Locality,LD - East Cambs - Special Needs,Residential Care
Cambridgeshire County Council,29-Nov-18,51300567244,"-1,317.11",ALDERTON HOUSE,CARE ESTABLISHMENT,LD - East Locality,LD - East Cambs - Special Needs,Residential Care
Cambridgeshire County Council,29-Nov-18,51300567222,"-1,317.11",ALDERTON HOUSE,CARE ESTABLISHMENT,LD - East Locality,LD - East Cambs - Special Needs,Residential Care
Cambridgeshire County Council,29-Nov-18,51300567213,"-1,317.11",ALDERTON HOUSE,CARE ESTABLISHMENT,LD - East Locality,LD - East Cambs - Special Needs,Residential Care
